Authority,Department,Spending Area,Expense Type,Posting Date,Reference,Amount,Supplier
OXFORDSHIRE CC,"CHILDRENS, YOUNG PEOPLE AND FAMILIES","	FAMILY SUPPORT S'TH2",CLIENT LODGINGS AND ACCOMMODATION,28/03/2019,000008418461547,70.00,THE GEORGE HOTEL
OXFORDSHIRE CC,"CHILDRENS, YOUNG PEOPLE AND FAMILIES","	FAMILY SUPPORT CITY3",OTHER TRANSPORT ARRANGEMENTS,28/03/2019,000008418461597,2.30,STGCOACH/CTYLINK
OXFORDSHIRE CC,SOCIAL AND COMMUNITY SERVICES,"	LEADERSHIP TEAM",PAYMENTS TO TRANSPORT OPERATORS,28/03/2019,000008418463067,73.30,WWW.GWR.COM
OXFORDSHIRE CC,"CHILDRENS, YOUNG PEOPLE AND FAMILIES","	LEAVING CARE NORTH",REGISTRATION AND INSPECTION FEES,28/03/2019,000008418463139,-11.00,OCC REGISTRARS (M)
OXFORDSHIRE CC,"CHILDRENS, YOUNG PEOPLE AND FAMILIES","	LOOKED AFTER CITY 2",CLOTHING AND UNIFORMS,28/03/2019,000008418463163,50.60,PRIMARK 440
OXFORDSHIRE CC,"CHILDRENS, YOUNG PEOPLE AND FAMILIES","	LOOKED AFTER SOUTH",OTHER TRAINING COURSES AND QUALIFICATION,28/03/2019,000008418461629,100.00,OSARCC
OXFORDSHIRE CC,"CHILDRENS, YOUNG PEOPLE AND FAMILIES",PUBLIC HEALTH GENERAL,"PUBLICITY, PROMOTIONS AND ADVERTISEMENT",28/03/2019,000008418461741,609.13,FACEBK D9NWAKS8V2
OXFORDSHIRE CC,"CHILDRENS, YOUNG PEOPLE AND FAMILIES",THAME E&A HOME,CATERING,28/03/2019,000008418461775,4.30,CRUMBS SANDWICH BAR
OXFORDSHIRE CC,"CHILDRENS, YOUNG PEOPLE AND FAMILIES",WITNEY,CATERING,28/03/2019,000008418461787,26.95,THE WATER MARGIN J&A L
OXFORDSHIRE CC,"CHILDRENS, YOUNG PEOPLE AND FAMILIES",WITNEY,CATERING,28/03/2019,000008418461795,35.30,SUWANNA
OXFORDSHIRE CC,"CHILDRENS, YOUNG PEOPLE AND FAMILIES","	LEAVING CARE CITY 1",PAYMENT TO GOVERNMENT DEPARTMENTS,28/03/2019,000008418463173,397.08,OXFORD CITY COUNCIL DO
OXFORDSHIRE CC,"CHILDRENS, YOUNG PEOPLE AND FAMILIES",FPT SOUTH/VALE,"BOOKS, DVDS AND CDS",28/03/2019,000008418463265,74.95,AMZN MKTP UK MZ75A24Z4
OXFORDSHIRE CC,"CHILDRENS, YOUNG PEOPLE AND FAMILIES","	40 THE MOORS",CATERING PROVISIONS,28/03/2019,000008418463309,33.85,SAINSBURYS SACAT 0631
OXFORDSHIRE CC,"CHILDRENS, YOUNG PEOPLE AND FAMILIES","	40 THE MOORS",CATERING PROVISIONS,28/03/2019,000008418463313,12.45,OXFORD PEARTREE STARBU
OXFORDSHIRE CC,"CHILDRENS, YOUNG PEOPLE AND FAMILIES",THAME E&A HOME,CATERING PROVISIONS,28/03/2019,000008418463317,7.30,SAINSBURYS SACAT 2096
OXFORDSHIRE CC,CORPORATE CORE,MOTOR FLEET,MOTOR IF FEES,28/03/2019,000008418463327,102.00,SIDNEY H HOOPER & COMP
OXFORDSHIRE CC,CORPORATE CORE,,"SUPPLIES, STATIONERY AND MATERIALS",28/03/2019,000008418463345,160.60,LYRECO UK LTD
OXFORDSHIRE CC,"CHILDRENS, YOUNG PEOPLE AND FAMILIES","	SM QUALITY ASSURANCE",PAYMENTS TO TRANSPORT OPERATORS,28/03/2019,000008418463347,33.42,TRAINLINE
OXFORDSHIRE CC,"CHILDRENS, YOUNG PEOPLE AND FAMILIES","	LOOKED AFTER NORTH","SUPPLIES, STATIONERY AND MATERIALS",28/03/2019,000008418463361,70.00,WENDLEBURY GATE SADDL
OXFORDSHIRE CC,"CHILDRENS, YOUNG PEOPLE AND FAMILIES",EYNSHAM,CATERING PROVISIONS,28/03/2019,000008418463391,2.65,SAINSBURYS LOC 4264
OXFORDSHIRE CC,ENVIRONMENT AND ECONOMY,HARD FM,VEHICLE FUEL,28/03/2019,000008418461845,20.00,TESCO PFS 3827
OXFORDSHIRE CC,ENVIRONMENT AND ECONOMY,HARD FM,GENERAL MAINTENANCE,28/03/2019,000008418461843,164.27, WOLSELEY UK
OXFORDSHIRE CC,CORPORATE CORE,CENTRAL BUYING TEAM,VEHICLE FUEL,28/03/2019,000008418463401,13.09,TESCO PFS 3700
OXFORDSHIRE CC,"CHILDRENS, YOUNG PEOPLE AND FAMILIES","	LEAVING CARE NORTH",RESIDENTIAL ACTIVITIES,28/03/2019,000008418463431,17.99,THE GYM LTD
OXFORDSHIRE CC,"CHILDRENS, YOUNG PEOPLE AND FAMILIES","	DIRECTOR'S OFFICE",PAYMENTS TO TRANSPORT OPERATORS,28/03/2019,000008418463455,27.30,WWW.GWR.COM
OXFORDSHIRE CC,"CHILDRENS, YOUNG PEOPLE AND FAMILIES","	RIVERSIDE CENTRE",MATERIALS,28/03/2019,000008418463531,39.99,INTERNETSTORES
OXFORDSHIRE CC,ENVIRONMENT AND ECONOMY,HARD FM,MATERIALS,28/03/2019,000008418461847,28.17,TOOLSTATION
OXFORDSHIRE CC,ENVIRONMENT AND ECONOMY,HARD FM,MATERIALS,28/03/2019,000008418461851,5.73,TOOLSTATION LTD
OXFORDSHIRE CC,SOCIAL AND COMMUNITY SERVICES,ADULT SERVICES IMPROVEMENT BOARD,CATERING PROVISIONS,28/03/2019,000008418461995,33.01,TESCO STORES 2008
OXFORDSHIRE CC,ENVIRONMENT AND ECONOMY,HARD FM,GENERAL MAINTENANCE,28/03/2019,000008418461855,66.05, WOLSELEY UK
OXFORDSHIRE CC,"CHILDRENS, YOUNG PEOPLE AND FAMILIES",THAME E&A HOME,CATERING,28/03/2019,000008418461877,36.85,PIZZA PILGRIMS OXFORD
OXFORDSHIRE CC,"CHILDRENS, YOUNG PEOPLE AND FAMILIES",THAME E&A HOME,OTHER TRANSPORT ARRANGEMENTS,28/03/2019,000008418461881,4.00,WESTGATE OXFORD CAR PA
OXFORDSHIRE CC,"CHILDRENS, YOUNG PEOPLE AND FAMILIES",THAME E&A HOME,MATERIALS,28/03/2019,000008418461889,2.78,CARD FACTORY
OXFORDSHIRE CC,ENVIRONMENT AND ECONOMY,"	COUNTY PRINT FINSHRS",HIRE OF ACCOMMODATION AND FACILITIES,28/03/2019,000008418461913,218.00,CONFERENCE ASTON
OXFORDSHIRE CC,"CHILDRENS, YOUNG PEOPLE AND FAMILIES","	RIVERSIDE CENTRE",ENTERTAINMENT EXPENSES,28/03/2019,000008418462003,11.50,IZ  BIG ROCK CLIMBING
OXFORDSHIRE CC,CORPORATE CORE,SCHOOLS FM,CATERING PROVISIONS,28/03/2019,000008418462017,124.24,SAINSBURYS 2067
OXFORDSHIRE CC,CORPORATE CORE,SCHOOLS FM,CATERING EQUIPMENT,28/03/2019,000008418462023,19.98,ROBERT DYAS HOLDNG LTD
OXFORDSHIRE CC,"CHILDRENS, YOUNG PEOPLE AND FAMILIES","	SERVICE MANAGER PLAC",CATERING PROVISIONS,28/03/2019,000008418462049,55.50,MARKS&SPENCER PLC
OXFORDSHIRE CC,ENVIRONMENT AND ECONOMY,"	NATURAL ENVIRONMENT","SUPPLIES, STATIONERY AND MATERIALS",28/03/2019,000008418462295,278.40,BRITISH STANDARDS
OXFORDSHIRE CC,SOCIAL AND COMMUNITY SERVICES,CSS - OXFORD,"BOOKS, DVDS AND CDS",28/03/2019,000008418462305,7.99,AMZN MKTP UK MZ0467FR4
OXFORDSHIRE CC,"CHILDRENS, YOUNG PEOPLE AND FAMILIES","	MUSIC UNALLOCABLE",CATERING PROVISIONS,28/03/2019,000008418462287,35.45,SAINSBURYS TO YOU 0600
OXFORDSHIRE CC,"CHILDRENS, YOUNG PEOPLE AND FAMILIES","	MUSIC UNALLOCABLE",CATERING PROVISIONS,28/03/2019,000008418462287,113.75,SAINSBURYS TO YOU 0600
OXFORDSHIRE CC,SOCIAL AND COMMUNITY SERVICES,CSS - OXFORD,CATERING PROVISIONS,28/03/2019,000008418462307,312.51,TESCO STORE 2994
OXFORDSHIRE CC,"CHILDRENS, YOUNG PEOPLE AND FAMILIES","	LOOKED AFTER CITY 2",REGISTRATION AND INSPECTION FEES,28/03/2019,000008418462417,11.00,OCC REGISTRARS (M)
OXFORDSHIRE CC,"CHILDRENS, YOUNG PEOPLE AND FAMILIES",KINGFISHER,HIRE OF ACCOMMODATION AND FACILITIES,28/03/2019,000008418462647,900.00,BUCKINGHAM HOTELS
OXFORDSHIRE CC,"CHILDRENS, YOUNG PEOPLE AND FAMILIES",KINGFISHER,HIRE OF ACCOMMODATION AND FACILITIES,28/03/2019,000008418462653,150.00,BUCKINGHAM HOTELS
OXFORDSHIRE CC,"CHILDRENS, YOUNG PEOPLE AND FAMILIES",ATV ADOPTION OXFORD,OTHER EXPENSES,28/03/2019,000008418463057,-95.00,PREMIER INN
OXFORDSHIRE CC,"CHILDRENS, YOUNG PEOPLE AND FAMILIES",DIDCOT MOVE-ON HOME,CATERING PROVISIONS,28/03/2019,000008418463015,59.90,SAINSBURYS 2067
OXFORDSHIRE CC,"CHILDRENS, YOUNG PEOPLE AND FAMILIES","	MANAGEMENT & ADMIN",MATERIALS,28/03/2019,000008418463041,25.98,AMZNMKTPLACE
OXFORDSHIRE CC,"CHILDRENS, YOUNG PEOPLE AND FAMILIES",ATV ADOPTION OXFORD,OTHER EXPENSES,28/03/2019,000008418463051,596.27,WWW.MULBERRYCOTTAGES.C
OXFORDSHIRE CC,"CHILDRENS, YOUNG PEOPLE AND FAMILIES",ATV ADOPTION OXFORD,OTHER EXPENSES,28/03/2019,000008418463051,40.00,WWW.MULBERRYCOTTAGES.C
OXFORDSHIRE CC,"CHILDRENS, YOUNG PEOPLE AND FAMILIES",THAME E&A HOME,MATERIALS,27/03/2019,000008412565083,15.00,WLY COMPLETESAVE.CO.UK
OXFORDSHIRE CC,"CHILDRENS, YOUNG PEOPLE AND FAMILIES","	MALTFIELD HOUSE",CATERING PROVISIONS,27/03/2019,000008412565085,6.64,CO-OPERATIVE FOOD
OXFORDSHIRE CC,"CHILDRENS, YOUNG PEOPLE AND FAMILIES","	MALTFIELD HOUSE",EDUCATIONAL AND VOCATIONAL TRAINING ,27/03/2019,000008412565087,5.00,PARENTPAY E-COM R
OXFORDSHIRE CC,"CHILDRENS, YOUNG PEOPLE AND FAMILIES",NORTH FSS- BANBURY,"BOOKS, DVDS AND CDS",27/03/2019,000008412565089,13.64,AMAZON.CO.UK MZ9GJ7FJ4
OXFORDSHIRE CC,SOCIAL AND COMMUNITY SERVICES,SCHOOLS FM,CATERING PROVISIONS,27/03/2019,000008412565091,23.00,CO OP GROUP FOOD
OXFORDSHIRE CC,SOCIAL AND COMMUNITY SERVICES,"	MUSEUMS COLLECTIONS",ROAD FUND LICENCES AND MOTS,27/03/2019,000008412565101,142.50,DVLA VEHICLE TAX
OXFORDSHIRE CC,SOCIAL AND COMMUNITY SERVICES,"	LEARNING & ACCESS",ROAD FUND LICENCES AND MOTS,27/03/2019,000008412565103,252.50,DVLA VEHICLE TAX
OXFORDSHIRE CC,"CHILDRENS, YOUNG PEOPLE AND FAMILIES","	LEAVING CARE NORTH",OTHER EXPENSES,27/03/2019,000008412565407,20.00,WM MORRISONS STORE
OXFORDSHIRE CC,ENTERPRISEVC,,CAR LEASING - PRIVATE RENTALS,27/03/2019,000008412565387,43.18,ENTERPRISE RENT-A-CAR
OXFORDSHIRE CC,ENTERPRISEVC,,CAR LEASING - PRIVATE RENTALS,27/03/2019,000008412565389,25.14,ENTERPRISE RENT-A-CAR
OXFORDSHIRE CC,ENTERPRISEVC,,CAR LEASING - PRIVATE RENTALS,27/03/2019,000008412565391,207.85,ENTERPRISE RENT-A-CAR
OXFORDSHIRE CC,ENTERPRISEVC,,CAR LEASING - PRIVATE RENTALS,27/03/2019,000008412565393,77.94,ENTERPRISE RENT-A-CAR
OXFORDSHIRE CC,ENTERPRISEVC,,CAR LEASING - PRIVATE RENTALS,27/03/2019,000008412565395,69.55,ENTERPRISE RENT-A-CAR
OXFORDSHIRE CC,ENTERPRISEVC,,CAR LEASING - PRIVATE RENTALS,27/03/2019,000008412565397,69.55,ENTERPRISE RENT-A-CAR
OXFORDSHIRE CC,ENTERPRISEVC,,CAR LEASING - PRIVATE RENTALS,27/03/2019,000008412565399,83.83,ENTERPRISE RENT-A-CAR
OXFORDSHIRE CC,ENTERPRISEVC,,CAR LEASING - PRIVATE RENTALS,27/03/2019,000008412565401,69.55,ENTERPRISE RENT-A-CAR
OXFORDSHIRE CC,"CHILDRENS, YOUNG PEOPLE AND FAMILIES","	LEAVING CARE NORTH",CLOTHING AND UNIFORMS,27/03/2019,000008412565403,13.00,ASDA STORES 4920
OXFORDSHIRE CC,"CHILDRENS, YOUNG PEOPLE AND FAMILIES","	LEAVING CARE NORTH",OTHER EXPENSES,27/03/2019,000008412565405,3.00,WM MORRISONS STORE
OXFORDSHIRE CC,SOCIAL AND COMMUNITY SERVICES,CSS - OXFORD,CATERING PROVISIONS,27/03/2019,000008412565031,23.56,ALDI STORES 775-142
OXFORDSHIRE CC,"CHILDRENS, YOUNG PEOPLE AND FAMILIES",THAME E&A HOME,HARDWARE AND CROCKERY,27/03/2019,000008412565035,148.00,WICKES BUILDING
OXFORDSHIRE CC,"CHILDRENS, YOUNG PEOPLE AND FAMILIES","	LOOKED AFTER CITY 2",CATERING,27/03/2019,000008412565037,3.98,MCDONALDS
OXFORDSHIRE CC,SOCIAL AND COMMUNITY SERVICES,UASC 16&17,PAYMENT TO GOVERNMENT DEPARTMENTS,27/03/2019,000008412565039,4.60,CARDIFF COUNCIL PARKIN
OXFORDSHIRE CC,SOCIAL AND COMMUNITY SERVICES,UASC 16&17,CATERING PROVISIONS,27/03/2019,000008412565041,4.30,M&S SIMPLY FOOD
OXFORDSHIRE CC,SOCIAL AND COMMUNITY SERVICES,UASC 16&17,CATERING PROVISIONS,27/03/2019,000008412565043,5.00,CO-OPERATIVE FOOD
OXFORDSHIRE CC,SOCIAL AND COMMUNITY SERVICES,UASC 16&17,CATERING,27/03/2019,000008412565045,5.99,DOMINO'S
OXFORDSHIRE CC,SOCIAL AND COMMUNITY SERVICES,CSS - OXFORD,MATERIALS,27/03/2019,000008412565047,16.94,ALDI STORES 775-142
OXFORDSHIRE CC,SOCIAL AND COMMUNITY SERVICES,CSS - OXFORD,CATERING PROVISIONS,27/03/2019,000008412565049,2.98,ALDI STORES 775-142
OXFORDSHIRE CC,SOCIAL AND COMMUNITY SERVICES,CSS - OXFORD,MATERIALS,27/03/2019,000008412565051,21.41,ALDI STORES 775-142
OXFORDSHIRE CC,"CHILDRENS, YOUNG PEOPLE AND FAMILIES","	LOOKED AFTER SOUTH",MATERIALS,27/03/2019,000008412565409,1.95,COTSWOLD NEWSAGENTS
OXFORDSHIRE CC,"CHILDRENS, YOUNG PEOPLE AND FAMILIES","	DIRECTOR'S OFFICE",PAYMENTS TO TRANSPORT OPERATORS,27/03/2019,000008412565411,71.12,TRAINLINE
OXFORDSHIRE CC,"CHILDRENS, YOUNG PEOPLE AND FAMILIES","	RIVERSIDE CENTRE",CATERING PROVISIONS,27/03/2019,000008412565425,3.05,SAINSBURYS LOC4938
OXFORDSHIRE CC,"CHILDRENS, YOUNG PEOPLE AND FAMILIES","	RIVERSIDE CENTRE",MATERIALS,27/03/2019,000008412565427,263.99,INTERNETSTORES
OXFORDSHIRE CC,"CHILDRENS, YOUNG PEOPLE AND FAMILIES","	RIVERSIDE CENTRE",CATERING,27/03/2019,000008412565429,5.00,SUMUP   SUGARSNAP OXFO
OXFORDSHIRE CC,CORPORATE CORE,SCHOOLS FM,CATERING EQUIPMENT,27/03/2019,000008412565057,128.91,WWW.NISBETS.COM
OXFORDSHIRE CC,CORPORATE CORE,SCHOOLS FM,CATERING EQUIPMENT,27/03/2019,000008412565059,16.99,ROBERT DYAS HOLDNG LTD
OXFORDSHIRE CC,"CHILDRENS, YOUNG PEOPLE AND FAMILIES",CYPF ADMIN,PURCHASE OF IT EQUIPMENT,27/03/2019,000008412565061,85.98,AMZN MKTP UK MZ6667OF4
OXFORDSHIRE CC,"CHILDRENS, YOUNG PEOPLE AND FAMILIES",CYPF ADMIN,PURCHASE OF IT EQUIPMENT,27/03/2019,000008412565063,13.99,AMZN MKTP UK MZ8W95O54
OXFORDSHIRE CC,SOCIAL AND COMMUNITY SERVICES,CSS WALLINGFORD,MATERIALS,27/03/2019,000008412565067,8.00,KERI THE FLORIST
OXFORDSHIRE CC,SOCIAL AND COMMUNITY SERVICES,CSS WALLINGFORD,CATERING PROVISIONS,27/03/2019,000008412565069,4.09,LIDL GB WALLINGFORD
OXFORDSHIRE CC,CORPORATE CORE,"	COMMUNICATIONS","PUBLICITY, PROMOTIONS AND ADVERTISEMENT",27/03/2019,000008412565443,499.93,FACEBK  PDWWUKW9Z2
OXFORDSHIRE CC,"CHILDRENS, YOUNG PEOPLE AND FAMILIES",EYNSHAM,POSTAGE AND DELIVERY,27/03/2019,000008412565445,.83,THE POST OFFICE
OXFORDSHIRE CC,"CHILDRENS, YOUNG PEOPLE AND FAMILIES",EYNSHAM,DAY ACTIVITIES,27/03/2019,000008412565447,20.00,SUPERDRUG STORES PLC
OXFORDSHIRE CC,"CHILDRENS, YOUNG PEOPLE AND FAMILIES",EYNSHAM,DAY ACTIVITIES,27/03/2019,000008412565449,19.99,CLINTONS  236
OXFORDSHIRE CC,"CHILDRENS, YOUNG PEOPLE AND FAMILIES",EYNSHAM,DAY ACTIVITIES,27/03/2019,000008412565451,2.40,WAITROSE 142
OXFORDSHIRE CC,"CHILDRENS, YOUNG PEOPLE AND FAMILIES",EYNSHAM,CATERING,27/03/2019,000008412565453,101.49,TESCO STORES 2008
OXFORDSHIRE CC,CORPORATE CORE,ICT OPERATIONS & MAI,PAYMENTS TO TRANSPORT OPERATORS,27/03/2019,000008412565321,86.30,WWW.GWR.COM
OXFORDSHIRE CC,"CHILDRENS, YOUNG PEOPLE AND FAMILIES",FPT SOUTH/VALE,HIRE OF ACCOMMODATION AND FACILITIES,27/03/2019,000008412565323,76.50,WELCOME BREAK
OXFORDSHIRE CC,"CHILDRENS, YOUNG PEOPLE AND FAMILIES","	40 THE MOORS","BOOKS, DVDS AND CDS",27/03/2019,000008412565341,6.50,AMZN MKTP UK MZ1VP4F74
OXFORDSHIRE CC,"CHILDRENS, YOUNG PEOPLE AND FAMILIES","	LOOKED AFTER SOUTH",PAYMENTS TO VOLUNTARY BODIES,27/03/2019,000008412565329,67.56,ALLPAY  ST MUNGOS
OXFORDSHIRE CC,"CHILDRENS, YOUNG PEOPLE AND FAMILIES","	40 THE MOORS","BOOKS, DVDS AND CDS",27/03/2019,000008412565331,4.24,AMZN MKTP UK MZ5X35CB4
OXFORDSHIRE CC,"CHILDRENS, YOUNG PEOPLE AND FAMILIES","	40 THE MOORS",CATERING,27/03/2019,000008412565333,18.99,WWW.DOMINOS.CO.UK
OXFORDSHIRE CC,"CHILDRENS, YOUNG PEOPLE AND FAMILIES","	40 THE MOORS",CATERING,27/03/2019,000008412565335,11.20,JUST EAT
OXFORDSHIRE CC,"CHILDRENS, YOUNG PEOPLE AND FAMILIES","	40 THE MOORS",CATERING,27/03/2019,000008412565337,38.30,JUST EAT
OXFORDSHIRE CC,"CHILDRENS, YOUNG PEOPLE AND FAMILIES","	40 THE MOORS",CATERING PROVISIONS,27/03/2019,000008412565339,34.45,SAINSBURYS SACAT 0631
OXFORDSHIRE CC,ENVIRONMENT AND ECONOMY,HOLDING CODE FOR REA,SAMPLING AND TESTING,27/03/2019,000008412564963,441.60,PASS  PORTABLE APPLIAN
OXFORDSHIRE CC,SOCIAL AND COMMUNITY SERVICES,CSS BICESTER,PAYMENTS TO VOLUNTARY BODIES,27/03/2019,000008412564965,162.00,ST JOHN AMBULANCE
OXFORDSHIRE CC,"CHILDRENS, YOUNG PEOPLE AND FAMILIES",THAME E&A HOME,CATERING PROVISIONS,27/03/2019,000008412564967,16.51,SAINSBURYS 2096
OXFORDSHIRE CC,ENVIRONMENT AND ECONOMY,"	LEP",RECRUTIMENT EXPENSES (EXCL. ADVERTISING),27/03/2019,000008412564969,836.40,WORKABLE
OXFORDSHIRE CC,ENVIRONMENT AND ECONOMY,HARD FM,EQUIPMENT,27/03/2019,000008412564983,49.84,W F SENATE
OXFORDSHIRE CC,CORPORATE CORE,,"SUPPLIES, STATIONERY AND MATERIALS",27/03/2019,000008412565345,18.24,LYRECO UK LTD
OXFORDSHIRE CC,CORPORATE CORE,,"SUPPLIES, STATIONERY AND MATERIALS",27/03/2019,000008412565347,82.92,LYRECO UK LTD
OXFORDSHIRE CC,CORPORATE CORE,,"SUPPLIES, STATIONERY AND MATERIALS",27/03/2019,000008412565349,36.48,LYRECO UK LTD
OXFORDSHIRE CC,CORPORATE CORE,,"SUPPLIES, STATIONERY AND MATERIALS",27/03/2019,000008412565351,45.60,LYRECO UK LTD
OXFORDSHIRE CC,CORPORATE CORE,,"SUPPLIES, STATIONERY AND MATERIALS",27/03/2019,000008412565353,36.48,LYRECO UK LTD
OXFORDSHIRE CC,CORPORATE CORE,,"SUPPLIES, STATIONERY AND MATERIALS",27/03/2019,000008412565355,36.48,LYRECO UK LTD
OXFORDSHIRE CC,"CHILDRENS, YOUNG PEOPLE AND FAMILIES",EYNSHAM,CATERING PROVISIONS,27/03/2019,000008412565359,9.84,CO-OPERATIVE FOOD
OXFORDSHIRE CC,"CHILDRENS, YOUNG PEOPLE AND FAMILIES",FAMILY SUPPORT 2,PAYMENTS TO TRANSPORT OPERATORS,27/03/2019,000008412565361,-7.30,WWW.GWR.COM
OXFORDSHIRE CC,"CHILDRENS, YOUNG PEOPLE AND FAMILIES",FAMILY SUPPORT 2,PAYMENTS TO TRANSPORT OPERATORS,27/03/2019,000008412565363,-38.50,WWW.GWR.COM
OXFORDSHIRE CC,ENVIRONMENT AND ECONOMY,HARD FM,HARDWARE AND CROCKERY,27/03/2019,000008412564985,6.74,B & Q 1305
OXFORDSHIRE CC,ENVIRONMENT AND ECONOMY,HARD FM,EQUIPMENT,27/03/2019,000008412564987,43.00,NEWEY & EYRE
OXFORDSHIRE CC,ENVIRONMENT AND ECONOMY,HARD FM,HARDWARE AND CROCKERY,27/03/2019,000008412564989,60.56,OXON FASTENING SYSTEMS
OXFORDSHIRE CC,ENVIRONMENT AND ECONOMY,HARD FM,HARDWARE AND CROCKERY,27/03/2019,000008412564991,50.03,SCREWFIX ABINGDON
OXFORDSHIRE CC,ENVIRONMENT AND ECONOMY,HARD FM,FURNITURE,27/03/2019,000008412564993,90.00,YOU NEED BLINDS
OXFORDSHIRE CC,ENVIRONMENT AND ECONOMY,HARD FM,HARDWARE AND CROCKERY,27/03/2019,000008412564995,24.03,B & Q 1156
OXFORDSHIRE CC,ENVIRONMENT AND ECONOMY,HARD FM,HARDWARE AND CROCKERY,27/03/2019,000008412564997,9.59,JEWSON LTD
OXFORDSHIRE CC,ENVIRONMENT AND ECONOMY,HARD FM,HARDWARE AND CROCKERY,27/03/2019,000008412564999,6.68,SCREWFIX BICESTER
OXFORDSHIRE CC,ENVIRONMENT AND ECONOMY,HARD FM,HARDWARE AND CROCKERY,27/03/2019,000008412565001,14.60,SCREWFIX BICESTER
OXFORDSHIRE CC,ENVIRONMENT AND ECONOMY,HARD FM,GENERAL MAINTENANCE,27/03/2019,000008412565003,26.21, WOLSELEY UK
OXFORDSHIRE CC,ENVIRONMENT AND ECONOMY,HARD FM,HARDWARE AND CROCKERY,27/03/2019,000008412565005,27.67,BUILDBASE - OXFORD
OXFORDSHIRE CC,ENTERPRISEVC,,CAR LEASING - PRIVATE RENTALS,27/03/2019,000008412565365,75.43,ENTERPRISE RENT-A-CAR
OXFORDSHIRE CC,ENTERPRISEVC,,CAR LEASING - PRIVATE RENTALS,27/03/2019,000008412565367,85.48,ENTERPRISE RENT-A-CAR
OXFORDSHIRE CC,ENTERPRISEVC,,CAR LEASING - PRIVATE RENTALS,27/03/2019,000008412565369,63.89,ENTERPRISE RENT-A-CAR
OXFORDSHIRE CC,ENTERPRISEVC,,CAR LEASING - PRIVATE RENTALS,27/03/2019,000008412565371,45.79,ENTERPRISE RENT-A-CAR
OXFORDSHIRE CC,ENTERPRISEVC,,CAR LEASING - PRIVATE RENTALS,27/03/2019,000008412565373,26.16,ENTERPRISE RENT-A-CAR
OXFORDSHIRE CC,ENTERPRISEVC,,CAR LEASING - PRIVATE RENTALS,27/03/2019,000008412565375,65.02,ENTERPRISE RENT-A-CAR
OXFORDSHIRE CC,ENTERPRISEVC,,CAR LEASING - PRIVATE RENTALS,27/03/2019,000008412565377,91.43,ENTERPRISE RENT-A-CAR
OXFORDSHIRE CC,ENTERPRISEVC,,CAR LEASING - PRIVATE RENTALS,27/03/2019,000008412565379,43.18,ENTERPRISE RENT-A-CAR
OXFORDSHIRE CC,ENTERPRISEVC,,CAR LEASING - PRIVATE RENTALS,27/03/2019,000008412565381,52.85,ENTERPRISE RENT-A-CAR
OXFORDSHIRE CC,ENTERPRISEVC,,CAR LEASING - PRIVATE RENTALS,27/03/2019,000008412565383,52.75,ENTERPRISE RENT-A-CAR
OXFORDSHIRE CC,ENTERPRISEVC,,CAR LEASING - PRIVATE RENTALS,27/03/2019,000008412565385,34.21,ENTERPRISE RENT-A-CAR
OXFORDSHIRE CC,ENVIRONMENT AND ECONOMY,HARD FM,HARDWARE AND CROCKERY,27/03/2019,000008412565007,71.64,JOHN NICHOLLS KIDLINGT
OXFORDSHIRE CC,ENVIRONMENT AND ECONOMY,HARD FM,GENERAL MAINTENANCE,27/03/2019,000008412565009,23.17, WOLSELEY UK
OXFORDSHIRE CC,"CHILDRENS, YOUNG PEOPLE AND FAMILIES",THAME E&A HOME,CATERING,27/03/2019,000008412565011,12.15,COSTA COFFEE 43041630
OXFORDSHIRE CC,"CHILDRENS, YOUNG PEOPLE AND FAMILIES","	40 THE MOORS",CATERING,27/03/2019,000008412565255,129.95,BOOKER LIMITED OXFORD
OXFORDSHIRE CC,"CHILDRENS, YOUNG PEOPLE AND FAMILIES","	40 THE MOORS",HARDWARE AND CROCKERY,27/03/2019,000008412565257,12.98,WICKES OXFORD
OXFORDSHIRE CC,SOCIAL AND COMMUNITY SERVICES,CSS - BANBURY,EDUCATIONAL AND VOCATIONAL TRAINING ,27/03/2019,000008412565259,288.00,THRIVE INTERNET
OXFORDSHIRE CC,CORPORATE CORE,"	PERSONNEL",PRINTING,27/03/2019,000008412565267,538.80,INFORMA UK ECOM GB
OXFORDSHIRE CC,SOCIAL AND COMMUNITY SERVICES,"	OPERATIONAL COSTS",CATERING PROVISIONS,27/03/2019,000008412565269,6.00,SAINSBURYS SACAT 6211
OXFORDSHIRE CC,"CHILDRENS, YOUNG PEOPLE AND FAMILIES","	LOOKED AFTER CITY 1",REGISTRATION AND INSPECTION FEES,27/03/2019,000008412564903,22.00,OCC REGISTRARS (M)
OXFORDSHIRE CC,SOCIAL AND COMMUNITY SERVICES,LOOKED AFTER SOUTH,VEHICLE FUEL,27/03/2019,000008412564907,36.69,MARLBOROUGH RD 395
OXFORDSHIRE CC,"CHILDRENS, YOUNG PEOPLE AND FAMILIES",DIDCOT MOVE-ON HOME,CATERING PROVISIONS,27/03/2019,000008412565291,2.00,SAINSBURYS SACAT 2067
OXFORDSHIRE CC,"CHILDRENS, YOUNG PEOPLE AND FAMILIES","	LEAVING CARE SOUTH",PAYMENTS TO TRANSPORT OPERATORS,27/03/2019,000008412564935,19.80,WWW.GWR.COM
OXFORDSHIRE CC,SOCIAL AND COMMUNITY SERVICES,"	LEADERSHIP TEAM",PAYMENTS TO TRANSPORT OPERATORS,27/03/2019,000008412565299,-63.30,WWW.GWR.COM
OXFORDSHIRE CC,"CHILDRENS, YOUNG PEOPLE AND FAMILIES",UASC POST 18,MANAGEMENT CONSULTANT FEES,27/03/2019,000008412565301,218.42,JACOBS
OXFORDSHIRE CC,"CHILDRENS, YOUNG PEOPLE AND FAMILIES",OYMT,HIRE OF EQUIPMENT,27/03/2019,000008412565303,"3,500.00",SCENIC PROJECTS LTD
OXFORDSHIRE CC,SOCIAL AND COMMUNITY SERVICES,COMMISSIONING ADMIN,STATIONERY,27/03/2019,000008412565305,12.00,TIMPSON LTD
OXFORDSHIRE CC,"CHILDRENS, YOUNG PEOPLE AND FAMILIES","	LEAVING CARE CITY 2",OTHER EXPENSES,27/03/2019,000008412565309,147.95,WWW.ARGOS.CO.UK
OXFORDSHIRE CC,"CHILDRENS, YOUNG PEOPLE AND FAMILIES",UASC POST 18,CLOTHING AND UNIFORMS,27/03/2019,000008412565311,25.00,J D SPORTS FASHION
OXFORDSHIRE CC,"CHILDRENS, YOUNG PEOPLE AND FAMILIES","	LEAVING CARE SOUTH",PAYMENTS TO TRANSPORT OPERATORS,27/03/2019,000008412564937,30.10,WWW.GWR.COM
OXFORDSHIRE CC,"CHILDRENS, YOUNG PEOPLE AND FAMILIES","	RESIDENTIAL STRATEGY",CATERING PROVISIONS,27/03/2019,000008412564943,2.10,CO-OPERATIVE FOOD
OXFORDSHIRE CC,"CHILDRENS, YOUNG PEOPLE AND FAMILIES",EYNSHAM,CATERING,27/03/2019,000008412564945,5.15,CO-OPERATIVE FOOD
OXFORDSHIRE CC,"CHILDRENS, YOUNG PEOPLE AND FAMILIES","	MALTFIELD HOUSE",MATERIALS,27/03/2019,000008412564947,5.99,ARGOS KIDLINGTON INSID
OXFORDSHIRE CC,"CHILDRENS, YOUNG PEOPLE AND FAMILIES","	OSCB",CATERING PROVISIONS,27/03/2019,000008412564951,6.60,MARKS&SPENCER PLC
OXFORDSHIRE CC,"CHILDRENS, YOUNG PEOPLE AND FAMILIES","	40 THE MOORS",HARDWARE AND CROCKERY,27/03/2019,000008412565319,10.00,WICKES OXFORD
OXFORDSHIRE CC,ENVIRONMENT AND ECONOMY,"	MINERALS & WASTE",PAYMENTS TO TRANSPORT OPERATORS,27/03/2019,000008412565127,86.30,WWW.GWR.COM
OXFORDSHIRE CC,"CHILDRENS, YOUNG PEOPLE AND FAMILIES","	MUSIC UNALLOCABLE","PUBLICITY, PROMOTIONS AND ADVERTISEMENT",27/03/2019,000008412565129,22.80,PAYPAL  CONCERTDIAR
OXFORDSHIRE CC,"CHILDRENS, YOUNG PEOPLE AND FAMILIES","	LOOKED AFTER CITY 2",RECRUTIMENT EXPENSES (EXCL. ADVERTISING),27/03/2019,000008412565131,"1,006.01",REED SPECIALIST
OXFORDSHIRE CC,SOCIAL AND COMMUNITY SERVICES,CSS - OXFORD,EQUIPMENT,27/03/2019,000008412565133,6.59,AMZN MKTP UK MZ07W0OR4
OXFORDSHIRE CC,SOCIAL AND COMMUNITY SERVICES,CSS - OXFORD,DRUGS AND MEDICAL SUPPLIES,27/03/2019,000008412565135,5.99,AMZN MKTP UK MZ7WD2OJ4
OXFORDSHIRE CC,SOCIAL AND COMMUNITY SERVICES,CSS - OXFORD,DRUGS AND MEDICAL SUPPLIES,27/03/2019,000008412565137,2.19,AMZN MKTP UK MZ9643OV4
OXFORDSHIRE CC,SOCIAL AND COMMUNITY SERVICES,CSS - OXFORD,MATERIALS,27/03/2019,000008412565139,99.00,AMAZON.CO.UK MZ5XW7OT4
OXFORDSHIRE CC,SOCIAL AND COMMUNITY SERVICES,CSS - OXFORD,CATERING PROVISIONS,27/03/2019,000008412565141,11.35,TESCO STORE 2994
OXFORDSHIRE CC,"CHILDRENS, YOUNG PEOPLE AND FAMILIES","	DISABILITIES TEAM-C",MATERIALS,27/03/2019,000008412565151,103.95,WWW.ARGOS.CO.UK
OXFORDSHIRE CC,"CHILDRENS, YOUNG PEOPLE AND FAMILIES","	ASSESS TEAM CITY",HIRE OF ACCOMMODATION AND FACILITIES,27/03/2019,000008412565153,132.50,PREMIER INN
OXFORDSHIRE CC,ENVIRONMENT AND ECONOMY,"	LPP MANAGEMENT",PAYMENTS TO VOLUNTARY BODIES,27/03/2019,000008412565155,234.00,PAYPAL  RTPI
OXFORDSHIRE CC,CORPORATE CORE,INFORMATION MGT,STAFF SUBSISTENCE,27/03/2019,000008412565175,6.80,WWW.GWR.COM
OXFORDSHIRE CC,"CHILDRENS, YOUNG PEOPLE AND FAMILIES","	RIVERSIDE CENTRE",CATERING PROVISIONS,27/03/2019,000008412565183,30.41,CO-OPERATIVE FOOD
OXFORDSHIRE CC,SOCIAL AND COMMUNITY SERVICES,"	MTFC",CATERING PROVISIONS,27/03/2019,000008412565185,4.59,TESCO STORES 2994
OXFORDSHIRE CC,CORPORATE CORE,"	CORPORATE FINANCE",PAYMENTS TO TRANSPORT OPERATORS,27/03/2019,000008412565189,26.60,WWW.GWR.COM
OXFORDSHIRE CC,SOCIAL AND COMMUNITY SERVICES,"	MUSEUMS COLLECTIONS",OTHER SERVICES,27/03/2019,000008412565191,20.98,AMZN MKTP UK MZ4TB4OB4
OXFORDSHIRE CC,"CHILDRENS, YOUNG PEOPLE AND FAMILIES","	LEAVING CARE NORTH",OTHER TRANSPORT ARRANGEMENTS,27/03/2019,000008412565209,67.96,WWW.STORAGEBASE.COM
OXFORDSHIRE CC,"CHILDRENS, YOUNG PEOPLE AND FAMILIES","	LEAVING CARE NORTH",CATERING PROVISIONS,27/03/2019,000008412565211,10.00,WM MORRISONS STORE
OXFORDSHIRE CC,SOCIAL AND COMMUNITY SERVICES,CSS WANTAGE,CATERING PROVISIONS,27/03/2019,000008412565229,15.80,SAINSBURYS SACAT 2244
OXFORDSHIRE CC,"CHILDRENS, YOUNG PEOPLE AND FAMILIES",NTH EARLY HELP-WITNY,MATERIALS,27/03/2019,000008412565237,24.91,AMAZON.CO.UK MZ4WT8FC4
OXFORDSHIRE CC,ENVIRONMENT AND ECONOMY,"	FLEET OPERATIONS",VEHICLE FUEL,27/03/2019,000008412565241,120.90,ALLSTAR BUSINESS SOLUT
OXFORDSHIRE CC,"CHILDRENS, YOUNG PEOPLE AND FAMILIES","	FAMILY SUPPORT CITY3",OTHER EXPENSES,27/03/2019,000008412565247,-108.29,AMZ PCSANDPARTS
OXFORDSHIRE CC,"CHILDRENS, YOUNG PEOPLE AND FAMILIES","	LOOKED AFTER CITY 1",CATERING,27/03/2019,000008412565253,6.15,COSTA COFFEE
OXFORDSHIRE CC,CORPORATE CORE,BUSINESS SUPPORT,"SUPPLIES, STATIONERY AND MATERIALS",26/03/2019,000008408251459,609.92,EDENRED (INCENTIVES &
OXFORDSHIRE CC,CORPORATE CORE,RECHARGES SOC CARE,"SUPPLIES, STATIONERY AND MATERIALS",26/03/2019,000008408251459,609.92,EDENRED (INCENTIVES &
OXFORDSHIRE CC,CORPORATE CORE,CEF EYECARE VOUCHERS,"SUPPLIES, STATIONERY AND MATERIALS",26/03/2019,000008408251459,609.91,EDENRED (INCENTIVES &
OXFORDSHIRE CC,"CHILDRENS, YOUNG PEOPLE AND FAMILIES",DIDCOT MOVE-ON HOME,CATERING PROVISIONS,26/03/2019,000008408251465,22.18,SAINSBURYS SACAT 2067
OXFORDSHIRE CC,ENVIRONMENT AND ECONOMY,HENLEY LIBRARY,"NEWSPAPERS, PERIODICALS AND PUBLICATIONS",26/03/2019,000008408251477,35.60,BEST FOODS
OXFORDSHIRE CC,"CHILDRENS, YOUNG PEOPLE AND FAMILIES",UASC POST 18,OTHER TRANSPORT ARRANGEMENTS,26/03/2019,000008408251481,5.60,GWR OXFORD SST
OXFORDSHIRE CC,"CHILDRENS, YOUNG PEOPLE AND FAMILIES","	40 THE MOORS",CATERING PROVISIONS,26/03/2019,000008408251491,143.40,SAINSBURYS (2243)
OXFORDSHIRE CC,"CHILDRENS, YOUNG PEOPLE AND FAMILIES","	ASSESS TEAM CITY",CATERING,26/03/2019,000008408251499,20.50,INDIAN DREAM
OXFORDSHIRE CC,CORPORATE CORE,LIABILITY,INSUR AD HOLD ACC-E,26/03/2019,000008408251501,245.81,TRFSA   THOMSONREUTERS
OXFORDSHIRE CC,CORPORATE CORE,,"SUPPLIES, STATIONERY AND MATERIALS",26/03/2019,000008408251507,45.98,LYRECO UK LTD
OXFORDSHIRE CC,CORPORATE CORE,,"SUPPLIES, STATIONERY AND MATERIALS",26/03/2019,000008408251509,15.98,LYRECO UK LTD
OXFORDSHIRE CC,"CHILDRENS, YOUNG PEOPLE AND FAMILIES",CNTL ERLY HELP-BBLEY,CATERING PROVISIONS,26/03/2019,000008408251519,4.50,TESCO STORE 2990
OXFORDSHIRE CC,CORPORATE CORE,SNR LEADERSHIP TEAM,PAYMENTS TO TRANSPORT OPERATORS,26/03/2019,000008408251543,119.00,WWW.GWR.COM
OXFORDSHIRE CC,CORPORATE CORE,SNR LEADERSHIP TEAM,PAYMENTS TO TRANSPORT OPERATORS,26/03/2019,000008408251545,63.30,WWW.GWR.COM
OXFORDSHIRE CC,CORPORATE CORE,SNR LEADERSHIP TEAM,PAYMENTS TO TRANSPORT OPERATORS,26/03/2019,000008408251547,125.80,WWW.GWR.COM
OXFORDSHIRE CC,"CHILDRENS, YOUNG PEOPLE AND FAMILIES",EYNSHAM,DAY ACTIVITIES,26/03/2019,000008408251557,36.00,HEROS
OXFORDSHIRE CC,CORPORATE CORE,"	COMMUNICATIONS",IT SOFTWARE,26/03/2019,000008408251555,78.97,ADOBE  CREATIVE CLOUD
OXFORDSHIRE CC,SOCIAL AND COMMUNITY SERVICES,WITNEY MOVE ON HOME,CATERING PROVISIONS,26/03/2019,000008408251329,8.15,SAINSBURYS 0632
OXFORDSHIRE CC,SOCIAL AND COMMUNITY SERVICES,CSS - OXFORD,DISABILITY AIDS AND EQUIPMENT,26/03/2019,000008408251349,60.47,AMZN MKTP UK MW5875YV4
OXFORDSHIRE CC,"CHILDRENS, YOUNG PEOPLE AND FAMILIES","	RIVERSIDE CENTRE",EQUIPMENT,26/03/2019,000008408251373,15.00,REG TAYLOR CYCLE LTD
OXFORDSHIRE CC,SOCIAL AND COMMUNITY SERVICES,"	MTFC",CATERING PROVISIONS,26/03/2019,000008408251399,1.40,SAINSBURYS 2244
OXFORDSHIRE CC,CORPORATE CORE,"	CORPORATE FINANCE",PAYMENTS TO TRANSPORT OPERATORS,26/03/2019,000008408251401,73.30,WWW.GWR.COM
OXFORDSHIRE CC,CORPORATE CORE,"	CORPORATE FINANCE",PAYMENTS TO TRANSPORT OPERATORS,26/03/2019,000008408251403,73.30,WWW.GWR.COM
OXFORDSHIRE CC,"CHILDRENS, YOUNG PEOPLE AND FAMILIES","	MALTFIELD HOUSE",CATERING PROVISIONS,26/03/2019,000008408251419,73.23,SAINSBURYS TO YOU 0600
OXFORDSHIRE CC,ENVIRONMENT AND ECONOMY,"	LEP",OTHER TRANSPORT ARRANGEMENTS,26/03/2019,000008408251425,6.20,APCOA CONNECT - FGW
OXFORDSHIRE CC,SOCIAL AND COMMUNITY SERVICES,CSS WITNEY,CATERING PROVISIONS,26/03/2019,000008408251429,149.58,TESCO STORES 2008
OXFORDSHIRE CC,"CHILDRENS, YOUNG PEOPLE AND FAMILIES",NORTH FSS- WITNEY,REGISTRATION AND INSPECTION FEES,26/03/2019,000008408251435,22.00,OCC REGISTRARS (M)
OXFORDSHIRE CC,"CHILDRENS, YOUNG PEOPLE AND FAMILIES","	FAMILY SUPPORT CITY3",FURNITURE,26/03/2019,000008408251441,98.50,ASDA GEORGE COM LEEDS
OXFORDSHIRE CC,"CHILDRENS, YOUNG PEOPLE AND FAMILIES",EYNSHAM,CATERING,26/03/2019,000008408251559,4.04,TESCO PFS 2488
OXFORDSHIRE CC,SOCIAL AND COMMUNITY SERVICES,CSS - BANBURY,CATERING PROVISIONS,26/03/2019,000008408251205,73.27,SAINSBURYS TO YOU 0642
OXFORDSHIRE CC,SOCIAL AND COMMUNITY SERVICES,CSS BICESTER,CATERING PROVISIONS,26/03/2019,000008408251207,54.20,SAINSBURYS (2243)
OXFORDSHIRE CC,"CHILDRENS, YOUNG PEOPLE AND FAMILIES","	FAMILY SUPPORT S'TH2",PAYMENTS TO TRANSPORT OPERATORS,26/03/2019,000008408251215,123.00,WWW.GWR.COM
OXFORDSHIRE CC,"CHILDRENS, YOUNG PEOPLE AND FAMILIES",ADMINISTRATION,PAYMENTS TO TRANSPORT OPERATORS,26/03/2019,000008408251219,35.97,TRAINLINE
OXFORDSHIRE CC,CORPORATE CORE,SCHOOLS FM,FURNITURE,26/03/2019,000008408251231,167.99,DUNELM LTD
OXFORDSHIRE CC,"CHILDRENS, YOUNG PEOPLE AND FAMILIES",THAME E&A HOME,CATERING PROVISIONS,26/03/2019,000008408251237,10.35,COSTA FARINGDON
OXFORDSHIRE CC,ENVIRONMENT AND ECONOMY,HARD FM,GENERAL MAINTENANCE,26/03/2019,000008408251245,869.41, WOLSELEY UK
OXFORDSHIRE CC,ENVIRONMENT AND ECONOMY,HARD FM,GENERAL MAINTENANCE,26/03/2019,000008408251247,-869.41, WOLSELEY UK
OXFORDSHIRE CC,ENVIRONMENT AND ECONOMY,HARD FM,HARDWARE AND CROCKERY,26/03/2019,000008408251249,54.74,JOHN NICHOLLS KIDLINGT
OXFORDSHIRE CC,ENVIRONMENT AND ECONOMY,HARD FM,HARDWARE AND CROCKERY,26/03/2019,000008408251251,433.87,TRAVIS PERKINS
OXFORDSHIRE CC,ENVIRONMENT AND ECONOMY,HARD FM,HARDWARE AND CROCKERY,26/03/2019,000008408251253,39.10,CITY PLUMBING
OXFORDSHIRE CC,ENVIRONMENT AND ECONOMY,HARD FM,GENERAL MAINTENANCE,26/03/2019,000008408251255,19.63, WOLSELEY UK
OXFORDSHIRE CC,"CHILDRENS, YOUNG PEOPLE AND FAMILIES",THAME E&A HOME,CATERING PROVISIONS,26/03/2019,000008408251273,108.70,SAINSBURYS TO YOU 0600
OXFORDSHIRE CC,"CHILDRENS, YOUNG PEOPLE AND FAMILIES",THAME E&A HOME,"BOOKS, DVDS AND CDS",26/03/2019,000008408251275,31.99,AMZN MKTP UK MZ1DF2CT4
OXFORDSHIRE CC,"CHILDRENS, YOUNG PEOPLE AND FAMILIES","	RIVERSIDE CENTRE",EDUCATIONAL AND VOCATIONAL TRAINING ,26/03/2019,000008408251277,60.00,PROTRAININGS
OXFORDSHIRE CC,"CHILDRENS, YOUNG PEOPLE AND FAMILIES",THAME E&A HOME,CATERING,26/03/2019,000008408251313,11.48,MCDONALDS
OXFORDSHIRE CC,"CHILDRENS, YOUNG PEOPLE AND FAMILIES",NORTH FSS- BANBURY,PAYMENT TO GOVERNMENT DEPARTMENTS,26/03/2019,000008408251319,45.25,GEN REGISTER OFFICE
OXFORDSHIRE CC,"CHILDRENS, YOUNG PEOPLE AND FAMILIES",NORTH FSS- BANBURY,PAYMENT TO GOVERNMENT DEPARTMENTS,26/03/2019,000008408251321,25.00,WWW.CITIZENCARD.COM
OXFORDSHIRE CC,"CHILDRENS, YOUNG PEOPLE AND FAMILIES",DIDCOT MOVE-ON HOME,CATERING,26/03/2019,000008408251323,4.75,COSTA COFFEE
OXFORDSHIRE CC,SOCIAL AND COMMUNITY SERVICES,SCHOOLS FM,CATERING PROVISIONS,26/03/2019,000008408251325,18.00,Q GARDENS FARM SHOP
OXFORDSHIRE CC,SOCIAL AND COMMUNITY SERVICES,WITNEY MOVE ON HOME,CATERING PROVISIONS,26/03/2019,000008408251327,27.00,SAINSBURYS 0632
OXFORDSHIRE CC,"CHILDRENS, YOUNG PEOPLE AND FAMILIES","	40 THE MOORS",MATERIALS,25/03/2019,000008400798669,4.99,PRODUCT SUPPORT AG
OXFORDSHIRE CC,SOCIAL AND COMMUNITY SERVICES,CSS - BANBURY,HEALTH AND SAFETY EQUIPMENT,25/03/2019,000008400798671,16.49,SP   MEDPAC
OXFORDSHIRE CC,"CHILDRENS, YOUNG PEOPLE AND FAMILIES","	RESIDENTIAL STRATEGY",CATERING,25/03/2019,000008400798611,23.60,KOLKATA
OXFORDSHIRE CC,"CHILDRENS, YOUNG PEOPLE AND FAMILIES","	ADOPTION",CATERING PROVISIONS,25/03/2019,000008400798615,27.50,MARKS&SPENCER PLC
OXFORDSHIRE CC,ENVIRONMENT AND ECONOMY,HARD FM,GENERAL MAINTENANCE,25/03/2019,000008400798435,241.61, WOLSELEY UK
OXFORDSHIRE CC,ENVIRONMENT AND ECONOMY,HARD FM,HARDWARE AND CROCKERY,25/03/2019,000008400798437,24.99,SCREWFIX ABINGDON
OXFORDSHIRE CC,ENVIRONMENT AND ECONOMY,HARD FM,EQUIPMENT,25/03/2019,000008400798439,117.60,WILTS ELECTRICAL
OXFORDSHIRE CC,ENVIRONMENT AND ECONOMY,HARD FM,MATERIALS,25/03/2019,000008400798441,83.94,TLC SOUTHERN LTD
OXFORDSHIRE CC,ENVIRONMENT AND ECONOMY,HARD FM,EQUIPMENT,25/03/2019,000008400798443,27.93,WILTS ELECTRICAL
OXFORDSHIRE CC,"CHILDRENS, YOUNG PEOPLE AND FAMILIES",THAME E&A HOME,CATERING,25/03/2019,000008400798445,11.89,MCDONALDS
OXFORDSHIRE CC,"CHILDRENS, YOUNG PEOPLE AND FAMILIES",THAME E&A HOME,CATERING PROVISIONS,25/03/2019,000008400798447,17.59,TESCO STORES 6748
OXFORDSHIRE CC,"CHILDRENS, YOUNG PEOPLE AND FAMILIES",THAME E&A HOME,MATERIALS,25/03/2019,000008400798449,-7.99,AMAZON PRIME
OXFORDSHIRE CC,"CHILDRENS, YOUNG PEOPLE AND FAMILIES",CSS - ABINGDON,"NEWSPAPERS, PERIODICALS AND PUBLICATIONS",25/03/2019,000008400798451,62.40,ER GOFF
OXFORDSHIRE CC,"CHILDRENS, YOUNG PEOPLE AND FAMILIES","	MALTFIELD HOUSE",CATERING PROVISIONS,25/03/2019,000008400798635,73.55,SAINSBURYS TO YOU 0600
OXFORDSHIRE CC,"CHILDRENS, YOUNG PEOPLE AND FAMILIES","	FAMILY SUPPORT CITY3",POSTAGE AND DELIVERY,25/03/2019,000008400798647,1.77,THE POST OFFICE
OXFORDSHIRE CC,ENVIRONMENT AND ECONOMY,"	LEP",PAYMENTS TO TRANSPORT OPERATORS,25/03/2019,000008400798641,76.11,TRAINLINE
OXFORDSHIRE CC,SOCIAL AND COMMUNITY SERVICES,CSS WALLINGFORD,CATERING PROVISIONS,25/03/2019,000008400798473,19.20,WAITROSE 675
OXFORDSHIRE CC,"CHILDRENS, YOUNG PEOPLE AND FAMILIES",THAME E&A HOME,SUBSCRIPTIONS,25/03/2019,000008400798461,25.20,OXFORD ICE RINK
OXFORDSHIRE CC,"CHILDRENS, YOUNG PEOPLE AND FAMILIES",WITNEY,OTHER TRANSPORT ARRANGEMENTS,25/03/2019,000008400798463,3.50,WESTGATE OXFORD CAR PA
OXFORDSHIRE CC,"CHILDRENS, YOUNG PEOPLE AND FAMILIES",NTH FAM SUPRT-BCSTR,PAYMENTS TO TRANSPORT OPERATORS,25/03/2019,000008400798467,41.75,WWW.GWR.COM
OXFORDSHIRE CC,"CHILDRENS, YOUNG PEOPLE AND FAMILIES",NORTH FSS- WITNEY,PAYMENTS TO TRANSPORT OPERATORS,25/03/2019,000008400798469,79.40,WWW.GWR.COM
OXFORDSHIRE CC,"CHILDRENS, YOUNG PEOPLE AND FAMILIES",CNTL EARLY HELP-BRTN,CATERING PROVISIONS,25/03/2019,000008400798649,72.10,CO-OPERATIVE FOOD
OXFORDSHIRE CC,"CHILDRENS, YOUNG PEOPLE AND FAMILIES","	FAMILY SUPPORT CITY3",CATERING,25/03/2019,000008400798651,133.24,TESCO STORE 2919
OXFORDSHIRE CC,SOCIAL AND COMMUNITY SERVICES,"	MUSEUMS COLLECTIONS",SUBSCRIPTIONS,25/03/2019,000008400798571,13.00,PAYPAL  OLHA
OXFORDSHIRE CC,"CHILDRENS, YOUNG PEOPLE AND FAMILIES","	LOOKED AFTER CITY 2",VEHICLE FUEL,25/03/2019,000008400798575,60.53,SHELL COWLEY
OXFORDSHIRE CC,"CHILDRENS, YOUNG PEOPLE AND FAMILIES","	40 THE MOORS",CATERING PROVISIONS,25/03/2019,000008400798745,133.89,SAINSBURYS (2243)
OXFORDSHIRE CC,CORPORATE CORE,,"SUPPLIES, STATIONERY AND MATERIALS",25/03/2019,000008400798747,527.30,LYRECO UK LTD
OXFORDSHIRE CC,CORPORATE CORE,,"SUPPLIES, STATIONERY AND MATERIALS",25/03/2019,000008400798749,107.17,LYRECO UK LTD
OXFORDSHIRE CC,ENVIRONMENT AND ECONOMY,"	SAMUELSON HOUSE",LAUNDRY AND DRY CLEANING,25/03/2019,000008400798753,7.00,BANBURY SHOE REPAIR AN
OXFORDSHIRE CC,"CHILDRENS, YOUNG PEOPLE AND FAMILIES",EDT,CATERING PROVISIONS,25/03/2019,000008400798755,49.93,SAINSBURYS 0600
OXFORDSHIRE CC,"CHILDRENS, YOUNG PEOPLE AND FAMILIES",EIS ADMIN,PAYMENTS TO TRANSPORT OPERATORS,25/03/2019,000008400798761,76.11,TRAINLINE
OXFORDSHIRE CC,"CHILDRENS, YOUNG PEOPLE AND FAMILIES",MANAGEMENT,PAYMENTS TO TRANSPORT OPERATORS,25/03/2019,000008400798763,32.00,TRAINLINE
OXFORDSHIRE CC,"CHILDRENS, YOUNG PEOPLE AND FAMILIES",THAME E&A HOME,CATERING PROVISIONS,25/03/2019,000008400798397,86.33,SAINSBURYS 2096
OXFORDSHIRE CC,"CHILDRENS, YOUNG PEOPLE AND FAMILIES",THAME E&A HOME,VEHICLE FUEL,25/03/2019,000008400798399,13.85,THAME BP SF CONNECT
OXFORDSHIRE CC,"CHILDRENS, YOUNG PEOPLE AND FAMILIES",THAME E&A HOME,VEHICLE FUEL,25/03/2019,000008400798401,7.50,THAME BP SF CONNECT
OXFORDSHIRE CC,ENVIRONMENT AND ECONOMY,"	LEP",IT SOFTWARE,25/03/2019,000008400798411,248.32,BAMBOOHR HRIS
OXFORDSHIRE CC,"CHILDRENS, YOUNG PEOPLE AND FAMILIES",THAME E&A HOME,VEHICLE FUEL,25/03/2019,000008400798403,2.00,THAME BP SF CONNECT
OXFORDSHIRE CC,"CHILDRENS, YOUNG PEOPLE AND FAMILIES",WITNEY,CATERING PROVISIONS,25/03/2019,000008400798405,7.80,SAINSBURYS SACAT 0632
OXFORDSHIRE CC,ENVIRONMENT AND ECONOMY,"	LEP",IT SOFTWARE,25/03/2019,000008400798407,6.67,WORKABLE
OXFORDSHIRE CC,ENVIRONMENT AND ECONOMY,"	LEP",IT SOFTWARE,25/03/2019,000008400798409,6.67,WORKABLE
OXFORDSHIRE CC,"CHILDRENS, YOUNG PEOPLE AND FAMILIES","	LOOKED AFTER CITY 2",PAYMENTS TO TRANSPORT OPERATORS,25/03/2019,000008400798577,19.70,SE CHARING CROSS SST
OXFORDSHIRE CC,"CHILDRENS, YOUNG PEOPLE AND FAMILIES",CNTL EARLY HELP-RHIL,CATERING,25/03/2019,000008400798595,41.97,WWW.DOMINOS.CO.UK
OXFORDSHIRE CC,CORPORATE CORE,"	LEGAL SERVICES",PROFESSIONAL SUBSCRIPTIONS,25/03/2019,000008400798597,246.00,WWW.BARPROFESSIONALTRA
OXFORDSHIRE CC,CORPORATE CORE,"	LEGAL SERVICES",POSTAGE AND DELIVERY,25/03/2019,000008400798599,118.80,ROYAL MAIL GROUP
OXFORDSHIRE CC,"CHILDRENS, YOUNG PEOPLE AND FAMILIES",C&F - TF CONTRIB,PAYMENTS TO TRANSPORT OPERATORS,25/03/2019,000008400798777,6.80,WWW.GWR.COM
OXFORDSHIRE CC,"CHILDRENS, YOUNG PEOPLE AND FAMILIES",C&F - TF CONTRIB,PAYMENTS TO TRANSPORT OPERATORS,25/03/2019,000008400798779,66.50,WWW.GWR.COM
OXFORDSHIRE CC,CORPORATE CORE,"	COMMUNICATIONS","PUBLICITY, PROMOTIONS AND ADVERTISEMENT",25/03/2019,000008400798781,500.00,FACEBK  YUSFHKN9Z2
OXFORDSHIRE CC,CORPORATE CORE,"	COMMUNICATIONS",MATERIALS,25/03/2019,000008400798783,500.00,GOOGLE  ADS4896546035
OXFORDSHIRE CC,"CHILDRENS, YOUNG PEOPLE AND FAMILIES",EYNSHAM,CATERING,25/03/2019,000008400798785,103.30,TESCO STORES 2008
OXFORDSHIRE CC,"CHILDRENS, YOUNG PEOPLE AND FAMILIES",EYNSHAM,FURNITURE,25/03/2019,000008400798787,78.00,DUNELM (SOFT FURNISHIN
OXFORDSHIRE CC,"CHILDRENS, YOUNG PEOPLE AND FAMILIES",EYNSHAM,CATERING,25/03/2019,000008400798789,6.99,TESCO DELIVERY SAVER2
OXFORDSHIRE CC,ENVIRONMENT AND ECONOMY,"	LEP",CATERING,25/03/2019,000008400798413,50.00,THE JAM FACTORY OXFORD
OXFORDSHIRE CC,ENVIRONMENT AND ECONOMY,HARD FM,EQUIPMENT,25/03/2019,000008400798431,33.51,WILTS ELECTRICAL
OXFORDSHIRE CC,ENVIRONMENT AND ECONOMY,HARD FM,MATERIALS,25/03/2019,000008400798433,46.98,TOOLSTATION LTD
OXFORDSHIRE CC,"CHILDRENS, YOUNG PEOPLE AND FAMILIES","	RIVERSIDE CENTRE",CATERING PROVISIONS,25/03/2019,000008400798603,13.68,TESCO STORES 4377
OXFORDSHIRE CC,"CHILDRENS, YOUNG PEOPLE AND FAMILIES","	LOOKED AFTER CITY 1",OTHER TRANSPORT ARRANGEMENTS,25/03/2019,000008400798705,114.75,WWW.THEKEY.CO.UK
OXFORDSHIRE CC,"CHILDRENS, YOUNG PEOPLE AND FAMILIES","	LOOKED AFTER CITY 1",HIRE OF ACCOMMODATION AND FACILITIES,25/03/2019,000008400798707,70.50,PREMIER INN
OXFORDSHIRE CC,"CHILDRENS, YOUNG PEOPLE AND FAMILIES",BULLINGDON PRISON,MATERIALS,25/03/2019,000008400798709,13.94,AMAZON.CO.UK MW8YD3IR4
OXFORDSHIRE CC,"CHILDRENS, YOUNG PEOPLE AND FAMILIES","	40 THE MOORS",CLOTHING AND UNIFORMS,25/03/2019,000008400798719,46.99,SCHUH LIMITED
OXFORDSHIRE CC,"CHILDRENS, YOUNG PEOPLE AND FAMILIES","	MUSIC UNALLOCABLE","BOOKS, DVDS AND CDS",25/03/2019,000008400798711,.79,ITUNES.COM/BILL
OXFORDSHIRE CC,ENVIRONMENT AND ECONOMY,MEMBERS SERVICES,PAYMENTS TO TRANSPORT OPERATORS,25/03/2019,000008400798713,20.00,OYSTER AUTO-TOP UP
OXFORDSHIRE CC,"CHILDRENS, YOUNG PEOPLE AND FAMILIES","	LOOKED AFTER NORTH",REGISTRATION AND INSPECTION FEES,25/03/2019,000008400798715,44.00,OCC REGISTRARS (M)
OXFORDSHIRE CC,"CHILDRENS, YOUNG PEOPLE AND FAMILIES",EYNSHAM,CATERING PROVISIONS,25/03/2019,000008400798345,3.00,SPAR EYNSHAM
OXFORDSHIRE CC,SOCIAL AND COMMUNITY SERVICES,LOOKED AFTER NORTH,CATERING PROVISIONS,25/03/2019,000008400798353,10.00,WM MORRISONS STORE
OXFORDSHIRE CC,SOCIAL AND COMMUNITY SERVICES,LOOKED AFTER NORTH,MATERIALS,25/03/2019,000008400798355,23.94,WWW.ARGOS.CO.UK
OXFORDSHIRE CC,"CHILDRENS, YOUNG PEOPLE AND FAMILIES","	RESIDENTIAL STRATEGY",CATERING,25/03/2019,000008400798357,8.90,STARBUCKS
OXFORDSHIRE CC,"CHILDRENS, YOUNG PEOPLE AND FAMILIES","	RESIDENTIAL STRATEGY",CATERING PROVISIONS,25/03/2019,000008400798359,25.10,TESCO STORE 2640
OXFORDSHIRE CC,"CHILDRENS, YOUNG PEOPLE AND FAMILIES","	RESIDENTIAL STRATEGY",CLOTHING AND UNIFORMS,25/03/2019,000008400798367,3.50,CLAIRE'S ACCESSORIES
OXFORDSHIRE CC,"CHILDRENS, YOUNG PEOPLE AND FAMILIES","	RESIDENTIAL STRATEGY",DRUGS AND MEDICAL SUPPLIES,25/03/2019,000008400798361,.84,BOOTS
OXFORDSHIRE CC,"CHILDRENS, YOUNG PEOPLE AND FAMILIES","	RESIDENTIAL STRATEGY",CATERING,25/03/2019,000008400798363,10.60,COSTA COFFEE 43040170
OXFORDSHIRE CC,"CHILDRENS, YOUNG PEOPLE AND FAMILIES","	RESIDENTIAL STRATEGY",MATERIALS,25/03/2019,000008400798365,16.20,POUNDLAND LTD 1706
OXFORDSHIRE CC,"CHILDRENS, YOUNG PEOPLE AND FAMILIES","	MUSIC UNALLOCABLE",OTHER EXPENSES,25/03/2019,000008400798549,8.30,AMZN MKTP UK MW0OZ5W24
OXFORDSHIRE CC,"CHILDRENS, YOUNG PEOPLE AND FAMILIES","	RESIDENTIAL STRATEGY",HIRE OF ACCOMMODATION AND FACILITIES,25/03/2019,000008400798551,600.00,BUCKINGHAM HOTELS
OXFORDSHIRE CC,"CHILDRENS, YOUNG PEOPLE AND FAMILIES","	MUSIC UNALLOCABLE",OTHER EXPENSES,25/03/2019,000008400798547,58.23,AMZN MKTP UK MW4S40I74
OXFORDSHIRE CC,"CHILDRENS, YOUNG PEOPLE AND FAMILIES","	40 THE MOORS",CATERING,25/03/2019,000008400798721,110.04,FRANKIE & BENNYS 5389
OXFORDSHIRE CC,"CHILDRENS, YOUNG PEOPLE AND FAMILIES","	40 THE MOORS",HOSPITALITY EXPENSES,25/03/2019,000008400798723,7.50,JS SPORTS BAR
OXFORDSHIRE CC,"CHILDRENS, YOUNG PEOPLE AND FAMILIES","	40 THE MOORS",HOSPITALITY EXPENSES,25/03/2019,000008400798725,7.50,JS SPORTS BAR
OXFORDSHIRE CC,"CHILDRENS, YOUNG PEOPLE AND FAMILIES","	40 THE MOORS",HOSPITALITY EXPENSES,25/03/2019,000008400798727,6.00,JS SPORTS BAR
OXFORDSHIRE CC,"CHILDRENS, YOUNG PEOPLE AND FAMILIES","	40 THE MOORS",PAYMENTS TO TRANSPORT OPERATORS,25/03/2019,000008400798729,11.04,TRAINLINE
OXFORDSHIRE CC,"CHILDRENS, YOUNG PEOPLE AND FAMILIES","	40 THE MOORS",RESIDENTIAL ACTIVITIES,25/03/2019,000008400798731,32.81,PLAYWITHTHEBEST.COM
OXFORDSHIRE CC,"CHILDRENS, YOUNG PEOPLE AND FAMILIES","	LOOKED AFTER NORTH",MATERIALS,25/03/2019,000008400798743,4.39,WH SMITH
OXFORDSHIRE CC,"CHILDRENS, YOUNG PEOPLE AND FAMILIES","	LEAVING CARE SOUTH",MATERIALS,25/03/2019,000008400798735,328.93,WWW.ARGOS.CO.UK
OXFORDSHIRE CC,"CHILDRENS, YOUNG PEOPLE AND FAMILIES",WITNEY,OTHER TRANSPORT ARRANGEMENTS,25/03/2019,000008400798737,3.50,WESTGATE OXFORD CAR PA
OXFORDSHIRE CC,"CHILDRENS, YOUNG PEOPLE AND FAMILIES",WITNEY,CATERING,25/03/2019,000008400798739,45.50,NANDOS GEORGE STREET
OXFORDSHIRE CC,"CHILDRENS, YOUNG PEOPLE AND FAMILIES","	LOOKED AFTER NORTH",POSTAGE AND DELIVERY,25/03/2019,000008400798741,1.26,POST OFFICE COUNTER
OXFORDSHIRE CC,"CHILDRENS, YOUNG PEOPLE AND FAMILIES","	OSCB",CATERING PROVISIONS,25/03/2019,000008400798371,12.60,MARKS&SPENCER PLC
OXFORDSHIRE CC,ENVIRONMENT AND ECONOMY,"	BRIDGES GENERAL",EQUIPMENT,25/03/2019,000008400798553,311.75,AQUAFAX LTD
OXFORDSHIRE CC,"CHILDRENS, YOUNG PEOPLE AND FAMILIES","	ASSESS TEAM CITY",HIRE OF ACCOMMODATION AND FACILITIES,25/03/2019,000008400798561,255.50,PREMIER INN
OXFORDSHIRE CC,"CHILDRENS, YOUNG PEOPLE AND FAMILIES","	LOOKED AFTER CITY 2",OTHER TRANSPORT ARRANGEMENTS,25/03/2019,000008400798573,6.40,M6 TOLL
OXFORDSHIRE CC,"CHILDRENS, YOUNG PEOPLE AND FAMILIES",EYNSHAM,CATERING PROVISIONS,25/03/2019,000008400798483,2.14,CO-OPERATIVE FOOD
OXFORDSHIRE CC,CORPORATE CORE,"	CHAIRMANS ALLOWANCE",PHOTOCOPYING,25/03/2019,000008400798485,7.00,OXFORD PRINT CENTRE
OXFORDSHIRE CC,"CHILDRENS, YOUNG PEOPLE AND FAMILIES",THAME E&A HOME,CATERING PROVISIONS,25/03/2019,000008400798487,15.04,TESCO STORES 2008
OXFORDSHIRE CC,"CHILDRENS, YOUNG PEOPLE AND FAMILIES",THAME E&A HOME,CATERING,25/03/2019,000008400798489,2.48,MCDONALDS
OXFORDSHIRE CC,"CHILDRENS, YOUNG PEOPLE AND FAMILIES",THAME E&A HOME,CATERING,25/03/2019,000008400798491,2.46,MCDONALDS
OXFORDSHIRE CC,"CHILDRENS, YOUNG PEOPLE AND FAMILIES",THAME E&A HOME,ENTERTAINMENT EXPENSES,25/03/2019,000008400798493,42.98,WOBURN SAFARI ADMISSIO
OXFORDSHIRE CC,"CHILDRENS, YOUNG PEOPLE AND FAMILIES",THAME E&A HOME,MATERIALS,25/03/2019,000008400798495,6.00,POUNDLAND LTD 1586
OXFORDSHIRE CC,"CHILDRENS, YOUNG PEOPLE AND FAMILIES",THAME E&A HOME,CATERING,25/03/2019,000008400798497,10.97,MCDONALDS
OXFORDSHIRE CC,"CHILDRENS, YOUNG PEOPLE AND FAMILIES",THAME E&A HOME,CATERING PROVISIONS,25/03/2019,000008400798499,5.92,ASDA SUPERSTORE
OXFORDSHIRE CC,"CHILDRENS, YOUNG PEOPLE AND FAMILIES","	MALTFIELD HOUSE",CATERING PROVISIONS,25/03/2019,000008400798501,11.14,CO-OPERATIVE FOOD
OXFORDSHIRE CC,"CHILDRENS, YOUNG PEOPLE AND FAMILIES","	MALTFIELD HOUSE",CATERING,25/03/2019,000008400798503,38.87,HARVESTER BRIDGE
OXFORDSHIRE CC,"CHILDRENS, YOUNG PEOPLE AND FAMILIES","	40 THE MOORS",HOSPITALITY EXPENSES,25/03/2019,000008400798675,11.25,JS SPORTS BAR
OXFORDSHIRE CC,"CHILDRENS, YOUNG PEOPLE AND FAMILIES","	40 THE MOORS",ENTERTAINMENT EXPENSES,25/03/2019,000008400798677,10.00,HOLLYWOOD BOWL
OXFORDSHIRE CC,SOCIAL AND COMMUNITY SERVICES,"	OPERATIONAL COSTS",CATERING,25/03/2019,000008400798679,244.35,ART CAFE
OXFORDSHIRE CC,"CHILDRENS, YOUNG PEOPLE AND FAMILIES","	40 THE MOORS",CATERING,25/03/2019,000008400798673,34.54,FRANKIE & BENNYS 5389
OXFORDSHIRE CC,"CHILDRENS, YOUNG PEOPLE AND FAMILIES",DIDCOT MOVE-ON HOME,CATERING PROVISIONS,25/03/2019,000008400798687,2.00,SAINSBURYS SACAT 2067
OXFORDSHIRE CC,"CHILDRENS, YOUNG PEOPLE AND FAMILIES",DIDCOT MOVE-ON HOME,CATERING PROVISIONS,25/03/2019,000008400798689,28.99,TESCO STORES 2413
OXFORDSHIRE CC,"CHILDRENS, YOUNG PEOPLE AND FAMILIES",DIDCOT MOVE-ON HOME,CATERING PROVISIONS,25/03/2019,000008400798691,36.50,SAINSBURYS 2067
OXFORDSHIRE CC,"CHILDRENS, YOUNG PEOPLE AND FAMILIES",EYNSHAM,MATERIALS,25/03/2019,000008400798341,14.00,THE WORKS
OXFORDSHIRE CC,"CHILDRENS, YOUNG PEOPLE AND FAMILIES",EYNSHAM,CATERING PROVISIONS,25/03/2019,000008400798343,3.47,CO-OPERATIVE FOOD
OXFORDSHIRE CC,SOCIAL AND COMMUNITY SERVICES,LOOKED AFTER SOUTH,POSTAGE AND DELIVERY,25/03/2019,000008400798333,3.54,POST OFFICE COUNTER
OXFORDSHIRE CC,"CHILDRENS, YOUNG PEOPLE AND FAMILIES",THAME E&A HOME,MATERIALS,25/03/2019,000008400798335,4.85,CLINTONS-155
OXFORDSHIRE CC,"CHILDRENS, YOUNG PEOPLE AND FAMILIES",NORTH FSS- BANBURY,PAYMENTS TO TRANSPORT OPERATORS,25/03/2019,000008400798505,19.70,WWW.GWR.COM
OXFORDSHIRE CC,ENVIRONMENT AND ECONOMY,"	E&I STAFF",OTHER TRANSPORT ARRANGEMENTS,25/03/2019,000008400798507,135.72,SWIFT GROUP OF COMPANI
OXFORDSHIRE CC,SOCIAL AND COMMUNITY SERVICES,WITNEY MOVE ON HOME,CATERING PROVISIONS,25/03/2019,000008400798509,78.73,SAINSBURYS TO YOU 0632
OXFORDSHIRE CC,ENVIRONMENT AND ECONOMY,THE RIDGEWAY,IT SOFTWARE,25/03/2019,000008400798513,3.15,10000BEDS.ORG 10000 BE
OXFORDSHIRE CC,ENVIRONMENT AND ECONOMY,"	MUSEUM DEV OFFICER",OTHER TRANSPORT ARRANGEMENTS,25/03/2019,000008400798701,.80,WYCOMBE DISTRICT COUNC
OXFORDSHIRE CC,"CHILDRENS, YOUNG PEOPLE AND FAMILIES","	LOOKED AFTER CITY 1",PAYMENTS TO TRANSPORT OPERATORS,25/03/2019,000008400798703,8.39,TRAINLINE
OXFORDSHIRE CC,ENVIRONMENT AND ECONOMY,HARD FM,VEHICLE FUEL,22/03/2019,000006284300808,10.99,SHELL WITNEY
OXFORDSHIRE CC,ENVIRONMENT AND ECONOMY,HARD FM,EQUIPMENT,22/03/2019,000006284300810,8.10,WILTS ELECTRICAL
OXFORDSHIRE CC,ENVIRONMENT AND ECONOMY,HARD FM,HARDWARE AND CROCKERY,22/03/2019,000006284300812,57.42,SCREWFIX ABINGDON
OXFORDSHIRE CC,ENVIRONMENT AND ECONOMY,HARD FM,EQUIPMENT,22/03/2019,000006284300814,45.89,BSS OXFORD
OXFORDSHIRE CC,ENVIRONMENT AND ECONOMY,HARD FM,HARDWARE AND CROCKERY,22/03/2019,000006284300816,19.99,SCREWFIX DIDCOT
OXFORDSHIRE CC,ENVIRONMENT AND ECONOMY,HARD FM,GENERAL MAINTENANCE,22/03/2019,000006284300818,294.62, WOLSELEY UK
OXFORDSHIRE CC,"CHILDRENS, YOUNG PEOPLE AND FAMILIES",THAME E&A HOME,CATERING PROVISIONS,22/03/2019,000006284300820,8.70,CO-OP GROUP FOOD
OXFORDSHIRE CC,"CHILDRENS, YOUNG PEOPLE AND FAMILIES",THAME E&A HOME,MATERIALS,22/03/2019,000006284300822,50.00,J D SPORTS
OXFORDSHIRE CC,ENVIRONMENT AND ECONOMY,COUNTY LIBRARY,HARDWARE AND CROCKERY,22/03/2019,000006284300824,79.98,SCREWFIX OXFORD
OXFORDSHIRE CC,SOCIAL AND COMMUNITY SERVICES,UASC 16&17,CATERING PROVISIONS,22/03/2019,000006284300826,5.16,WAITROSE 477
OXFORDSHIRE CC,"CHILDRENS, YOUNG PEOPLE AND FAMILIES","	MANAGEMENT & ADMIN",MATERIALS,22/03/2019,000006284301046,25.98,AMAZON.CO.UK MW6LE7UV4
OXFORDSHIRE CC,"CHILDRENS, YOUNG PEOPLE AND FAMILIES",DIDCOT MOVE-ON HOME,CATERING,22/03/2019,000006284301052,8.93,READING S/W COSTA KIOS
OXFORDSHIRE CC,"CHILDRENS, YOUNG PEOPLE AND FAMILIES",DIDCOT MOVE-ON HOME,CATERING,22/03/2019,000006284301054,20.35,READING S/W EL MEXICAN
OXFORDSHIRE CC,"CHILDRENS, YOUNG PEOPLE AND FAMILIES","	LOOKED AFTER CITY 1",PAYMENT TO GOVERNMENT DEPARTMENTS,22/03/2019,000006284301056,30.00,HMCTS-TV031
OXFORDSHIRE CC,SOCIAL AND COMMUNITY SERVICES,DIDOCT LIBRARY,MATERIALS,22/03/2019,000006284301058,1.00,WILKO RETAIL LIMIT
OXFORDSHIRE CC,SOCIAL AND COMMUNITY SERVICES,DIDOCT LIBRARY,CATERING PROVISIONS,22/03/2019,000006284301060,78.40,TWYFORD CONVENIENCE ST
OXFORDSHIRE CC,ENVIRONMENT AND ECONOMY,CITIES4PEOPLE,REGISTRATION AND INSPECTION FEES,22/03/2019,000006284301062,300.00,PAYPAL  TRAILUNKNOW
OXFORDSHIRE CC,SOCIAL AND COMMUNITY SERVICES,LOOKED AFTER SOUTH,VEHICLE FUEL,22/03/2019,000006284300752,57.57,MARLBOROUGH RD 395
OXFORDSHIRE CC,"CHILDRENS, YOUNG PEOPLE AND FAMILIES",KINGFISHER,CATERING,22/03/2019,000006284300972,4.81,MCDONALDS 682
OXFORDSHIRE CC,"CHILDRENS, YOUNG PEOPLE AND FAMILIES","	FAMILY SUPPORT CITY3",CATERING,22/03/2019,000006284300756,3.20,PRET A MANGER
OXFORDSHIRE CC,"CHILDRENS, YOUNG PEOPLE AND FAMILIES","	FAMILY SUPPORT CITY3",CATERING,22/03/2019,000006284300758,6.55,PRET A MANGER
OXFORDSHIRE CC,"CHILDRENS, YOUNG PEOPLE AND FAMILIES",EYNSHAM,OTHER EXPENSES,22/03/2019,000006284300762,3.50,PRIMARK 693
OXFORDSHIRE CC,"CHILDRENS, YOUNG PEOPLE AND FAMILIES",CSS WALLINGFORD,MATERIALS,22/03/2019,000006284300768,12.50,WAITROSE 675
OXFORDSHIRE CC,"CHILDRENS, YOUNG PEOPLE AND FAMILIES",CSS WALLINGFORD,CATERING PROVISIONS,22/03/2019,000006284300770,12.00,WAITROSE 675
OXFORDSHIRE CC,"CHILDRENS, YOUNG PEOPLE AND FAMILIES",CSS WALLINGFORD,MATERIALS,22/03/2019,000006284300772,7.50,WWW.HOBBYCRAFT.CO.UK
OXFORDSHIRE CC,"CHILDRENS, YOUNG PEOPLE AND FAMILIES",CSS WALLINGFORD,MATERIALS,22/03/2019,000006284300774,5.12,VILLAGE FABRICS GPRS
OXFORDSHIRE CC,"CHILDRENS, YOUNG PEOPLE AND FAMILIES","	FAMILY SUPPORT CITY3",OTHER EXPENSES,22/03/2019,000006284301008,112.28,AMZN MKTP UK MW4UU2U14
OXFORDSHIRE CC,"CHILDRENS, YOUNG PEOPLE AND FAMILIES","	FAMILY SUPPORT CITY3",OTHER EXPENSES,22/03/2019,000006284301010,32.05,AMFBOWLING.CO.UK
OXFORDSHIRE CC,"CHILDRENS, YOUNG PEOPLE AND FAMILIES","	40 THE MOORS",CATERING PROVISIONS,22/03/2019,000006284301016,10.74,TESCO STORE 2788
OXFORDSHIRE CC,SOCIAL AND COMMUNITY SERVICES,CSS - BANBURY,"SUPPLIES, STATIONERY AND MATERIALS",22/03/2019,000006284301018,46.80,VIVID ONLINE.COM
OXFORDSHIRE CC,"CHILDRENS, YOUNG PEOPLE AND FAMILIES","	LOOKED AFTER NORTH",CATERING,22/03/2019,000006284300788,5.26,MCDONALDS 405
OXFORDSHIRE CC,SOCIAL AND COMMUNITY SERVICES,CSS BICESTER,CATERING PROVISIONS,22/03/2019,000006284300790,46.95,MARTIN MCCOLL
OXFORDSHIRE CC,"CHILDRENS, YOUNG PEOPLE AND FAMILIES",WITNEY,CATERING PROVISIONS,22/03/2019,000006284300792,1.50,CO-OPERATIVE FOOD
OXFORDSHIRE CC,"CHILDRENS, YOUNG PEOPLE AND FAMILIES",WITNEY,CATERING,22/03/2019,000006284300794,45.45,WWW.DOMINOS.CO.UK
OXFORDSHIRE CC,"CHILDRENS, YOUNG PEOPLE AND FAMILIES","	SM QUALITY ASSURANCE",PAYMENTS TO TRANSPORT OPERATORS,22/03/2019,000006284300796,85.90,TRAINLINE
OXFORDSHIRE CC,ENVIRONMENT AND ECONOMY,"	LIBRARY PROJECTS",CATERING PROVISIONS,22/03/2019,000006284301020,20.78,ASDA SUPERSTORE
OXFORDSHIRE CC,"CHILDRENS, YOUNG PEOPLE AND FAMILIES","	40 THE MOORS",MATERIALS,22/03/2019,000006284301022,22.94,WWW.GAME.CO.UK
OXFORDSHIRE CC,ENVIRONMENT AND ECONOMY,THE RIDGEWAY,HOSPITALITY EXPENSES,22/03/2019,000006284301024,5.55,CHINNOR THE VILLAGE CE
OXFORDSHIRE CC,ENVIRONMENT AND ECONOMY,THE RIDGEWAY,CATERING,22/03/2019,000006284301026,4.80,RED LION HOTEL
OXFORDSHIRE CC,ENVIRONMENT AND ECONOMY,THE RIDGEWAY,CATERING,22/03/2019,000006284301028,6.20,RED LION HOTEL
OXFORDSHIRE CC,ENVIRONMENT AND ECONOMY,"	BUSINESS SYST STAFF",CATERING,22/03/2019,000006284301030,2.50,GREGGS PLC
OXFORDSHIRE CC,"CHILDRENS, YOUNG PEOPLE AND FAMILIES",DIDCOT MOVE-ON HOME,CATERING PROVISIONS,22/03/2019,000006284301038,8.30,SAINSBURYS SACAT 2067
OXFORDSHIRE CC,"CHILDRENS, YOUNG PEOPLE AND FAMILIES",DIDCOT MOVE-ON HOME,MATERIALS,22/03/2019,000006284301040,44.21,SAFETYSHOP
OXFORDSHIRE CC,"CHILDRENS, YOUNG PEOPLE AND FAMILIES","	LOOKED AFTER CITY 1",OTHER TRANSPORT ARRANGEMENTS,22/03/2019,000006284300806,5.00,OXPENS CAR PARK
OXFORDSHIRE CC,"CHILDRENS, YOUNG PEOPLE AND FAMILIES","	RIVERSIDE CENTRE",MATERIALS,22/03/2019,000006284301126,11.67,GO OUTDOORS
OXFORDSHIRE CC,"CHILDRENS, YOUNG PEOPLE AND FAMILIES","	LEAVING CARE CITY 1",MATERIALS,22/03/2019,000006284300906,353.00,PC WORLD ONLINE
OXFORDSHIRE CC,"CHILDRENS, YOUNG PEOPLE AND FAMILIES","	FPT NORTH",OTHER TRANSPORT ARRANGEMENTS,22/03/2019,000006284300908,2.00,SEACOURT PARK AND RIDE
OXFORDSHIRE CC,"CHILDRENS, YOUNG PEOPLE AND FAMILIES","	LOOKED AFTER CITY 2",OTHER EXPENSES,22/03/2019,000006284300910,45.00,WINDSOR CARLTON
OXFORDSHIRE CC,"CHILDRENS, YOUNG PEOPLE AND FAMILIES","	LOOKED AFTER CITY 2",OTHER TRANSPORT ARRANGEMENTS,22/03/2019,000006284300912,6.40,M6 TOLL
OXFORDSHIRE CC,"CHILDRENS, YOUNG PEOPLE AND FAMILIES","	LOOKED AFTER CITY 2",PAYMENTS TO TRANSPORT OPERATORS,22/03/2019,000006284300914,29.90,GWR DIDCOT PKWY TO
OXFORDSHIRE CC,"CHILDRENS, YOUNG PEOPLE AND FAMILIES","	MALTFIELD HOUSE",CATERING,22/03/2019,000006284300918,8.05,PRET A MANGER
OXFORDSHIRE CC,"CHILDRENS, YOUNG PEOPLE AND FAMILIES",NORTH FSS- WITNEY,MATERIALS,22/03/2019,000006284301140,5.88,ARGOS RETAIL GROUP
OXFORDSHIRE CC,"CHILDRENS, YOUNG PEOPLE AND FAMILIES",NORTH FSS- WITNEY,MATERIALS,22/03/2019,000006284301142,13.95,ARGOS RETAIL GROUP
OXFORDSHIRE CC,"CHILDRENS, YOUNG PEOPLE AND FAMILIES",NORTH FSS- WITNEY,MATERIALS,22/03/2019,000006284301144,12.95,ARGOS RETAIL GROUP
OXFORDSHIRE CC,CORPORATE CORE,"	ORGANISATIONAL DEV'T",PAYMENTS TO TRANSPORT OPERATORS,22/03/2019,000006284300934,38.05,WWW.GWR.COM
OXFORDSHIRE CC,CORPORATE CORE,"	ORGANISATIONAL DEV'T",PAYMENTS TO TRANSPORT OPERATORS,22/03/2019,000006284300936,81.70,WWW.GWR.COM
OXFORDSHIRE CC,CORPORATE CORE,"	ORGANISATIONAL DEV'T",PAYMENTS TO TRANSPORT OPERATORS,22/03/2019,000006284300938,23.15,WWW.GWR.COM
OXFORDSHIRE CC,CORPORATE CORE,"	LEGAL SERVICES",LEGAL COSTS,22/03/2019,000006284300944,44.00,OCC REGISTRARS (M)
OXFORDSHIRE CC,CORPORATE CORE,"	LEGAL SERVICES",SUBSCRIPTIONS,22/03/2019,000006284300946,144.16,INDICATOR  - FL MEMO
OXFORDSHIRE CC,SOCIAL AND COMMUNITY SERVICES,CSS BICESTER,CATERING PROVISIONS,22/03/2019,000006284300720,20.50,TESCO STORES 4480 SACA
OXFORDSHIRE CC,SOCIAL AND COMMUNITY SERVICES,CSS BICESTER,"BOOKS, DVDS AND CDS",22/03/2019,000006284300722,19.19,AMZN MKTP UK MW7FP5IE4
OXFORDSHIRE CC,SOCIAL AND COMMUNITY SERVICES,CSS BICESTER,MATERIALS,22/03/2019,000006284300724,9.00,POUNDLAND LTD 1505
OXFORDSHIRE CC,SOCIAL AND COMMUNITY SERVICES,CSS WITNEY,MATERIALS,22/03/2019,000006284300726,2.05,POUNDLAND LTD
OXFORDSHIRE CC,SOCIAL AND COMMUNITY SERVICES,CSS WITNEY,CATERING PROVISIONS,22/03/2019,000006284300728,7.80,CO-OP GROUP 070582
OXFORDSHIRE CC,"CHILDRENS, YOUNG PEOPLE AND FAMILIES","	LEAVING CARE NORTH",CATERING,22/03/2019,000006284300952,12.55,COSTA COFFEE
OXFORDSHIRE CC,"CHILDRENS, YOUNG PEOPLE AND FAMILIES","	LEAVING CARE CITY 2",CLOTHING AND UNIFORMS,22/03/2019,000006284300956,17.99,H & M
OXFORDSHIRE CC,"CHILDRENS, YOUNG PEOPLE AND FAMILIES","	RESIDENTIAL STRATEGY",HIRE OF ACCOMMODATION AND FACILITIES,22/03/2019,000006284300958,600.00,BUCKINGHAM HOTELS
OXFORDSHIRE CC,SOCIAL AND COMMUNITY SERVICES,"	MTFC",VEHICLE FUEL,22/03/2019,000006284300960,2.34,BP CANNON POOL S/SERVE
OXFORDSHIRE CC,SOCIAL AND COMMUNITY SERVICES,"	MTFC",VEHICLE FUEL,22/03/2019,000006284300960,1.00,BP CANNON POOL S/SERVE
OXFORDSHIRE CC,SOCIAL AND COMMUNITY SERVICES,"	MTFC",ENTERTAINMENT EXPENSES,22/03/2019,000006284300962,6.75,RUGRATS AND HALF PINTS
OXFORDSHIRE CC,"CHILDRENS, YOUNG PEOPLE AND FAMILIES","	LEAVING CARE NORTH",CATERING,22/03/2019,000006284300968,4.79,MCDONALDS
OXFORDSHIRE CC,"CHILDRENS, YOUNG PEOPLE AND FAMILIES","	LEAVING CARE NORTH",OTHER TRANSPORT ARRANGEMENTS,22/03/2019,000006284300970,2.50,UNION STREET CAR PARK
OXFORDSHIRE CC,"CHILDRENS, YOUNG PEOPLE AND FAMILIES","	LEAVING CARE CITY 1",OTHER EXPENSES,22/03/2019,000006284300828,460.00,ALLPAY  COTTSWAY HOUSI
OXFORDSHIRE CC,"CHILDRENS, YOUNG PEOPLE AND FAMILIES",NTH FAM SUPRT-BCSTR,PAYMENTS TO TRANSPORT OPERATORS,22/03/2019,000006284300836,5.50,WWW.GWR.COM
OXFORDSHIRE CC,"CHILDRENS, YOUNG PEOPLE AND FAMILIES","	FPT CITY","BOOKS, DVDS AND CDS",22/03/2019,000006284300838,77.88,AMZN MKTP UK MW9OR3UE4
OXFORDSHIRE CC,ENTERPRISEVC,OPERATIONAL COSTS,CATERING PROVISIONS,22/03/2019,000006284300840,19.20,SAINSBURYS 0730
OXFORDSHIRE CC,ENTERPRISEVC,OPERATIONAL COSTS,CATERING PROVISIONS,22/03/2019,000006284300842,6.80,SAINSBURYS 0730
OXFORDSHIRE CC,ENTERPRISEVC,OPERATIONAL COSTS,PAYMENTS TO TRANSPORT OPERATORS,22/03/2019,000006284300844,94.63,TRAINLINE
OXFORDSHIRE CC,ENTERPRISEVC,OPERATIONAL COSTS,CATERING,22/03/2019,000006284300846,26.48,WWW.DOMINOS.CO.UK
OXFORDSHIRE CC,"CHILDRENS, YOUNG PEOPLE AND FAMILIES","	40 THE MOORS",MATERIALS,22/03/2019,000006284301068,21.98,M AND M DIRECT LTD
OXFORDSHIRE CC,"CHILDRENS, YOUNG PEOPLE AND FAMILIES","	40 THE MOORS",MATERIALS,22/03/2019,000006284301070,107.00,JD SPORTS INTERNET
OXFORDSHIRE CC,"CHILDRENS, YOUNG PEOPLE AND FAMILIES","	MALTFIELD HOUSE",OTHER EXPENSES,22/03/2019,000006284301072,9.05,POUNDLAND LTD 1366
OXFORDSHIRE CC,"CHILDRENS, YOUNG PEOPLE AND FAMILIES","	MALTFIELD HOUSE",CATERING,22/03/2019,000006284301074,36.85,ASK ABINGDON
OXFORDSHIRE CC,"CHILDRENS, YOUNG PEOPLE AND FAMILIES",FPT SOUTH/VALE,MATERIALS,22/03/2019,000006284301076,213.93,WWW.ARGOS.CO.UK
OXFORDSHIRE CC,"CHILDRENS, YOUNG PEOPLE AND FAMILIES","	LEAVING CARE NORTH",CATERING,22/03/2019,000006284301080,4.90,COSTA COFFEE 43042160
OXFORDSHIRE CC,"CHILDRENS, YOUNG PEOPLE AND FAMILIES","	LEAVING CARE NORTH",ENTERTAINMENT EXPENSES,22/03/2019,000006284301082,59.99,ARGOS LTD
OXFORDSHIRE CC,"CHILDRENS, YOUNG PEOPLE AND FAMILIES","	LOOKED AFTER SOUTH",MATERIALS,22/03/2019,000006284301084,4.99,WH SMITH
OXFORDSHIRE CC,CORPORATE CORE,"	MAJOR PROGRAMMES","SUPPLIES, STATIONERY AND MATERIALS",22/03/2019,000006284300852,5.99,RYMAN 1172
OXFORDSHIRE CC,"CHILDRENS, YOUNG PEOPLE AND FAMILIES","	MALTFIELD HOUSE",CATERING PROVISIONS,22/03/2019,000006284300856,4.45,CO-OPERATIVE FOOD
OXFORDSHIRE CC,SOCIAL AND COMMUNITY SERVICES,WITNEY MOVE ON HOME,CATERING PROVISIONS,22/03/2019,000006284300858,5.69,TESCO STORES
OXFORDSHIRE CC,"CHILDRENS, YOUNG PEOPLE AND FAMILIES","	LOOKED AFTER CITY 1",CLOTHING AND UNIFORMS,22/03/2019,000006284300860,142.00,J D SPORTS
OXFORDSHIRE CC,CORPORATE CORE,,"SUPPLIES, STATIONERY AND MATERIALS",22/03/2019,000006284301092,31.97,LYRECO UK LTD
OXFORDSHIRE CC,"CHILDRENS, YOUNG PEOPLE AND FAMILIES","	LOOKED AFTER NORTH",OTHER TRANSPORT ARRANGEMENTS,22/03/2019,000006284301094,6.40,M6 TOLL
OXFORDSHIRE CC,"CHILDRENS, YOUNG PEOPLE AND FAMILIES","	LOOKED AFTER NORTH",OTHER TRANSPORT ARRANGEMENTS,22/03/2019,000006284301096,6.40,M6 TOLL
OXFORDSHIRE CC,"CHILDRENS, YOUNG PEOPLE AND FAMILIES","	LOOKED AFTER NORTH",CATERING,22/03/2019,000006284301098,5.54,STARBUCKS
OXFORDSHIRE CC,"CHILDRENS, YOUNG PEOPLE AND FAMILIES","	LOOKED AFTER CITY 1",OTHER EXPENSES,22/03/2019,000006284301100,90.00,SPORTSDIRECT 218
OXFORDSHIRE CC,"CHILDRENS, YOUNG PEOPLE AND FAMILIES",EYNSHAM,CATERING PROVISIONS,22/03/2019,000006284301102,13.81,SPAR EYNSHAM
OXFORDSHIRE CC,"CHILDRENS, YOUNG PEOPLE AND FAMILIES",EYNSHAM,CATERING,22/03/2019,000006284301104,4.01,TESCO PFS 2488
OXFORDSHIRE CC,CORPORATE CORE,CENTRAL BUYING TEAM,VEHICLE FUEL,22/03/2019,000006284301106,20.01,TESCO PFS 3700
OXFORDSHIRE CC,"CHILDRENS, YOUNG PEOPLE AND FAMILIES",CNTL EARLY HELP-RHIL,CATERING PROVISIONS,22/03/2019,000006284301108,28.44,ASDA STORES 5123
OXFORDSHIRE CC,"CHILDRENS, YOUNG PEOPLE AND FAMILIES",CNTL EARLY HELP-RHIL,MATERIALS,22/03/2019,000006284301110,34.94,ARGOS LTD
OXFORDSHIRE CC,"CHILDRENS, YOUNG PEOPLE AND FAMILIES","	RESIDENTIAL STRATEGY",PAYMENTS TO TRANSPORT OPERATORS,22/03/2019,000006284301114,73.30,GWR OXFORD TO
OXFORDSHIRE CC,CORPORATE CORE,HOLTON SITE,EQUIPMENT,22/03/2019,000006284300888,77.98,AMAZON.CO.UK MW5N57US4
OXFORDSHIRE CC,ENVIRONMENT AND ECONOMY,"	BRIDGES GENERAL",MATERIALS,22/03/2019,000006284300892,399.98,ARGOS LTD
OXFORDSHIRE CC,ENVIRONMENT AND ECONOMY,"	BRIDGES GENERAL",MATERIALS,22/03/2019,000006284300894,16.89,WETSUIT OUTLET
OXFORDSHIRE CC,"CHILDRENS, YOUNG PEOPLE AND FAMILIES","	DISABILITIES TEAM-C",PAYMENTS TO TRANSPORT OPERATORS,22/03/2019,000006284300896,49.20,WWW.GWR.COM
OXFORDSHIRE CC,"CHILDRENS, YOUNG PEOPLE AND FAMILIES","	SERVICE MANAGER PLAC",CATERING PROVISIONS,21/03/2019,000006278913722,34.00,MARKS&SPENCER PLC
OXFORDSHIRE CC,"CHILDRENS, YOUNG PEOPLE AND FAMILIES","	LOOKED AFTER NORTH",MATERIALS,21/03/2019,000006278913728,2.85,M & S SIMPLY FOOD
OXFORDSHIRE CC,"CHILDRENS, YOUNG PEOPLE AND FAMILIES","	LOOKED AFTER NORTH",MATERIALS,21/03/2019,000006278913730,2.35,M & S SIMPLY FOOD
OXFORDSHIRE CC,"CHILDRENS, YOUNG PEOPLE AND FAMILIES","	FAMILY SUPPORT CITY3",CATERING,21/03/2019,000006278913930,4.75,COSTA TEMPLAR SQUARE O
OXFORDSHIRE CC,CORPORATE CORE,SNR LEADERSHIP TEAM,PAYMENTS TO TRANSPORT OPERATORS,21/03/2019,000006278913934,80.50,WWW.GWR.COM
OXFORDSHIRE CC,CORPORATE CORE,SNR LEADERSHIP TEAM,PAYMENTS TO TRANSPORT OPERATORS,21/03/2019,000006278913936,63.30,WWW.GWR.COM
OXFORDSHIRE CC,CORPORATE CORE,"	COMMUNICATIONS",IT SERVICES,21/03/2019,000006278913938,480.00,PAYPAL  BRIGHTINTER
OXFORDSHIRE CC,CORPORATE CORE,"	COMMUNICATIONS",MATERIALS,21/03/2019,000006278913940,7.99,AMAZON PRIME MW23Y5794
OXFORDSHIRE CC,CORPORATE CORE,"	COMMUNICATIONS",MATERIALS,21/03/2019,000006278913942,315.95,APPLE ONLINE STORE GBP
OXFORDSHIRE CC,"CHILDRENS, YOUNG PEOPLE AND FAMILIES",THAME E&A HOME,ENTERTAINMENT EXPENSES,21/03/2019,000006278913740,7.75,THAME LEISURE CENTRE
OXFORDSHIRE CC,"CHILDRENS, YOUNG PEOPLE AND FAMILIES",DIDCOT MOVE-ON HOME,CATERING PROVISIONS,21/03/2019,000006278913742,38.60,SAINSBURYS 2067
OXFORDSHIRE CC,"CHILDRENS, YOUNG PEOPLE AND FAMILIES",CSS WALLINGFORD,MATERIALS,21/03/2019,000006278913664,24.48,CHAMPION
OXFORDSHIRE CC,"CHILDRENS, YOUNG PEOPLE AND FAMILIES",CSS WALLINGFORD,MATERIALS,21/03/2019,000006278913666,3.50,THE ENTERTAINER 82
OXFORDSHIRE CC,SOCIAL AND COMMUNITY SERVICES,CSS - BANBURY,CATERING PROVISIONS,21/03/2019,000006278913860,13.50,TESCO STORE 2064
OXFORDSHIRE CC,SOCIAL AND COMMUNITY SERVICES,CSS - DIDCOT,CATERING PROVISIONS,21/03/2019,000006278913864,174.76,TESCO STORE 2919
OXFORDSHIRE CC,"CHILDRENS, YOUNG PEOPLE AND FAMILIES","	40 THE MOORS",CATERING,21/03/2019,000006278913866,6.65,STARBUCKS COFFEE
OXFORDSHIRE CC,"CHILDRENS, YOUNG PEOPLE AND FAMILIES",STEP INTO TRAINING,"SUPPLIES, STATIONERY AND MATERIALS",21/03/2019,000006278913874,35.99,AMZN MKTP UK MW40A07U4
OXFORDSHIRE CC,"CHILDRENS, YOUNG PEOPLE AND FAMILIES","	YOUNG CARERS WORKER",MATERIALS,21/03/2019,000006278913876,11.00,HOBBYCRAFT
OXFORDSHIRE CC,ENVIRONMENT AND ECONOMY,CITIES4PEOPLE,"BOOKS, DVDS AND CDS",21/03/2019,000006278913880,4.39,AMZN MKTP UK MW24Z9724
OXFORDSHIRE CC,"CHILDRENS, YOUNG PEOPLE AND FAMILIES",UASC 16&17,CLOTHING AND UNIFORMS,21/03/2019,000006278913682,104.00,PRIMARK 440
OXFORDSHIRE CC,ENVIRONMENT AND ECONOMY,HARD FM,HARDWARE AND CROCKERY,21/03/2019,000006278913684,74.34,OXFORD FENCING SUPP LT
OXFORDSHIRE CC,ENVIRONMENT AND ECONOMY,HARD FM,MATERIALS,21/03/2019,000006278913686,18.18,TOOLSTATION LTD
OXFORDSHIRE CC,ENVIRONMENT AND ECONOMY,HARD FM,HARDWARE AND CROCKERY,21/03/2019,000006278913688,36.42,OXFORD FENCING SUPP LT
OXFORDSHIRE CC,ENVIRONMENT AND ECONOMY,HARD FM,HARDWARE AND CROCKERY,21/03/2019,000006278913690,33.17,CITY PLUMBING
OXFORDSHIRE CC,"CHILDRENS, YOUNG PEOPLE AND FAMILIES",THAME E&A HOME,CATERING PROVISIONS,21/03/2019,000006278913692,26.79,ASDA STORE 4442
OXFORDSHIRE CC,"CHILDRENS, YOUNG PEOPLE AND FAMILIES","	FAM SUPP CITY 1",PAYMENT TO GOVERNMENT DEPARTMENTS,21/03/2019,000006278913884,-9.25,GEN REGISTER OFFICE
OXFORDSHIRE CC,"CHILDRENS, YOUNG PEOPLE AND FAMILIES","	LOOKED AFTER NORTH",CATERING,21/03/2019,000006278913888,5.40,STURDYS CASTLE
OXFORDSHIRE CC,"CHILDRENS, YOUNG PEOPLE AND FAMILIES","	LOOKED AFTER NORTH",VEHICLE FUEL,21/03/2019,000006278913890,20.72,ESSO ERMONT WAY SSTN
OXFORDSHIRE CC,"CHILDRENS, YOUNG PEOPLE AND FAMILIES","	LOOKED AFTER SOUTH",MATERIALS,21/03/2019,000006278913892,16.48,WH SMITH
OXFORDSHIRE CC,CORPORATE CORE,,"SUPPLIES, STATIONERY AND MATERIALS",21/03/2019,000006278913898,4.61,LYRECO UK LTD
OXFORDSHIRE CC,CORPORATE CORE,,"SUPPLIES, STATIONERY AND MATERIALS",21/03/2019,000006278913900,20.74,LYRECO UK LTD
OXFORDSHIRE CC,CORPORATE CORE,,"SUPPLIES, STATIONERY AND MATERIALS",21/03/2019,000006278913902,361.25,LYRECO UK LTD
OXFORDSHIRE CC,"CHILDRENS, YOUNG PEOPLE AND FAMILIES",THAME E&A HOME,CATERING PROVISIONS,21/03/2019,000006278913694,9.15,WELCOME BREAK STARBUCK
OXFORDSHIRE CC,ENVIRONMENT AND ECONOMY,COUNTY LIBRARY,GENERAL MAINTENANCE,21/03/2019,000006278913696,81.05, WOLSELEY UK
OXFORDSHIRE CC,ENVIRONMENT AND ECONOMY,COUNTY LIBRARY,GENERAL MAINTENANCE,21/03/2019,000006278913698,39.84, WOLSELEY UK
OXFORDSHIRE CC,"CHILDRENS, YOUNG PEOPLE AND FAMILIES","	LOOKED AFTER NORTH",VEHICLE FUEL,21/03/2019,000006278913700,20.00,TESCO PAY AT PUMP 4267
OXFORDSHIRE CC,SOCIAL AND COMMUNITY SERVICES,UASC 16&17,OTHER TRANSPORT ARRANGEMENTS,21/03/2019,000006278913704,26.00,STAGECOACH OXFORD
OXFORDSHIRE CC,SOCIAL AND COMMUNITY SERVICES,UASC 16&17,PAYMENTS TO TRANSPORT OPERATORS,21/03/2019,000006278913706,7.90,NEW SOUTHERN RAILW
OXFORDSHIRE CC,SOCIAL AND COMMUNITY SERVICES,UASC 16&17,PAYMENTS TO TRANSPORT OPERATORS,21/03/2019,000006278913708,12.00,NEW SOUTHERN RAILW
OXFORDSHIRE CC,CORPORATE CORE,,"SUPPLIES, STATIONERY AND MATERIALS",21/03/2019,000006278913904,36.98,LYRECO UK LTD
OXFORDSHIRE CC,"CHILDRENS, YOUNG PEOPLE AND FAMILIES","	LOOKED AFTER NORTH",OTHER TRANSPORT ARRANGEMENTS,21/03/2019,000006278913906,1.50,3C_ STAFFORD GUILDHALL
OXFORDSHIRE CC,"CHILDRENS, YOUNG PEOPLE AND FAMILIES","	LOOKED AFTER CITY 1",OTHER EXPENSES,21/03/2019,000006278913908,104.02,TESCO STORES 2008
OXFORDSHIRE CC,"CHILDRENS, YOUNG PEOPLE AND FAMILIES","	LEAVING CARE NORTH",OTHER EXPENSES,21/03/2019,000006278913914,304.97,WWW.SMYTHSTOYS.COM
OXFORDSHIRE CC,"CHILDRENS, YOUNG PEOPLE AND FAMILIES","	LOOKED AFTER SOUTH",POSTAGE AND DELIVERY,21/03/2019,000006278913916,30.00,POST OFFICE COUNTER
OXFORDSHIRE CC,"CHILDRENS, YOUNG PEOPLE AND FAMILIES","	LOOKED AFTER SOUTH",POSTAGE AND DELIVERY,21/03/2019,000006278913918,50.00,POST OFFICE COUNTER
OXFORDSHIRE CC,"CHILDRENS, YOUNG PEOPLE AND FAMILIES",CNTL ERLY HELP-BBLEY,CATERING PROVISIONS,21/03/2019,000006278913922,9.46,TESCO STORE 2990
OXFORDSHIRE CC,"CHILDRENS, YOUNG PEOPLE AND FAMILIES","	RIVERSIDE CENTRE",CATERING PROVISIONS,21/03/2019,000006278913716,13.88,TESCO STORES 4377
OXFORDSHIRE CC,"CHILDRENS, YOUNG PEOPLE AND FAMILIES",WITNEY,MATERIALS,21/03/2019,000006278913718,37.70,HOBBYCRAFT
OXFORDSHIRE CC,"CHILDRENS, YOUNG PEOPLE AND FAMILIES","	SERVICE MANAGER PLAC",CATERING PROVISIONS,21/03/2019,000006278913720,37.00,MARKS&SPENCER PLC
OXFORDSHIRE CC,ENVIRONMENT AND ECONOMY,"	ROW MAINT",EQUIPMENT,21/03/2019,000006278913778,35.38,BRIANTS OF RISBOROUGH
OXFORDSHIRE CC,"CHILDRENS, YOUNG PEOPLE AND FAMILIES",EYNSHAM,EDUCATIONAL AND VOCATIONAL TRAINING ,21/03/2019,000006278913784,"1,800.00",PAYPAL  LONDONCAREH
OXFORDSHIRE CC,ENVIRONMENT AND ECONOMY,"	LPP MANAGEMENT",PAYMENTS TO TRANSPORT OPERATORS,21/03/2019,000006278913786,57.90,WWW.GWR.COM
OXFORDSHIRE CC,"CHILDRENS, YOUNG PEOPLE AND FAMILIES","	LEAVING CARE CITY 2","SUPPLIES, STATIONERY AND MATERIALS",21/03/2019,000006278913788,399.99,WWW.DMC.AC
OXFORDSHIRE CC,CORPORATE CORE,"	CC TRAINING",TRAINING RELATED EXPENDITURE,21/03/2019,000006278913794,146.60,WWW.GWR.COM
OXFORDSHIRE CC,CORPORATE CORE,"	CC TRAINING",TRAINING RELATED EXPENDITURE,21/03/2019,000006278913796,146.60,WWW.GWR.COM
OXFORDSHIRE CC,ENVIRONMENT AND ECONOMY,"	OXFORDSHIRE MUSEUM",MATERIALS,21/03/2019,000006278913798,70.98,ODG PROJECTORLAMPSWRLD
OXFORDSHIRE CC,"CHILDRENS, YOUNG PEOPLE AND FAMILIES","	LEAVING CARE CITY 2",CATERING,21/03/2019,000006278913800,3.75,STARBUCKS COFFEE
OXFORDSHIRE CC,"CHILDRENS, YOUNG PEOPLE AND FAMILIES","	LEAVING CARE CITY 2",PAYMENTS TO TRANSPORT OPERATORS,21/03/2019,000006278913802,13.40,GWR DIDCOT PKWY TO
OXFORDSHIRE CC,"CHILDRENS, YOUNG PEOPLE AND FAMILIES","	LEAVING CARE NORTH",MATERIALS,21/03/2019,000006278913818,60.00,PAYPAL  JANWHITAKER
OXFORDSHIRE CC,"CHILDRENS, YOUNG PEOPLE AND FAMILIES","	LEAVING CARE NORTH",CATERING PROVISIONS,21/03/2019,000006278913820,23.96,POUNDSTRETCHER 700
OXFORDSHIRE CC,"CHILDRENS, YOUNG PEOPLE AND FAMILIES",KINGFISHER,OTHER TRANSPORT ARRANGEMENTS,21/03/2019,000006278913822,.60,CHERWELL DC CAR PARK
OXFORDSHIRE CC,"CHILDRENS, YOUNG PEOPLE AND FAMILIES",THAME E&A HOME,CATERING PROVISIONS,21/03/2019,000006278913638,124.95,SAINSBURYS SACAT 0600
OXFORDSHIRE CC,ENVIRONMENT AND ECONOMY,"	LEP",OTHER PREMISES RELATED COSTS,21/03/2019,000006278913834,527.28,IMMOGROOM
OXFORDSHIRE CC,SOCIAL AND COMMUNITY SERVICES,CSS WANTAGE,CATERING PROVISIONS,21/03/2019,000006278913838,73.04,ASDA GROCERIES ONLINE
OXFORDSHIRE CC,SOCIAL AND COMMUNITY SERVICES,CSS WANTAGE,CATERING PROVISIONS,21/03/2019,000006278913840,-4.23,ASDA GROCERIES ONLINE
OXFORDSHIRE CC,ENVIRONMENT AND ECONOMY,"	FLEET OPERATIONS",LEGAL COSTS,21/03/2019,000006278913844,60.00,WWW.SMARTPARKING.COM
OXFORDSHIRE CC,"CHILDRENS, YOUNG PEOPLE AND FAMILIES","	FAMILY SUPPORT CITY3",OTHER TRANSPORT ARRANGEMENTS,21/03/2019,000006278913648,5.00,WESTGATE OXFORD CAR PA
OXFORDSHIRE CC,SOCIAL AND COMMUNITY SERVICES,CSS - DIDCOT,CATERING PROVISIONS,21/03/2019,000006278913660,13.75,TESCO STORE 2413
OXFORDSHIRE CC,"CHILDRENS, YOUNG PEOPLE AND FAMILIES",THAME E&A HOME,HARDWARE AND CROCKERY,20/03/2019,000006273534902,49.98,HADDENHAM GARDEN CEN L
OXFORDSHIRE CC,"CHILDRENS, YOUNG PEOPLE AND FAMILIES",THAME E&A HOME,VEHICLES REPAIRS AND MAINTENANCE,20/03/2019,000006273534906,10.00,AUTOPARTS
OXFORDSHIRE CC,"CHILDRENS, YOUNG PEOPLE AND FAMILIES",THAME E&A HOME,CATERING PROVISIONS,20/03/2019,000006273534910,9.00,WAITROSE 206
OXFORDSHIRE CC,"CHILDRENS, YOUNG PEOPLE AND FAMILIES",OYMT,PAYMENT TO GOVERNMENT DEPARTMENTS,20/03/2019,000006273535874,21.00,VALE OF WHITEHORSE
OXFORDSHIRE CC,"CHILDRENS, YOUNG PEOPLE AND FAMILIES","	LOOKED AFTER NORTH",REGISTRATION AND INSPECTION FEES,20/03/2019,000006273535878,11.00,OCC REGISTRARS (M)
OXFORDSHIRE CC,"CHILDRENS, YOUNG PEOPLE AND FAMILIES","	LOOKED AFTER NORTH",REGISTRATION AND INSPECTION FEES,20/03/2019,000006273535884,14.00,LBHACKNEY PYMT
OXFORDSHIRE CC,ENVIRONMENT AND ECONOMY,CITIES4PEOPLE,MATERIALS,20/03/2019,000006273535890,25.98,AMZN MKTP UK MW6IM4K14
OXFORDSHIRE CC,"CHILDRENS, YOUNG PEOPLE AND FAMILIES",CNTL ERLY HELP-BBLEY,CATERING PROVISIONS,20/03/2019,000006273535894,2.78,NISA DELTEYS
OXFORDSHIRE CC,"CHILDRENS, YOUNG PEOPLE AND FAMILIES","	LEAVING CARE SOUTH",MATERIALS,20/03/2019,000006273535904,257.47,ARGOS LTD
OXFORDSHIRE CC,"CHILDRENS, YOUNG PEOPLE AND FAMILIES","	LEAVING CARE SOUTH",MATERIALS,20/03/2019,000006273535908,52.00,WWW.ARGOS.CO.UK
OXFORDSHIRE CC,"CHILDRENS, YOUNG PEOPLE AND FAMILIES","	LEAVING CARE SOUTH",MATERIALS,20/03/2019,000006273535912,400.95,WWW.ARGOS.CO.UK
OXFORDSHIRE CC,"CHILDRENS, YOUNG PEOPLE AND FAMILIES","	LEAVING CARE SOUTH",CATERING,20/03/2019,000006273535916,7.28,MCDONALDS
OXFORDSHIRE CC,"CHILDRENS, YOUNG PEOPLE AND FAMILIES","	LEAVING CARE SOUTH",OTHER TRANSPORT ARRANGEMENTS,20/03/2019,000006273534938,87.00,STAGECOACH SERVICE
OXFORDSHIRE CC,"CHILDRENS, YOUNG PEOPLE AND FAMILIES","	MALTFIELD HOUSE",MATERIALS,20/03/2019,000006273534952,5.65,M & S SIMPLY FOOD
OXFORDSHIRE CC,"CHILDRENS, YOUNG PEOPLE AND FAMILIES","	OSCB","BOOKS, DVDS AND CDS",20/03/2019,000006273534962,241.10,AMZN MKTP UK MW63R12H4
OXFORDSHIRE CC,"CHILDRENS, YOUNG PEOPLE AND FAMILIES","	OSCB",PAYMENTS TO VOLUNTARY BODIES,20/03/2019,000006273534966,469.50,PAYPAL  DARTINGTON
OXFORDSHIRE CC,"CHILDRENS, YOUNG PEOPLE AND FAMILIES",CSS WALLINGFORD,CATERING PROVISIONS,20/03/2019,000006273534978,57.49,SAVAGES (BLEWBURY) LTD
OXFORDSHIRE CC,"CHILDRENS, YOUNG PEOPLE AND FAMILIES",CSS WALLINGFORD,MATERIALS,20/03/2019,000006273534982,20.00,WILKO RETAIL LIMIT
OXFORDSHIRE CC,ENVIRONMENT AND ECONOMY,"	COUNTY PRINT FINSHRS",CATERING PROVISIONS,20/03/2019,000006273534988,215.40,MILK&MORE
OXFORDSHIRE CC,ENVIRONMENT AND ECONOMY,"	COUNTY PRINT FINSHRS",SECURITY COSTS,20/03/2019,000006273534992,92.05,WWW.GUARDIAN24.CO.
OXFORDSHIRE CC,"CHILDRENS, YOUNG PEOPLE AND FAMILIES",CSS WALLINGFORD,MATERIALS,20/03/2019,000006273534998,14.99,B & M RETAIL
OXFORDSHIRE CC,"CHILDRENS, YOUNG PEOPLE AND FAMILIES",WITNEY,CATERING PROVISIONS,20/03/2019,000006273535926,40.30,SAINSBURYS 0632
OXFORDSHIRE CC,"CHILDRENS, YOUNG PEOPLE AND FAMILIES",FPT SOUTH/VALE,CATERING PROVISIONS,20/03/2019,000006273535932,28.00,MARKS&SPENCER PLC
OXFORDSHIRE CC,ENVIRONMENT AND ECONOMY,LOCALITIES,EDUCATIONAL AND VOCATIONAL TRAINING ,20/03/2019,000006273535954,570.00,PTRC-TRAINING.CO.U
OXFORDSHIRE CC,"CHILDRENS, YOUNG PEOPLE AND FAMILIES","	LOOKED AFTER NORTH",CATERING,20/03/2019,000006273535958,23.15,PIZZA EXPRESS
OXFORDSHIRE CC,"CHILDRENS, YOUNG PEOPLE AND FAMILIES",THAME E&A HOME,CATERING PROVISIONS,20/03/2019,000006273535964,15.95,SAINSBURYS SACAT 2096
OXFORDSHIRE CC,ENTERPRISEVC,,CAR LEASING - PRIVATE RENTALS,20/03/2019,000006273535972,36.94,ENTERPRISE RENT-A-CAR
OXFORDSHIRE CC,ENTERPRISEVC,,CAR LEASING - PRIVATE RENTALS,20/03/2019,000006273535976,64.60,ENTERPRISE RENT-A-CAR
OXFORDSHIRE CC,ENTERPRISEVC,,CAR LEASING - PRIVATE RENTALS,20/03/2019,000006273535978,106.42,ENTERPRISE RENT-A-CAR
OXFORDSHIRE CC,"CHILDRENS, YOUNG PEOPLE AND FAMILIES","	LOOKED AFTER NORTH",HIRE OF ACCOMMODATION AND FACILITIES,20/03/2019,000006273535004,120.00,PREMIER INN
OXFORDSHIRE CC,"CHILDRENS, YOUNG PEOPLE AND FAMILIES",THAME E&A HOME,PAYMENT TO GOVERNMENT DEPARTMENTS,20/03/2019,000006273535012,1.00,WYCOMBE DISTRICT COUNC
OXFORDSHIRE CC,"CHILDRENS, YOUNG PEOPLE AND FAMILIES",THAME E&A HOME,ENTERTAINMENT EXPENSES,20/03/2019,000006273535016,18.00,HTTPS://WWW.RUSHUK.COM
OXFORDSHIRE CC,"CHILDRENS, YOUNG PEOPLE AND FAMILIES",WITNEY,CATERING PROVISIONS,20/03/2019,000006273535022,1.15,SAINSBURYS SACAT 0632
OXFORDSHIRE CC,ENVIRONMENT AND ECONOMY,"	LEP","SUPPLIES, STATIONERY AND MATERIALS",20/03/2019,000006273535026,54.89,AMAZON.CO.UK MW4FL17G4
OXFORDSHIRE CC,"CHILDRENS, YOUNG PEOPLE AND FAMILIES","	NCS",PAYMENTS TO TRANSPORT OPERATORS,20/03/2019,000006273535032,4.00,WWW.GWR.COM
OXFORDSHIRE CC,"CHILDRENS, YOUNG PEOPLE AND FAMILIES","	NCS",PAYMENTS TO TRANSPORT OPERATORS,20/03/2019,000006273535034,12.60,WWW.GWR.COM
OXFORDSHIRE CC,"CHILDRENS, YOUNG PEOPLE AND FAMILIES","	NCS","PUBLICITY, PROMOTIONS AND ADVERTISEMENT",20/03/2019,000006273535038,9.41,FACEBK  CPX7BKWGW2
OXFORDSHIRE CC,ENTERPRISEVC,,CAR LEASING - PRIVATE RENTALS,20/03/2019,000006273535982,53.76,ENTERPRISE RENT-A-CAR
OXFORDSHIRE CC,ENTERPRISEVC,,CAR LEASING - PRIVATE RENTALS,20/03/2019,000006273535988,411.60,ENTERPRISE RENT-A-CAR
OXFORDSHIRE CC,ENTERPRISEVC,,CAR LEASING - PRIVATE RENTALS,20/03/2019,000006273535994,415.97,ENTERPRISE RENT-A-CAR
OXFORDSHIRE CC,ENTERPRISEVC,,CAR LEASING - PRIVATE RENTALS,20/03/2019,000006273535998,76.15,ENTERPRISE RENT-A-CAR
OXFORDSHIRE CC,ENTERPRISEVC,,CAR LEASING - PRIVATE RENTALS,20/03/2019,000006273536002,31.66,ENTERPRISE RENT-A-CAR
OXFORDSHIRE CC,ENTERPRISEVC,,CAR LEASING - PRIVATE RENTALS,20/03/2019,000006273536006,411.60,ENTERPRISE RENT-A-CAR
OXFORDSHIRE CC,ENTERPRISEVC,,CAR LEASING - PRIVATE RENTALS,20/03/2019,000006273536010,415.97,ENTERPRISE RENT-A-CAR
OXFORDSHIRE CC,ENTERPRISEVC,,CAR LEASING - PRIVATE RENTALS,20/03/2019,000006273536014,411.60,ENTERPRISE RENT-A-CAR
OXFORDSHIRE CC,ENTERPRISEVC,,CAR LEASING - PRIVATE RENTALS,20/03/2019,000006273536016,411.60,ENTERPRISE RENT-A-CAR
OXFORDSHIRE CC,ENTERPRISEVC,,CAR LEASING - PRIVATE RENTALS,20/03/2019,000006273536020,26.16,ENTERPRISE RENT-A-CAR
OXFORDSHIRE CC,ENTERPRISEVC,,CAR LEASING - PRIVATE RENTALS,20/03/2019,000006273536024,43.18,ENTERPRISE RENT-A-CAR
OXFORDSHIRE CC,SOCIAL AND COMMUNITY SERVICES,"	CENTRAL LIBRARY",EQUIPMENT,20/03/2019,000006273535576,9.48,WWW ESPARES CO UK
OXFORDSHIRE CC,SOCIAL AND COMMUNITY SERVICES,"	MTFC",CATERING PROVISIONS,20/03/2019,000006273535580,4.50,TESCO STORES 2994
OXFORDSHIRE CC,SOCIAL AND COMMUNITY SERVICES,"	MTFC",CATERING PROVISIONS,20/03/2019,000006273535580,6.19,TESCO STORES 2994
OXFORDSHIRE CC,"CHILDRENS, YOUNG PEOPLE AND FAMILIES","	ADOPTION",CATERING PROVISIONS,20/03/2019,000006273535586,12.25,SAINSBURYS SACAT 0632
OXFORDSHIRE CC,CORPORATE CORE,"	CORPORATE FINANCE",PAYMENTS TO TRANSPORT OPERATORS,20/03/2019,000006273535596,49.70,WWW.GWR.COM
OXFORDSHIRE CC,CORPORATE CORE,"	CORPORATE FINANCE",PAYMENTS TO TRANSPORT OPERATORS,20/03/2019,000006273535598,123.00,WWW.GWR.COM
OXFORDSHIRE CC,"CHILDRENS, YOUNG PEOPLE AND FAMILIES","	LEAVING CARE NORTH",CATERING,20/03/2019,000006273535642,7.49,MCDONALDS
OXFORDSHIRE CC,"CHILDRENS, YOUNG PEOPLE AND FAMILIES","	LEAVING CARE NORTH",CATERING PROVISIONS,20/03/2019,000006273535646,16.00,TESCO STORE 2064
OXFORDSHIRE CC,ENVIRONMENT AND ECONOMY,"	LEP",OTHER TRANSPORT ARRANGEMENTS,20/03/2019,000006273535678,6.20,APCOA CONNECT - FGW
OXFORDSHIRE CC,"CHILDRENS, YOUNG PEOPLE AND FAMILIES",NTH EARLY HELP-WITNY,"SUPPLIES, STATIONERY AND MATERIALS",20/03/2019,000006273535696,112.61,CUSTOMARK LTD
OXFORDSHIRE CC,ENVIRONMENT AND ECONOMY,"	FLEET OPERATIONS",VEHICLES REPAIRS AND MAINTENANCE,20/03/2019,000006273535702,196.87,NATIONAL WINDSCREENS
OXFORDSHIRE CC,"CHILDRENS, YOUNG PEOPLE AND FAMILIES","	FAMILY SUPPORT CITY3",OTHER EXPENSES,20/03/2019,000006273535716,105.79,AMZN MKTP UK MW6I21KD4
OXFORDSHIRE CC,"CHILDRENS, YOUNG PEOPLE AND FAMILIES","	FAM SUPP CITY 1",CATERING PROVISIONS,20/03/2019,000006273535742,77.60,MILK&MORE
OXFORDSHIRE CC,"CHILDRENS, YOUNG PEOPLE AND FAMILIES","	40 THE MOORS",CATERING,20/03/2019,000006273535754,19.99,WWW.DOMINOS.CO.UK
OXFORDSHIRE CC,SOCIAL AND COMMUNITY SERVICES,CSS - BANBURY,CAR LEASING - PRIVATE RENTALS,20/03/2019,000006273535760,1.50,DAYS FLEET
OXFORDSHIRE CC,"CHILDRENS, YOUNG PEOPLE AND FAMILIES","	LOOKED AFTER SOUTH",CATERING,20/03/2019,000006273535766,6.59,SUBWAY
OXFORDSHIRE CC,"CHILDRENS, YOUNG PEOPLE AND FAMILIES","	LOOKED AFTER SOUTH",CATERING PROVISIONS,20/03/2019,000006273535774,8.90,TESCO STORES 2008
OXFORDSHIRE CC,SOCIAL AND COMMUNITY SERVICES,CSS - BANBURY,VEHICLE FUEL,20/03/2019,000006273534850,33.00,TESCO PFS 4267
OXFORDSHIRE CC,SOCIAL AND COMMUNITY SERVICES,CSS - BANBURY,CATERING PROVISIONS,20/03/2019,000006273534854,8.10,TESCO STORE 2064
OXFORDSHIRE CC,CORPORATE CORE,"	ORGANISATIONAL DEV'T",PAYMENTS TO TRANSPORT OPERATORS,20/03/2019,000006273535800,70.50,TRAINLINE
OXFORDSHIRE CC,"CHILDRENS, YOUNG PEOPLE AND FAMILIES","	40 THE MOORS",CATERING PROVISIONS,20/03/2019,000006273535812,7.00,TESCO STORE 2788
OXFORDSHIRE CC,"CHILDRENS, YOUNG PEOPLE AND FAMILIES","	MALTFIELD HOUSE",OTHER EXPENSES,20/03/2019,000006273535818,15.50,M & S SIMPLY FOOD
OXFORDSHIRE CC,"CHILDRENS, YOUNG PEOPLE AND FAMILIES","	MALTFIELD HOUSE",OTHER EXPENSES,20/03/2019,000006273535826,4.29,WH SMITH TRAVEL
OXFORDSHIRE CC,"CHILDRENS, YOUNG PEOPLE AND FAMILIES",DIDCOT MOVE-ON HOME,CATERING PROVISIONS,20/03/2019,000006273535856,14.05,SAINSBURYS 2067
OXFORDSHIRE CC,SOCIAL AND COMMUNITY SERVICES,CSS - BANBURY,MATERIALS,20/03/2019,000006273534860,5.97,HOME BARGAINS BANBURY
OXFORDSHIRE CC,SOCIAL AND COMMUNITY SERVICES,CSS BICESTER,MATERIALS,20/03/2019,000006273534866,12.55,WILKO RETAIL LIMIT
OXFORDSHIRE CC,SOCIAL AND COMMUNITY SERVICES,CSS WANTAGE,MATERIALS,20/03/2019,000006273534878,10.96,B & M RETAIL
OXFORDSHIRE CC,"CHILDRENS, YOUNG PEOPLE AND FAMILIES",THAME E&A HOME,LAUNDRY AND DRY CLEANING,20/03/2019,000006273534898,33.00,JOHNSONS
OXFORDSHIRE CC,"CHILDRENS, YOUNG PEOPLE AND FAMILIES",NTH FAM SUPRT-BCSTR,PAYMENTS TO TRANSPORT OPERATORS,20/03/2019,000006273535236,-31.75,WWW.GWR.COM
OXFORDSHIRE CC,ENTERPRISEVC,OPERATIONAL COSTS,CATERING PROVISIONS,20/03/2019,000006273535242,11.80,SAINSBURYS 0730
OXFORDSHIRE CC,SOCIAL AND COMMUNITY SERVICES,CSS WALLINGFORD,CATERING PROVISIONS,20/03/2019,000006273535252,7.48,LIDL GB WALLINGFORD
OXFORDSHIRE CC,ENTERPRISEVC,OTFC TEAM,CATERING PROVISIONS,20/03/2019,000006273535308,7.59,SAINSBURYS 0600
OXFORDSHIRE CC,ENTERPRISEVC,OTFC TEAM,CATERING PROVISIONS,20/03/2019,000006273535310,4.40,SAINSBURYS 0600
OXFORDSHIRE CC,CORPORATE CORE,"	MAJOR PROGRAMMES","SUPPLIES, STATIONERY AND MATERIALS",20/03/2019,000006273535330,11.98,RYMAN 1172
OXFORDSHIRE CC,"CHILDRENS, YOUNG PEOPLE AND FAMILIES","	MALTFIELD HOUSE",MATERIALS,20/03/2019,000006273535342,4.40,M & S SIMPLY FOOD
OXFORDSHIRE CC,"CHILDRENS, YOUNG PEOPLE AND FAMILIES","	MALTFIELD HOUSE",MATERIALS,20/03/2019,000006273535344,2.50,WH SMITH TRAVEL
OXFORDSHIRE CC,ENVIRONMENT AND ECONOMY,"	E&I STAFF",HOSPITALITY EXPENSES,20/03/2019,000006273535350,190.00,ST ALDATES TAVERN
OXFORDSHIRE CC,CORPORATE CORE,LIBRARY COLLECTIONS,MATERIALS,20/03/2019,000006273535358,-7.99,AMAZON PRIME
OXFORDSHIRE CC,ENVIRONMENT AND ECONOMY,"	WASTE MNGMNT GEN",PAYMENTS TO TRANSPORT OPERATORS,20/03/2019,000006273535432,86.30,WWW.GWR.COM
OXFORDSHIRE CC,"CHILDRENS, YOUNG PEOPLE AND FAMILIES","	MUSIC UNALLOCABLE",HARDWARE AND CROCKERY,20/03/2019,000006273535440,65.82,BLANCHFORD & CO
OXFORDSHIRE CC,ENVIRONMENT AND ECONOMY,"	BRIDGES GENERAL",MATERIALS,20/03/2019,000006273535446,39.99,ARGOS LTD
OXFORDSHIRE CC,ENVIRONMENT AND ECONOMY,"	LPP MANAGEMENT",PAYMENTS TO TRANSPORT OPERATORS,20/03/2019,000006273535458,59.50,WWW.GWR.COM
OXFORDSHIRE CC,"CHILDRENS, YOUNG PEOPLE AND FAMILIES","	LOOKED AFTER CITY 2",PAYMENTS TO TRANSPORT OPERATORS,20/03/2019,000006273535480,43.40,GWR DIDCOT PKWY TO
OXFORDSHIRE CC,"CHILDRENS, YOUNG PEOPLE AND FAMILIES","	LOOKED AFTER CITY 2",OTHER TRANSPORT ARRANGEMENTS,20/03/2019,000006273535484,6.30,APCOA CONNECT - FGW
OXFORDSHIRE CC,"CHILDRENS, YOUNG PEOPLE AND FAMILIES","	MALTFIELD HOUSE",CATERING,20/03/2019,000006273535504,46.27,SAINSBURYS SACAT 0631
OXFORDSHIRE CC,"CHILDRENS, YOUNG PEOPLE AND FAMILIES","	MALTFIELD HOUSE",CATERING,20/03/2019,000006273535508,7.81,MCDONALDS
OXFORDSHIRE CC,CORPORATE CORE,HISTORY SERVICE,"BOOKS, DVDS AND CDS",20/03/2019,000006273535532,8.16,AMZN MKTP UK MW4O96KU4
OXFORDSHIRE CC,"CHILDRENS, YOUNG PEOPLE AND FAMILIES",EET SERVICE,"SUPPLIES, STATIONERY AND MATERIALS",20/03/2019,000006273535550,289.00,EB  HOW SAFE ARE OUR C
OXFORDSHIRE CC,"CHILDRENS, YOUNG PEOPLE AND FAMILIES","	LOOKED AFTER CITY 2",CATERING,20/03/2019,000006273535552,2.95,COSTA @ NEXT 43040070
OXFORDSHIRE CC,"CHILDRENS, YOUNG PEOPLE AND FAMILIES",UASC 16&17,TELEPHONE - EQUIPMENT,20/03/2019,000006273535072,16.00,VODAFONE
OXFORDSHIRE CC,ENVIRONMENT AND ECONOMY,HARD FM,EQUIPMENT,20/03/2019,000006273535076,34.23,WILTS ELECTRICAL
OXFORDSHIRE CC,ENVIRONMENT AND ECONOMY,HARD FM,EQUIPMENT,20/03/2019,000006273535080,26.80,WILTS ELECTRICAL
OXFORDSHIRE CC,ENVIRONMENT AND ECONOMY,HARD FM,HARDWARE AND CROCKERY,20/03/2019,000006273535084,17.98,HOMEBASE LTD 091
OXFORDSHIRE CC,ENVIRONMENT AND ECONOMY,HARD FM,HARDWARE AND CROCKERY,20/03/2019,000006273535088,66.38,SCREWFIX OXFORD
OXFORDSHIRE CC,ENVIRONMENT AND ECONOMY,HARD FM,HARDWARE AND CROCKERY,20/03/2019,000006273535092,29.88,BUILDBASE - OXFORD
OXFORDSHIRE CC,ENVIRONMENT AND ECONOMY,HARD FM,HARDWARE AND CROCKERY,20/03/2019,000006273535098,40.45,BUILDBASE - OXFORD
OXFORDSHIRE CC,ENVIRONMENT AND ECONOMY,HARD FM,EQUIPMENT,20/03/2019,000006273535102,79.74,WILTS ELECTRICAL
OXFORDSHIRE CC,ENTERPRISEVC,,CAR LEASING - PRIVATE RENTALS,20/03/2019,000006273536030,415.97,ENTERPRISE RENT-A-CAR
OXFORDSHIRE CC,ENVIRONMENT AND ECONOMY,EET SERVICE,PAYMENTS TO TRANSPORT OPERATORS,20/03/2019,000006273536036,33.32,TRAINLINE
OXFORDSHIRE CC,"CHILDRENS, YOUNG PEOPLE AND FAMILIES",PLACEMENTS-FRELEVANT,HIRE OF ACCOMMODATION AND FACILITIES,20/03/2019,000006273536042,103.00,HOTEL MERCURE
OXFORDSHIRE CC,"CHILDRENS, YOUNG PEOPLE AND FAMILIES","	DIRECTOR'S OFFICE",PAYMENTS TO TRANSPORT OPERATORS,20/03/2019,000006273536056,-134.70,TRAINLINE
OXFORDSHIRE CC,ENVIRONMENT AND ECONOMY,HARD FM,HARDWARE AND CROCKERY,20/03/2019,000006273535106,13.65,SCREWFIX BICESTER
OXFORDSHIRE CC,ENVIRONMENT AND ECONOMY,HARD FM,HARDWARE AND CROCKERY,20/03/2019,000006273535110,35.98,CITY PLUMBING
OXFORDSHIRE CC,ENVIRONMENT AND ECONOMY,HARD FM,HARDWARE AND CROCKERY,20/03/2019,000006273535112,106.56,SCREWFIX OXFORD
OXFORDSHIRE CC,SOCIAL AND COMMUNITY SERVICES,ADULTS AT RISK,HIRE OF ACCOMMODATION AND FACILITIES,20/03/2019,000006273535120,124.20,HOTEL ON BOOKING.COM
OXFORDSHIRE CC,ENVIRONMENT AND ECONOMY,"	COUNTY PRINT FINSHRS",PAYMENTS TO HEALTH AUTHORITIES,20/03/2019,000006273535122,296.40,WORKING MINDS MATTER
OXFORDSHIRE CC,"CHILDRENS, YOUNG PEOPLE AND FAMILIES","	RIVERSIDE CENTRE",CATERING PROVISIONS,20/03/2019,000006273536106,8.94,TESCO STORES 4377
OXFORDSHIRE CC,"CHILDRENS, YOUNG PEOPLE AND FAMILIES","	LOOKED AFTER NORTH",OTHER TRANSPORT ARRANGEMENTS,20/03/2019,000006273536130,4.20,PHONEANDPAY.CO.UK
OXFORDSHIRE CC,"CHILDRENS, YOUNG PEOPLE AND FAMILIES",C&F - TF CONTRIB,MATERIALS,20/03/2019,000006273536136,63.94,WWW.ARGOS.CO.UK
OXFORDSHIRE CC,"CHILDRENS, YOUNG PEOPLE AND FAMILIES",C&F - TF CONTRIB,MATERIALS,20/03/2019,000006273536140,109.99,AMAZON.CO.UK MW3IG7KF4
OXFORDSHIRE CC,"CHILDRENS, YOUNG PEOPLE AND FAMILIES",C&F - TF CONTRIB,MATERIALS,20/03/2019,000006273536144,38.00,AMAZON.CO.UK MW0RR5KC4
OXFORDSHIRE CC,CORPORATE CORE,"	COMMUNICATIONS",MATERIALS,20/03/2019,000006273536148,20.82,LINKEDIN-452 1012244
OXFORDSHIRE CC,"CHILDRENS, YOUNG PEOPLE AND FAMILIES",EYNSHAM,CATERING,20/03/2019,000006273536154,132.34,TESCO STORES 2008
OXFORDSHIRE CC,SOCIAL AND COMMUNITY SERVICES,CSS - OXFORD,MATERIALS,20/03/2019,000006273535164,15.24,ALDI STORES 775-142
OXFORDSHIRE CC,SOCIAL AND COMMUNITY SERVICES,CSS - OXFORD,CATERING PROVISIONS,20/03/2019,000006273535170,2.98,ALDI STORES 775-142
OXFORDSHIRE CC,SOCIAL AND COMMUNITY SERVICES,CSS - OXFORD,MATERIALS,20/03/2019,000006273535172,19.93,ALDI STORES 775-142
OXFORDSHIRE CC,SOCIAL AND COMMUNITY SERVICES,CSS - OXFORD,CATERING PROVISIONS,20/03/2019,000006273535174,1.90,ALDI STORES 775-142
OXFORDSHIRE CC,"CHILDRENS, YOUNG PEOPLE AND FAMILIES","	LEAVING CARE CITY 1",FURNITURE,20/03/2019,000006273535178,322.84,CARPETRIGHT PLC
OXFORDSHIRE CC,"CHILDRENS, YOUNG PEOPLE AND FAMILIES",WITNEY,CATERING PROVISIONS,20/03/2019,000006273535216,18.95,SAINSBURYS SACAT 0632
OXFORDSHIRE CC,CORPORATE CORE,"	POLICY & IMPROVEMENT","SUPPLIES, STATIONERY AND MATERIALS",19/03/2019,000006269470334,26.52,RYMAN 1172
OXFORDSHIRE CC,CORPORATE CORE,"	POLICY & IMPROVEMENT","SUPPLIES, STATIONERY AND MATERIALS",19/03/2019,000006269470336,16.99,RYMAN 1172
OXFORDSHIRE CC,CORPORATE CORE,"	POLICY & IMPROVEMENT","SUPPLIES, STATIONERY AND MATERIALS",19/03/2019,000006269470338,-4.99,RYMAN 1172
OXFORDSHIRE CC,SOCIAL AND COMMUNITY SERVICES,BOTLEY LIBRARY,"NEWSPAPERS, PERIODICALS AND PUBLICATIONS",19/03/2019,000006269470354,5.60,MARTIN MCCOLL
OXFORDSHIRE CC,SOCIAL AND COMMUNITY SERVICES,CSS BICESTER,CATERING PROVISIONS,19/03/2019,000006269470350,55.65,SAINSBURYS (2243)
OXFORDSHIRE CC,"CHILDRENS, YOUNG PEOPLE AND FAMILIES",CNTL EARLY HELP-RHIL,FURNITURE,19/03/2019,000006269470360,234.99,BEDS TO U
OXFORDSHIRE CC,"CHILDRENS, YOUNG PEOPLE AND FAMILIES",NTH FAM SUPRT-BCSTR,PAYMENT TO GOVERNMENT DEPARTMENTS,19/03/2019,000006269470362,58.50,HM PASSPORT OFFICE
OXFORDSHIRE CC,"CHILDRENS, YOUNG PEOPLE AND FAMILIES","	40 THE MOORS",CATERING,19/03/2019,000006269470506,48.10,TIFFINS
OXFORDSHIRE CC,"CHILDRENS, YOUNG PEOPLE AND FAMILIES","	40 THE MOORS",CATERING PROVISIONS,19/03/2019,000006269470508,6.45,TESCO STORE 2788
OXFORDSHIRE CC,SOCIAL AND COMMUNITY SERVICES,CSS - BANBURY,POSTAGE AND DELIVERY,19/03/2019,000006269470512,2.00,ROYAL MAIL CHARGES
OXFORDSHIRE CC,ENVIRONMENT AND ECONOMY,"	LIBRARY PROJECTS",MATERIALS,19/03/2019,000006269470514,24.92,AMAZON.CO.UK MW82R3S14
OXFORDSHIRE CC,"CHILDRENS, YOUNG PEOPLE AND FAMILIES","	MALTFIELD HOUSE",OTHER EXPENSES,19/03/2019,000006269470518,3.75,COSTA COFFEE 43039930
OXFORDSHIRE CC,"CHILDRENS, YOUNG PEOPLE AND FAMILIES","	MALTFIELD HOUSE",STAFF SUBSISTENCE,19/03/2019,000006269470520,4.00,WORCESTER STREET CAR P
OXFORDSHIRE CC,"CHILDRENS, YOUNG PEOPLE AND FAMILIES","	MALTFIELD HOUSE",OTHER EXPENSES,19/03/2019,000006269470522,18.00,REGEIN HAIR SALON
OXFORDSHIRE CC,"CHILDRENS, YOUNG PEOPLE AND FAMILIES",C&F - TF CONTRIB,PAYMENTS TO TRANSPORT OPERATORS,19/03/2019,000006269470584,67.50,WWW.GWR.COM
OXFORDSHIRE CC,CORPORATE CORE,"	COMMUNICATIONS","PUBLICITY, PROMOTIONS AND ADVERTISEMENT",19/03/2019,000006269470586,500.00,FACEBK  AMMXFKW8Z2
OXFORDSHIRE CC,SOCIAL AND COMMUNITY SERVICES,CSS BICESTER,CATERING PROVISIONS,19/03/2019,000006269470272,2.40,SAINSBURYS SACAT (2243
OXFORDSHIRE CC,"CHILDRENS, YOUNG PEOPLE AND FAMILIES","	RIVERSIDE CENTRE",CATERING PROVISIONS,19/03/2019,000006269470432,17.04,TESCO STORES 4377
OXFORDSHIRE CC,"CHILDRENS, YOUNG PEOPLE AND FAMILIES",THAME E&A HOME,CATERING PROVISIONS,19/03/2019,000006269470434,106.00,SAINSBURYS TO YOU 0600
OXFORDSHIRE CC,SOCIAL AND COMMUNITY SERVICES,CSS WANTAGE,CATERING PROVISIONS,19/03/2019,000006269470276,15.50,TESCO STORE 2413
OXFORDSHIRE CC,"CHILDRENS, YOUNG PEOPLE AND FAMILIES","	FAMILY SUPPORT S'TH2",CLIENT LODGINGS AND ACCOMMODATION,19/03/2019,000006269470278,70.00,HOTEL ON BOOKING.COM
OXFORDSHIRE CC,"CHILDRENS, YOUNG PEOPLE AND FAMILIES","	FAMILY SUPPORT S'TH2",PAYMENTS TO TRANSPORT OPERATORS,19/03/2019,000006269470280,123.00,WWW.GWR.COM
OXFORDSHIRE CC,"CHILDRENS, YOUNG PEOPLE AND FAMILIES","	LOOKED AFTER CITY 2",CATERING,19/03/2019,000006269470444,3.25,COSTA COWLEY ROAD OXFO
OXFORDSHIRE CC,SOCIAL AND COMMUNITY SERVICES,CSS WITNEY,CATERING PROVISIONS,19/03/2019,000006269470296,12.00,TESCO STORES
OXFORDSHIRE CC,"CHILDRENS, YOUNG PEOPLE AND FAMILIES","	FAMILY SUPPORT CITY3",CATERING,19/03/2019,000006269470300,3.85,CAFE LOCO TRADING
OXFORDSHIRE CC,"CHILDRENS, YOUNG PEOPLE AND FAMILIES","	FAMILY SUPPORT CITY3",OTHER TRANSPORT ARRANGEMENTS,19/03/2019,000006269470302,5.00,WESTGATE OXFORD CAR PA
OXFORDSHIRE CC,"CHILDRENS, YOUNG PEOPLE AND FAMILIES","	LEAVING CARE NORTH",PAYMENTS TO TRANSPORT OPERATORS,19/03/2019,000006269470462,4.00,OXFORD PARKWAY SSTP
OXFORDSHIRE CC,"CHILDRENS, YOUNG PEOPLE AND FAMILIES","	LEAVING CARE NORTH",CATERING,19/03/2019,000006269470460,4.45,CAFE LOCO TRADING
OXFORDSHIRE CC,"CHILDRENS, YOUNG PEOPLE AND FAMILIES",OXFORDSHIRE,POSTAGE AND DELIVERY,19/03/2019,000006269470310,1.50,ROYAL MAIL CHARGES
OXFORDSHIRE CC,"CHILDRENS, YOUNG PEOPLE AND FAMILIES","	LEAVING CARE NORTH",CATERING EQUIPMENT,19/03/2019,000006269470312,44.70,SAINSBURYS 0632
OXFORDSHIRE CC,"CHILDRENS, YOUNG PEOPLE AND FAMILIES",WITNEY,CATERING PROVISIONS,19/03/2019,000006269470314,25.05,SAINSBURYS 0632
OXFORDSHIRE CC,"CHILDRENS, YOUNG PEOPLE AND FAMILIES","	LEAVING CARE NORTH",PAYMENTS TO TRANSPORT OPERATORS,19/03/2019,000006269470464,3.60,OXFORD PARKWAY SSTP
OXFORDSHIRE CC,"CHILDRENS, YOUNG PEOPLE AND FAMILIES","	LEAVING CARE NORTH",CATERING PROVISIONS,19/03/2019,000006269470466,3.00,TESCO STORES 6167
OXFORDSHIRE CC,"CHILDRENS, YOUNG PEOPLE AND FAMILIES","	MALTFIELD HOUSE",CATERING PROVISIONS,19/03/2019,000006269470470,133.87,SAINSBURYS TO YOU 0600
OXFORDSHIRE CC,ENVIRONMENT AND ECONOMY,"	LEP",PAYMENTS TO TRANSPORT OPERATORS,19/03/2019,000006269470474,76.11,TRAINLINE
OXFORDSHIRE CC,"CHILDRENS, YOUNG PEOPLE AND FAMILIES",WITNEY,CATERING PROVISIONS,19/03/2019,000006269470320,6.00,TESCO STORES 2994
OXFORDSHIRE CC,SOCIAL AND COMMUNITY SERVICES,CSS WITNEY,CATERING PROVISIONS,19/03/2019,000006269470478,162.90,TESCO STORES 2008
OXFORDSHIRE CC,SOCIAL AND COMMUNITY SERVICES,CSS WANTAGE,CATERING PROVISIONS,19/03/2019,000006269470480,88.93,MAKRO SELF SERVICE
OXFORDSHIRE CC,SOCIAL AND COMMUNITY SERVICES,CSS - ABINGDON,CATERING PROVISIONS,19/03/2019,000006269470332,4.65,TESCO STORES 2008
OXFORDSHIRE CC,"CHILDRENS, YOUNG PEOPLE AND FAMILIES",DIDCOT MOVE-ON HOME,CATERING PROVISIONS,19/03/2019,000006269470526,18.44,SAINSBURYS SACAT 2067
OXFORDSHIRE CC,"CHILDRENS, YOUNG PEOPLE AND FAMILIES",STEP INTO TRAINING,"SUPPLIES, STATIONERY AND MATERIALS",19/03/2019,000006269470530,46.50,AMZN MKTP UK MW8YM62X4
OXFORDSHIRE CC,"CHILDRENS, YOUNG PEOPLE AND FAMILIES",CNTL ERLY HELP-BBLEY,CATERING PROVISIONS,19/03/2019,000006269470384,4.68,TESCO STORE 2990
OXFORDSHIRE CC,"CHILDRENS, YOUNG PEOPLE AND FAMILIES",VULNERABLE LEARNERS,"SUPPLIES, STATIONERY AND MATERIALS",19/03/2019,000006269470532,174.95,PAYPAL  HINTONHOUSE
OXFORDSHIRE CC,SOCIAL AND COMMUNITY SERVICES,"	LEADERSHIP TEAM",PAYMENTS TO TRANSPORT OPERATORS,19/03/2019,000006269470536,73.30,WWW.GWR.COM
OXFORDSHIRE CC,ENVIRONMENT AND ECONOMY,"	ROW MAINT",HIRE OF EQUIPMENT,19/03/2019,000006269470394,115.20,HELPFUL HIRINGS
OXFORDSHIRE CC,"CHILDRENS, YOUNG PEOPLE AND FAMILIES","	LEAVING CARE CITY 1",PAYMENT TO GOVERNMENT DEPARTMENTS,19/03/2019,000006269470542,198.54,OXFORD CITY COUNCIL DO
OXFORDSHIRE CC,"CHILDRENS, YOUNG PEOPLE AND FAMILIES","	MALTFIELD HOUSE",CLOTHING AND UNIFORMS,19/03/2019,000006269470550,-12.00,21THREE CLOTHING COMPA
OXFORDSHIRE CC,"CHILDRENS, YOUNG PEOPLE AND FAMILIES","	40 THE MOORS",CATERING PROVISIONS,19/03/2019,000006269470552,166.04,ASDA GROCERIES ONLINE
OXFORDSHIRE CC,"CHILDRENS, YOUNG PEOPLE AND FAMILIES","	MUSIC UNALLOCABLE",HARDWARE AND CROCKERY,19/03/2019,000006269470406,-23.94,BLANCHFORD & CO
OXFORDSHIRE CC,"CHILDRENS, YOUNG PEOPLE AND FAMILIES",LOCALITY & COMMUNITY SUPPORT SERVICE,"BOOKS, DVDS AND CDS",19/03/2019,000006269470556,29.99,AMZN MKTP UK MW9N81SP4
OXFORDSHIRE CC,"CHILDRENS, YOUNG PEOPLE AND FAMILIES",THAME E&A HOME,DRUGS AND MEDICAL SUPPLIES,19/03/2019,000006269470558,10.68,"BOOTS,THAME"
OXFORDSHIRE CC,"CHILDRENS, YOUNG PEOPLE AND FAMILIES","	LOOKED AFTER NORTH",OTHER TRANSPORT ARRANGEMENTS,19/03/2019,000006269470560,.60,CHERWELL DC CAR PARK
OXFORDSHIRE CC,"CHILDRENS, YOUNG PEOPLE AND FAMILIES","	LOOKED AFTER NORTH",CATERING PROVISIONS,19/03/2019,000006269470562,7.70,COSTA BICESTER
OXFORDSHIRE CC,SOCIAL AND COMMUNITY SERVICES,ADULTS AT RISK,MATERIALS,19/03/2019,000006269470566,-7.99,AMAZON PRIME
OXFORDSHIRE CC,ENVIRONMENT AND ECONOMY,"	COUNTY HALL",MATERIALS,19/03/2019,000006269470412,4.99,EXTRA ELECTRICAL HARD
OXFORDSHIRE CC,"CHILDRENS, YOUNG PEOPLE AND FAMILIES","	LOOKED AFTER CITY 1",PAYMENT TO GOVERNMENT DEPARTMENTS,19/03/2019,000006269470418,11.00,DARLINGTON BC INTERNET
OXFORDSHIRE CC,SOCIAL AND COMMUNITY SERVICES,CSS - BANBURY,CATERING PROVISIONS,19/03/2019,000006269470262,64.72,SAINSBURYS TO YOU 0642
OXFORDSHIRE CC,SOCIAL AND COMMUNITY SERVICES,CSS - BANBURY,CATERING PROVISIONS,19/03/2019,000006269470264,3.15,TESCO STORE 2064
OXFORDSHIRE CC,"CHILDRENS, YOUNG PEOPLE AND FAMILIES","	MUSIC UNALLOCABLE",OTHER TRANSPORT ARRANGEMENTS,18/03/2019,000006261691830,57.99,WWW.LONDON-LUTON.CO.UK
OXFORDSHIRE CC,"CHILDRENS, YOUNG PEOPLE AND FAMILIES","	MUSIC UNALLOCABLE","BOOKS, DVDS AND CDS",18/03/2019,000006261691834,31.70,AMAZON.CO.UK MW6G92614
OXFORDSHIRE CC,SOCIAL AND COMMUNITY SERVICES,CSS - OXFORD,DISABILITY AIDS AND EQUIPMENT,18/03/2019,000006261691836,17.97,AMZN MKTP UK MW7DV7QE4
OXFORDSHIRE CC,ENVIRONMENT AND ECONOMY,"	PROPERTY & PROC MGT",CATERING PROVISIONS,18/03/2019,000006261691842,40.80,MARKS&SPENCER PLC
OXFORDSHIRE CC,"CHILDRENS, YOUNG PEOPLE AND FAMILIES","	DISABILITIES TEAM-C",HIRE OF ACCOMMODATION AND FACILITIES,18/03/2019,000006261691852,69.00,COMFORT INNS
OXFORDSHIRE CC,"CHILDRENS, YOUNG PEOPLE AND FAMILIES","	LOOKED AFTER CITY 2",PAYMENTS TO TRANSPORT OPERATORS,18/03/2019,000006261691854,45.40,GWR OXFORD TO
OXFORDSHIRE CC,"CHILDRENS, YOUNG PEOPLE AND FAMILIES","	LOOKED AFTER CITY 2",OTHER TRANSPORT ARRANGEMENTS,18/03/2019,000006261691856,6.60,APCOA CONNECT - FGW
OXFORDSHIRE CC,"CHILDRENS, YOUNG PEOPLE AND FAMILIES","	MALTFIELD HOUSE",OTHER EXPENSES,18/03/2019,000006261691858,24.99,ARGOS LTD
OXFORDSHIRE CC,"CHILDRENS, YOUNG PEOPLE AND FAMILIES","	MALTFIELD HOUSE",CATERING,18/03/2019,000006261691860,41.45,SUPERDRUG STORES PLC
OXFORDSHIRE CC,"CHILDRENS, YOUNG PEOPLE AND FAMILIES","	MALTFIELD HOUSE",STAFF SUBSISTENCE,18/03/2019,000006261691862,3.00,WESTGATE OXFORD CAR PA
OXFORDSHIRE CC,"CHILDRENS, YOUNG PEOPLE AND FAMILIES","	MALTFIELD HOUSE",OTHER EXPENSES,18/03/2019,000006261691864,4.00,CLAIRE'S ACCESSORIES
OXFORDSHIRE CC,"CHILDRENS, YOUNG PEOPLE AND FAMILIES","	MALTFIELD HOUSE",OTHER EXPENSES,18/03/2019,000006261691866,4.00,TIGER LILY LTD
OXFORDSHIRE CC,"CHILDRENS, YOUNG PEOPLE AND FAMILIES",CNTL EARLY HELP-RHIL,CATERING PROVISIONS,18/03/2019,000006261691874,7.38,CO-OPERATIVE FOOD
OXFORDSHIRE CC,CORPORATE CORE,"	LEGAL SERVICES",STAFF SUBSISTENCE,18/03/2019,000006261691876,73.30,WWW.GWR.COM
OXFORDSHIRE CC,"CHILDRENS, YOUNG PEOPLE AND FAMILIES","	RIVERSIDE CENTRE",CATERING PROVISIONS,18/03/2019,000006261691878,8.15,TESCO STORES 4377
OXFORDSHIRE CC,"CHILDRENS, YOUNG PEOPLE AND FAMILIES","	RIVERSIDE CENTRE",DAY ACTIVITIES,18/03/2019,000006261691880,4.50,SPORTS CENTRE
OXFORDSHIRE CC,"CHILDRENS, YOUNG PEOPLE AND FAMILIES","	RIVERSIDE CENTRE",DAY ACTIVITIES,18/03/2019,000006261691882,15.00,SPORTS CENTRE
OXFORDSHIRE CC,"CHILDRENS, YOUNG PEOPLE AND FAMILIES","	LEAVING CARE NORTH",CLOTHING AND UNIFORMS,18/03/2019,000006261691884,175.00,J D SPORTS
OXFORDSHIRE CC,"CHILDRENS, YOUNG PEOPLE AND FAMILIES","	LOOKED AFTER CITY 2",VEHICLE FUEL,18/03/2019,000006261691888,65.40,TESCO PAY AT PUMP 3418
OXFORDSHIRE CC,SOCIAL AND COMMUNITY SERVICES,"	CENTRAL LIBRARY",MATERIALS,18/03/2019,000006261691890,296.88,TIM'S NEWSAGENT
OXFORDSHIRE CC,"CHILDRENS, YOUNG PEOPLE AND FAMILIES","	LOOKED AFTER CITY 2",MATERIALS,18/03/2019,000006261691900,5.00,THEWORKS.CO.UK
OXFORDSHIRE CC,"CHILDRENS, YOUNG PEOPLE AND FAMILIES","	MALTFIELD HOUSE",CATERING PROVISIONS,18/03/2019,000006261691910,151.79,SAINSBURYS TO YOU 0600
OXFORDSHIRE CC,"CHILDRENS, YOUNG PEOPLE AND FAMILIES","	MALTFIELD HOUSE",CATERING PROVISIONS,18/03/2019,000006261691912,1.35,SAINSBURYS SACAT 0631
OXFORDSHIRE CC,SOCIAL AND COMMUNITY SERVICES,CSS WITNEY,MATERIALS,18/03/2019,000006261691926,6.48,WELLWORTH IT!
OXFORDSHIRE CC,SOCIAL AND COMMUNITY SERVICES,CSS WITNEY,MATERIALS,18/03/2019,000006261691928,19.48,AMAZON.CO.UK MW0K58DW4
OXFORDSHIRE CC,"CHILDRENS, YOUNG PEOPLE AND FAMILIES",C&I NON PUBLIC FUND,"BOOKS, DVDS AND CDS",18/03/2019,000006261691930,14.50,AMAZON.CO.UK MW6V966Y4
OXFORDSHIRE CC,"CHILDRENS, YOUNG PEOPLE AND FAMILIES","	MARLBOROUGH",MATERIALS,18/03/2019,000006261691932,32.24,AMZN MKTP UK MW82Q4DC4
OXFORDSHIRE CC,"CHILDRENS, YOUNG PEOPLE AND FAMILIES",C&I BASE ST ANDREWS,MATERIALS,18/03/2019,000006261691934,21.40,AMZN MKTP UK MW4RE4DR4
OXFORDSHIRE CC,"CHILDRENS, YOUNG PEOPLE AND FAMILIES",C&I BASE ST ANDREWS,MATERIALS,18/03/2019,000006261691936,42.79,AMZN MKTP UK MW65V8S24
OXFORDSHIRE CC,"CHILDRENS, YOUNG PEOPLE AND FAMILIES","	MARLBOROUGH",MATERIALS,18/03/2019,000006261691938,82.23,AMZN MKTP UK MW8BV1SB4
OXFORDSHIRE CC,"CHILDRENS, YOUNG PEOPLE AND FAMILIES",THAME E&A HOME,DRUGS AND MEDICAL SUPPLIES,18/03/2019,000006261691696,20.76,SUPERDRUG STORES PLC
OXFORDSHIRE CC,"CHILDRENS, YOUNG PEOPLE AND FAMILIES",THAME E&A HOME,DRUGS AND MEDICAL SUPPLIES,18/03/2019,000006261691698,14.00,SUPERDRUG STORES PLC
OXFORDSHIRE CC,CORPORATE CORE,"	COMMUNICATIONS",IT SOFTWARE,18/03/2019,000006261692064,19.49,ZAPIER.COM/CHARGE
OXFORDSHIRE CC,CORPORATE CORE,"	COMMUNICATIONS",MATERIALS,18/03/2019,000006261692066,500.00,GOOGLE  ADS4896546035
OXFORDSHIRE CC,"CHILDRENS, YOUNG PEOPLE AND FAMILIES",EYNSHAM,CATERING,18/03/2019,000006261692068,166.29,SAINSBURYS 0632
OXFORDSHIRE CC,ENVIRONMENT AND ECONOMY,"	COUNTY PRINT FINSHRS","SUPPLIES, STATIONERY AND MATERIALS",18/03/2019,000006261691702,165.76,EB  GROWTH A FORCE FOR
OXFORDSHIRE CC,SOCIAL AND COMMUNITY SERVICES,RESIDENTIAL STRATEGY,CATERING,18/03/2019,000006261691704,1.09,MCDONALDS
OXFORDSHIRE CC,SOCIAL AND COMMUNITY SERVICES,RESIDENTIAL STRATEGY,CATERING PROVISIONS,18/03/2019,000006261691706,7.50,SAINSBURYS 0600
OXFORDSHIRE CC,SOCIAL AND COMMUNITY SERVICES,RESIDENTIAL STRATEGY,MATERIALS,18/03/2019,000006261691708,10.00,HOBBYCRAFT
OXFORDSHIRE CC,"CHILDRENS, YOUNG PEOPLE AND FAMILIES","	LOOKED AFTER NORTH",MATERIALS,18/03/2019,000006261691712,47.91,AMAZON.CO.UK MW7SH9Q24
OXFORDSHIRE CC,"CHILDRENS, YOUNG PEOPLE AND FAMILIES","	LOOKED AFTER NORTH",MATERIALS,18/03/2019,000006261691714,181.95,WWW.ARGOS.CO.UK
OXFORDSHIRE CC,SOCIAL AND COMMUNITY SERVICES,CSS - OXFORD,CATERING PROVISIONS,18/03/2019,000006261691716,2.50,ALDI STORES 775-142
OXFORDSHIRE CC,SOCIAL AND COMMUNITY SERVICES,CSS BICESTER,CATERING PROVISIONS,18/03/2019,000006261691718,35.00,SAINSBURYS
OXFORDSHIRE CC,"CHILDRENS, YOUNG PEOPLE AND FAMILIES","	LOOKED AFTER CITY 1",OTHER EXPENSES,18/03/2019,000006261691720,150.50,TVLICENSING.CO.UK
OXFORDSHIRE CC,"CHILDRENS, YOUNG PEOPLE AND FAMILIES",THAME E&A HOME,CATERING PROVISIONS,18/03/2019,000006261691728,12.29,SAINSBURYS 2096
OXFORDSHIRE CC,"CHILDRENS, YOUNG PEOPLE AND FAMILIES","	RIVERSIDE CENTRE",MATERIALS,18/03/2019,000006261691730,13.93,THE RANGE
OXFORDSHIRE CC,"CHILDRENS, YOUNG PEOPLE AND FAMILIES","	RIVERSIDE CENTRE",CATERING PROVISIONS,18/03/2019,000006261691732,4.65,SAINSBURYS SACAT 0600
OXFORDSHIRE CC,"CHILDRENS, YOUNG PEOPLE AND FAMILIES",EYNSHAM,VEHICLE FUEL,18/03/2019,000006261691736,2.00,TESCO STORES-2064
OXFORDSHIRE CC,"CHILDRENS, YOUNG PEOPLE AND FAMILIES","	LEAVING CARE SOUTH",OTHER EXPENSES,18/03/2019,000006261691738,50.50,TVLICENSING.CO.UK
OXFORDSHIRE CC,"CHILDRENS, YOUNG PEOPLE AND FAMILIES","	FPT CITY",MATERIALS,18/03/2019,000006261691740,299.99,WAYFAIR #2670641708
OXFORDSHIRE CC,"CHILDRENS, YOUNG PEOPLE AND FAMILIES","	LOOKED AFTER NORTH",HIRE OF ACCOMMODATION AND FACILITIES,18/03/2019,000006261691752,180.50,PREMIER INN
OXFORDSHIRE CC,"CHILDRENS, YOUNG PEOPLE AND FAMILIES",DIDCOT MOVE-ON HOME,PAYMENTS TO TRANSPORT OPERATORS,18/03/2019,000006261691764,10.10,GWR DIDCOT PKWY TO
OXFORDSHIRE CC,"CHILDRENS, YOUNG PEOPLE AND FAMILIES","	LEAVING CARE CITY 1",PAYMENTS TO TRANSPORT OPERATORS,18/03/2019,000006261691766,7.50,GWR DIDCOT PKWY TO
OXFORDSHIRE CC,"CHILDRENS, YOUNG PEOPLE AND FAMILIES",DIDCOT MOVE-ON HOME,CATERING PROVISIONS,18/03/2019,000006261691768,12.00,WM MORRISONS STORE
OXFORDSHIRE CC,"CHILDRENS, YOUNG PEOPLE AND FAMILIES",THAME E&A HOME,SUBSCRIPTIONS,18/03/2019,000006261691770,16.80,OXFORD ICE RINK
OXFORDSHIRE CC,"CHILDRENS, YOUNG PEOPLE AND FAMILIES",THAME E&A HOME,OTHER TRANSPORT ARRANGEMENTS,18/03/2019,000006261691772,3.50,OXPENS CAR PARK
OXFORDSHIRE CC,"CHILDRENS, YOUNG PEOPLE AND FAMILIES",THAME E&A HOME,CATERING,18/03/2019,000006261691774,31.53,DOMINOS PIZZA
OXFORDSHIRE CC,"CHILDRENS, YOUNG PEOPLE AND FAMILIES",THAME E&A HOME,VEHICLE FUEL,18/03/2019,000006261691776,1.09,THAME BP SF CONNECT
OXFORDSHIRE CC,"CHILDRENS, YOUNG PEOPLE AND FAMILIES",THAME E&A HOME,CATERING,18/03/2019,000006261691778,28.40,OXY ORIENTAL
OXFORDSHIRE CC,"CHILDRENS, YOUNG PEOPLE AND FAMILIES",THAME E&A HOME,ENTERTAINMENT EXPENSES,18/03/2019,000006261691780,9.98,VUE BSL LTD
OXFORDSHIRE CC,"CHILDRENS, YOUNG PEOPLE AND FAMILIES",THAME E&A HOME,ENTERTAINMENT EXPENSES,18/03/2019,000006261691782,8.48,VUE BSL LTD
OXFORDSHIRE CC,"CHILDRENS, YOUNG PEOPLE AND FAMILIES",NORTH FSS- BANBURY,REGISTRATION AND INSPECTION FEES,18/03/2019,000006261691788,1.77,PAYPAL  ROYAL MAIL
OXFORDSHIRE CC,"CHILDRENS, YOUNG PEOPLE AND FAMILIES",THAME E&A HOME,VEHICLE FUEL,18/03/2019,000006261691790,2.58,THAME BP SF CONNECT
OXFORDSHIRE CC,"CHILDRENS, YOUNG PEOPLE AND FAMILIES",THAME E&A HOME,FURNITURE,18/03/2019,000006261691792,86.75,DUNELM LTD
OXFORDSHIRE CC,"CHILDRENS, YOUNG PEOPLE AND FAMILIES",THAME E&A HOME,"BOOKS, DVDS AND CDS",18/03/2019,000006261691794,20.58,AMZN MKTP UK MW55D2DV4
OXFORDSHIRE CC,"CHILDRENS, YOUNG PEOPLE AND FAMILIES",THAME E&A HOME,"BOOKS, DVDS AND CDS",18/03/2019,000006261691796,14.99,AMZN MKTP UK MW88Z36E4
OXFORDSHIRE CC,"CHILDRENS, YOUNG PEOPLE AND FAMILIES",DIDCOT MOVE-ON HOME,CATERING PROVISIONS,18/03/2019,000006261691798,13.02,SAINSBURYS SACAT 2067
OXFORDSHIRE CC,"CHILDRENS, YOUNG PEOPLE AND FAMILIES",DIDCOT MOVE-ON HOME,CATERING PROVISIONS,18/03/2019,000006261691800,40.65,SAINSBURYS SACAT 2067
OXFORDSHIRE CC,"CHILDRENS, YOUNG PEOPLE AND FAMILIES",DIDCOT MOVE-ON HOME,CATERING,18/03/2019,000006261691802,6.40,COSTA COFFEE 43042160
OXFORDSHIRE CC,"CHILDRENS, YOUNG PEOPLE AND FAMILIES","	MALTFIELD HOUSE",CATERING,18/03/2019,000006261691998,9.98,MCDONALDS
OXFORDSHIRE CC,"CHILDRENS, YOUNG PEOPLE AND FAMILIES","	MALTFIELD HOUSE",MATERIALS,18/03/2019,000006261692000,147.99,CURRYS OXFORD 2401
OXFORDSHIRE CC,ENVIRONMENT AND ECONOMY,"	TVERC",IT SERVICES,18/03/2019,000006261692002,7.99,DROPBOX QQQ5DR4FH8V8
OXFORDSHIRE CC,SOCIAL AND COMMUNITY SERVICES,ABINGDON LIBRARY,"NEWSPAPERS, PERIODICALS AND PUBLICATIONS",18/03/2019,000006261692006,12.00,ER GOFF
OXFORDSHIRE CC,"CHILDRENS, YOUNG PEOPLE AND FAMILIES","	LOOKED AFTER CITY 1",VEHICLE FUEL,18/03/2019,000006261692008,22.12,SAINSBURYS OPT 0180
OXFORDSHIRE CC,SOCIAL AND COMMUNITY SERVICES,WALLINGFORD LIBRARY,"NEWSPAPERS, PERIODICALS AND PUBLICATIONS",18/03/2019,000006261692010,45.06,KP STATIONERS
OXFORDSHIRE CC,"CHILDRENS, YOUNG PEOPLE AND FAMILIES","	40 THE MOORS",CATERING PROVISIONS,18/03/2019,000006261692012,98.15,SAINSBURYS (2243)
OXFORDSHIRE CC,"CHILDRENS, YOUNG PEOPLE AND FAMILIES",CSS WALLINGFORD,CATERING PROVISIONS,18/03/2019,000006261691632,12.90,WAITROSE 675
OXFORDSHIRE CC,ENVIRONMENT AND ECONOMY,HOLDING CODE FOR REA,EDUCATIONAL AND VOCATIONAL TRAINING ,18/03/2019,000006261691634,205.00,JTL TRAINING
OXFORDSHIRE CC,ENVIRONMENT AND ECONOMY,"	COUNTY PRINT FINSHRS",PAYMENT TO GOVERNMENT DEPARTMENTS,18/03/2019,000006261691636,252.50,DVLA VEHICLE TAX
OXFORDSHIRE CC,"CHILDRENS, YOUNG PEOPLE AND FAMILIES","	RESIDENTIAL STRATEGY",CATERING PROVISIONS,18/03/2019,000006261691638,31.38,CO-OPERATIVE FOOD
OXFORDSHIRE CC,"CHILDRENS, YOUNG PEOPLE AND FAMILIES","	RESIDENTIAL STRATEGY",CATERING PROVISIONS,18/03/2019,000006261691640,7.90,CO-OPERATIVE FOOD
OXFORDSHIRE CC,"CHILDRENS, YOUNG PEOPLE AND FAMILIES","	RESIDENTIAL STRATEGY",CATERING,18/03/2019,000006261691642,7.27,KFC-BANBURY
OXFORDSHIRE CC,"CHILDRENS, YOUNG PEOPLE AND FAMILIES",WITNEY,MATERIALS,18/03/2019,000006261691644,23.98,WITNEY INSIDE SAINSBUR
OXFORDSHIRE CC,ENVIRONMENT AND ECONOMY,"	LEP","PUBLICITY, PROMOTIONS AND ADVERTISEMENT",18/03/2019,000006261691646,120.00,THE MINUTEMAN PRESS
OXFORDSHIRE CC,ENVIRONMENT AND ECONOMY,"	LEP",RECRUTIMENT EXPENSES (EXCL. ADVERTISING),18/03/2019,000006261691648,176.83,WORKABLE
OXFORDSHIRE CC,ENVIRONMENT AND ECONOMY,"	LEP","PUBLICITY, PROMOTIONS AND ADVERTISEMENT",18/03/2019,000006261691650,40.80,CONTENT CALENDR LIMITE
OXFORDSHIRE CC,"CHILDRENS, YOUNG PEOPLE AND FAMILIES","	SM QUALITY ASSURANCE",PAYMENTS TO TRANSPORT OPERATORS,18/03/2019,000006261691652,188.60,TRAINLINE
OXFORDSHIRE CC,CORPORATE CORE,ICT OPERATIONS & MAI,HIRE OF ACCOMMODATION AND FACILITIES,18/03/2019,000006261692014,297.50,THE INN AT EMMINGTON
OXFORDSHIRE CC,"CHILDRENS, YOUNG PEOPLE AND FAMILIES",WITNEY,CATERING PROVISIONS,18/03/2019,000006261692016,65.60,SAINSBURYS TO YOU 0632
OXFORDSHIRE CC,"CHILDRENS, YOUNG PEOPLE AND FAMILIES","	40 THE MOORS",CATERING PROVISIONS,18/03/2019,000006261692024,106.05,SAINSBURYS 0631
OXFORDSHIRE CC,"CHILDRENS, YOUNG PEOPLE AND FAMILIES","	40 THE MOORS",MATERIALS,18/03/2019,000006261692026,14.99,ARGOS KIDLINGTON INSID
OXFORDSHIRE CC,"CHILDRENS, YOUNG PEOPLE AND FAMILIES","	40 THE MOORS",PAYMENTS TO TRANSPORT OPERATORS,18/03/2019,000006261692028,4.22,TRAINLINE
OXFORDSHIRE CC,"CHILDRENS, YOUNG PEOPLE AND FAMILIES","	40 THE MOORS",CATERING PROVISIONS,18/03/2019,000006261692030,35.00,TESCO STORE 2788
OXFORDSHIRE CC,"CHILDRENS, YOUNG PEOPLE AND FAMILIES","	40 THE MOORS",ENTERTAINMENT EXPENSES,18/03/2019,000006261692032,14.98,VUE BSL LTD
OXFORDSHIRE CC,"CHILDRENS, YOUNG PEOPLE AND FAMILIES","	40 THE MOORS",MATERIALS,18/03/2019,000006261692034,-58.50,WWW.SIZE.CO.UK
OXFORDSHIRE CC,ENVIRONMENT AND ECONOMY,HARD FM,EQUIPMENT,18/03/2019,000006261691672,15.48,W F SENATE
OXFORDSHIRE CC,ENVIRONMENT AND ECONOMY,HARD FM,EQUIPMENT,18/03/2019,000006261691674,29.46,WILTS ELECTRICAL
OXFORDSHIRE CC,ENVIRONMENT AND ECONOMY,HARD FM,HARDWARE AND CROCKERY,18/03/2019,000006261691676,50.06,WICKES OXFORD
OXFORDSHIRE CC,CORPORATE CORE,,"SUPPLIES, STATIONERY AND MATERIALS",18/03/2019,000006261692038,303.96,LYRECO UK LTD
OXFORDSHIRE CC,CORPORATE CORE,,"SUPPLIES, STATIONERY AND MATERIALS",18/03/2019,000006261692040,78.79,LYRECO UK LTD
OXFORDSHIRE CC,"CHILDRENS, YOUNG PEOPLE AND FAMILIES",LOCALITY & COMMUNITY SUPPORT SERVICE,"BOOKS, DVDS AND CDS",18/03/2019,000006261692042,51.26,AMZN MKTP UK MW2JX5QF4
OXFORDSHIRE CC,"CHILDRENS, YOUNG PEOPLE AND FAMILIES",EYNSHAM,CATERING PROVISIONS,18/03/2019,000006261692046,3.50,CO-OPERATIVE FOOD
OXFORDSHIRE CC,"CHILDRENS, YOUNG PEOPLE AND FAMILIES",EYNSHAM,CATERING PROVISIONS,18/03/2019,000006261692048,4.82,CO-OPERATIVE FOOD
OXFORDSHIRE CC,SOCIAL AND COMMUNITY SERVICES,ADULTS AT RISK,MATERIALS,18/03/2019,000006261692050,7.99,AMAZON PRIME MW72R6D94
OXFORDSHIRE CC,ENVIRONMENT AND ECONOMY,HARD FM,HARDWARE AND CROCKERY,18/03/2019,000006261691678,53.44,HOMEBASE LTD
OXFORDSHIRE CC,ENVIRONMENT AND ECONOMY,HARD FM,HARDWARE AND CROCKERY,18/03/2019,000006261691680,14.32,SCREWFIX BANBURY
OXFORDSHIRE CC,ENVIRONMENT AND ECONOMY,HARD FM,HARDWARE AND CROCKERY,18/03/2019,000006261691682,64.97,SCREWFIX BANBURY
OXFORDSHIRE CC,ENVIRONMENT AND ECONOMY,HARD FM,HARDWARE AND CROCKERY,18/03/2019,000006261691684,60.46,BUILDBASE - OXFORD
OXFORDSHIRE CC,ENVIRONMENT AND ECONOMY,HARD FM,HARDWARE AND CROCKERY,18/03/2019,000006261691686,25.70,JOHN NICHOLLS WITNEY P
OXFORDSHIRE CC,ENVIRONMENT AND ECONOMY,HARD FM,HARDWARE AND CROCKERY,18/03/2019,000006261691688,78.62,CITY PLUMBING
OXFORDSHIRE CC,CORPORATE CORE,"	POLICY & IMPROVEMENT",CATERING PROVISIONS,18/03/2019,000006261691690,16.40,SAINSBURYS SACAT 0730
OXFORDSHIRE CC,CORPORATE CORE,"	POLICY & IMPROVEMENT","SUPPLIES, STATIONERY AND MATERIALS",18/03/2019,000006261691692,12.97,RYMAN 1172
OXFORDSHIRE CC,"CHILDRENS, YOUNG PEOPLE AND FAMILIES",THAME E&A HOME,CATERING PROVISIONS,18/03/2019,000006261691694,19.20,SAINSBURYS 2096
OXFORDSHIRE CC,SOCIAL AND COMMUNITY SERVICES,CSS - DIDCOT,"BOOKS, DVDS AND CDS",18/03/2019,000006261691572,26.45,AMZN MKTP UK MW7W45SG4
OXFORDSHIRE CC,"CHILDRENS, YOUNG PEOPLE AND FAMILIES","	FAM SUPP SOUTH",PAYMENT TO GOVERNMENT DEPARTMENTS,18/03/2019,000006261691578,14.00,GEN REGISTER OFFICE
OXFORDSHIRE CC,"CHILDRENS, YOUNG PEOPLE AND FAMILIES",THAME E&A HOME,CATERING,18/03/2019,000006261691582,24.99,DOMINOS PIZZA
OXFORDSHIRE CC,"CHILDRENS, YOUNG PEOPLE AND FAMILIES",CNTL EARLY HELP-BRTN,OTHER EXPENSES,18/03/2019,000006261691952,6.50,HEADINGTON HOMEWAR
OXFORDSHIRE CC,"CHILDRENS, YOUNG PEOPLE AND FAMILIES",EYNSHAM,CATERING PROVISIONS,18/03/2019,000006261691586,2.38,SPAR EYNSHAM
OXFORDSHIRE CC,SOCIAL AND COMMUNITY SERVICES,CSS - BANBURY,CATERING PROVISIONS,18/03/2019,000006261691588,66.05,SAINSBURYS TO YOU 0642
OXFORDSHIRE CC,SOCIAL AND COMMUNITY SERVICES,LOOKED AFTER NORTH,OTHER TRANSPORT ARRANGEMENTS,18/03/2019,000006261691600,4.70,M6 TOLL
OXFORDSHIRE CC,"CHILDRENS, YOUNG PEOPLE AND FAMILIES",EYNSHAM,CATERING,18/03/2019,000006261691606,19.49,CO-OPERATIVE FOOD
OXFORDSHIRE CC,"CHILDRENS, YOUNG PEOPLE AND FAMILIES","	40 THE MOORS",HOSPITALITY EXPENSES,18/03/2019,000006261691968,24.20,JS SPORTS BAR
OXFORDSHIRE CC,"CHILDRENS, YOUNG PEOPLE AND FAMILIES","	40 THE MOORS",CATERING PROVISIONS,18/03/2019,000006261691970,15.52,OXFORD KFC
OXFORDSHIRE CC,"CHILDRENS, YOUNG PEOPLE AND FAMILIES","	40 THE MOORS",CATERING PROVISIONS,18/03/2019,000006261691974,3.10,TESCO STORE 2788
OXFORDSHIRE CC,ENVIRONMENT AND ECONOMY,THE RIDGEWAY,CATERING PROVISIONS,18/03/2019,000006261691976,58.95,WAITROSE 581
OXFORDSHIRE CC,CORPORATE CORE,LIBRARY COLLECTIONS,MATERIALS,18/03/2019,000006261691978,7.99,AMAZON PRIME MW4Q48DO4
OXFORDSHIRE CC,"CHILDRENS, YOUNG PEOPLE AND FAMILIES",DIDCOT MOVE-ON HOME,CATERING PROVISIONS,18/03/2019,000006261691982,23.30,SAINSBURYS 2067
OXFORDSHIRE CC,"CHILDRENS, YOUNG PEOPLE AND FAMILIES",STEP INTO TRAINING,"SUPPLIES, STATIONERY AND MATERIALS",18/03/2019,000006261691984,47.78,AMZN MKTP UK MW94N0QP4
OXFORDSHIRE CC,"CHILDRENS, YOUNG PEOPLE AND FAMILIES","	MALTFIELD HOUSE",CATERING PROVISIONS,18/03/2019,000006261691608,2.55,CO-OP GROUP 350035
OXFORDSHIRE CC,"CHILDRENS, YOUNG PEOPLE AND FAMILIES","	MALTFIELD HOUSE",ENTERTAINMENT EXPENSES,18/03/2019,000006261691610,35.35,VUE BSL LTD
OXFORDSHIRE CC,"CHILDRENS, YOUNG PEOPLE AND FAMILIES","	LEAVING CARE NORTH",FIXTURES & FITTINGS,18/03/2019,000006261691612,29.99,AMZN MKTP UK MW72Q5DK4
OXFORDSHIRE CC,"CHILDRENS, YOUNG PEOPLE AND FAMILIES",WITNEY,CATERING PROVISIONS,18/03/2019,000006261691614,1.69,TESCO-STORES 2499
OXFORDSHIRE CC,"CHILDRENS, YOUNG PEOPLE AND FAMILIES","	OSCB",MATERIALS,18/03/2019,000006261691620,6.00,PAPERCHASE
OXFORDSHIRE CC,"CHILDRENS, YOUNG PEOPLE AND FAMILIES","	OSCB",MATERIALS,18/03/2019,000006261691622,27.00,WILKO RETAIL LIMIT
OXFORDSHIRE CC,"CHILDRENS, YOUNG PEOPLE AND FAMILIES","	OSCB",CATERING PROVISIONS,18/03/2019,000006261691624,4.40,LIDL GB OXFORD
OXFORDSHIRE CC,"CHILDRENS, YOUNG PEOPLE AND FAMILIES",CSS WALLINGFORD,MATERIALS,18/03/2019,000006261691630,14.50,WWW.HOBBYCRAFT.CO.UK
OXFORDSHIRE CC,"CHILDRENS, YOUNG PEOPLE AND FAMILIES","	FAMILY SUPPORT CITY3",OTHER TRANSPORT ARRANGEMENTS,15/03/2019,000006254710274,153.74,TRAINLINE
OXFORDSHIRE CC,"CHILDRENS, YOUNG PEOPLE AND FAMILIES","	FAMILY SUPPORT CITY3",POSTAGE AND DELIVERY,15/03/2019,000006254710276,5.31,THE POST OFFICE
OXFORDSHIRE CC,"CHILDRENS, YOUNG PEOPLE AND FAMILIES","	PARENT PARTNERSHIP",PAYMENTS TO TRANSPORT OPERATORS,15/03/2019,000006254710288,21.60,GWR DIDCOT PKWY TO
OXFORDSHIRE CC,"CHILDRENS, YOUNG PEOPLE AND FAMILIES","	40 THE MOORS",TELEPHONE - EQUIPMENT,15/03/2019,000006254710290,35.00,WWW.THREE.CO.UK
OXFORDSHIRE CC,ENVIRONMENT AND ECONOMY,READER SERV ADULTS,PAYMENTS TO TRANSPORT OPERATORS,15/03/2019,000006254710294,74.30,WWW.GWR.COM
OXFORDSHIRE CC,ENVIRONMENT AND ECONOMY,"	LIBRARY PROJECTS",CATERING PROVISIONS,15/03/2019,000006254710296,20.43,ASDA SUPERSTORE
OXFORDSHIRE CC,"CHILDRENS, YOUNG PEOPLE AND FAMILIES","	LOOKED AFTER SOUTH",CATERING,15/03/2019,000006254710298,9.97,COSTA TEMPLAR SQUARE O
OXFORDSHIRE CC,ENVIRONMENT AND ECONOMY,THE RIDGEWAY,CATERING PROVISIONS,15/03/2019,000006254710302,18.06,SAINSBURYS 0739
OXFORDSHIRE CC,"CHILDRENS, YOUNG PEOPLE AND FAMILIES",STEP INTO TRAINING,"SUPPLIES, STATIONERY AND MATERIALS",15/03/2019,000006254710314,23.90,AMZN MKTP UK MW3DW98B4
OXFORDSHIRE CC,"CHILDRENS, YOUNG PEOPLE AND FAMILIES",STEP INTO TRAINING,"SUPPLIES, STATIONERY AND MATERIALS",15/03/2019,000006254710316,98.91,AMZN MKTP UK MW42P08W4
OXFORDSHIRE CC,"CHILDRENS, YOUNG PEOPLE AND FAMILIES",VULNERABLE LEARNERS,"BOOKS, DVDS AND CDS",15/03/2019,000006254710318,106.45,AMZN MKTP UK MW4ZJ3QJ4
OXFORDSHIRE CC,"CHILDRENS, YOUNG PEOPLE AND FAMILIES",VULNERABLE LEARNERS,"BOOKS, DVDS AND CDS",15/03/2019,000006254710320,51.96,AMAZON.CO.UK MW6ZV0Q04
OXFORDSHIRE CC,SOCIAL AND COMMUNITY SERVICES,"	LEADERSHIP TEAM",PAYMENTS TO VOLUNTARY BODIES,15/03/2019,000006254710328,499.00,WWW.ADASS.ORG.UK
OXFORDSHIRE CC,"CHILDRENS, YOUNG PEOPLE AND FAMILIES",UASC POST 18,PAYMENTS TO TRANSPORT OPERATORS,15/03/2019,000006254710332,15.00,LUL TICKET MACHINE
OXFORDSHIRE CC,"CHILDRENS, YOUNG PEOPLE AND FAMILIES","	40 THE MOORS",MATERIALS,15/03/2019,000006254710338,299.98,ARGOS LTD
OXFORDSHIRE CC,"CHILDRENS, YOUNG PEOPLE AND FAMILIES","	LEAVING CARE SOUTH",OTHER EXPENSES,15/03/2019,000006254710340,59.99,B&M RETAIL
OXFORDSHIRE CC,"CHILDRENS, YOUNG PEOPLE AND FAMILIES","	LOOKED AFTER NORTH",OTHER TRANSPORT ARRANGEMENTS,15/03/2019,000006254710346,1.90,HANBOROUGH STN
OXFORDSHIRE CC,"CHILDRENS, YOUNG PEOPLE AND FAMILIES","	LOOKED AFTER SOUTH",CATERING,15/03/2019,000006254710348,6.89,MCDONALDS
OXFORDSHIRE CC,CORPORATE CORE,MOTOR FLEET,MOTOR IF OWN DAMAGE,15/03/2019,000006254710350,138.00,NATIONAL WINDSCREENS
OXFORDSHIRE CC,CORPORATE CORE,CENTRAL BUYING TEAM,VEHICLE FUEL,15/03/2019,000006254710358,25.35,MFG CHERWELL
OXFORDSHIRE CC,ENTERPRISEVC,,CAR LEASING - PRIVATE RENTALS,15/03/2019,000006254710360,42.96,ENTERPRISE RENT-A-CAR
OXFORDSHIRE CC,"CHILDRENS, YOUNG PEOPLE AND FAMILIES","	LEAVING CARE NORTH",RESIDENTIAL ACTIVITIES,15/03/2019,000006254710362,47.00,HALFORDS 0853
OXFORDSHIRE CC,"CHILDRENS, YOUNG PEOPLE AND FAMILIES","	RIVERSIDE CENTRE",PROFESSIONAL SUBSCRIPTIONS,15/03/2019,000006254710366,188.00,INSTIT OF OCCPTNL SAFE
OXFORDSHIRE CC,ENVIRONMENT AND ECONOMY,AREA OPERATIONS SOUTH STAFF,MATERIALS,15/03/2019,000006254710148,16.20,WWW.BLACKS.CO.UK
OXFORDSHIRE CC,"CHILDRENS, YOUNG PEOPLE AND FAMILIES",DIDCOT MOVE-ON HOME,CATERING PROVISIONS,15/03/2019,000006254710156,20.60,ICELAND
OXFORDSHIRE CC,"CHILDRENS, YOUNG PEOPLE AND FAMILIES",EET SERVICE,"SUPPLIES, STATIONERY AND MATERIALS",15/03/2019,000006254710160,65.86,EB  YOUTH IN MIND CONF
OXFORDSHIRE CC,"CHILDRENS, YOUNG PEOPLE AND FAMILIES",NTH EARLY HELP-BNRBY,HIRE OF EQUIPMENT,15/03/2019,000006254710162,292.00,BANBURY PLANT AND SKIP
OXFORDSHIRE CC,"CHILDRENS, YOUNG PEOPLE AND FAMILIES",THAME E&A HOME,OTHER TRANSPORT ARRANGEMENTS,15/03/2019,000006254710164,11.00,WESTGATE OXFORD CAR PA
OXFORDSHIRE CC,ENVIRONMENT AND ECONOMY,"	E&I STAFF",HIRE OF ACCOMMODATION AND FACILITIES,15/03/2019,000006254710166,76.48,IBIS EARLS COURT
OXFORDSHIRE CC,"CHILDRENS, YOUNG PEOPLE AND FAMILIES","	MUSIC UNALLOCABLE","BOOKS, DVDS AND CDS",15/03/2019,000006254710188,23.71,AMZN MKTP UK MW90U78S4
OXFORDSHIRE CC,"CHILDRENS, YOUNG PEOPLE AND FAMILIES","	MUSIC UNALLOCABLE","BOOKS, DVDS AND CDS",15/03/2019,000006254710188,2.80,AMZN MKTP UK MW90U78S4
OXFORDSHIRE CC,SOCIAL AND COMMUNITY SERVICES,CSS - OXFORD,EQUIPMENT,15/03/2019,000006254710190,26.97,AMZN MKTP UK MW8H89874
OXFORDSHIRE CC,ENVIRONMENT AND ECONOMY,"	COUNTY HALL",EQUIPMENT,15/03/2019,000006254710194,"1,656.00",SHARP BUSINESS SYSTEMS
OXFORDSHIRE CC,SOCIAL AND COMMUNITY SERVICES,"	MUSEUMS COLLECTIONS",MATERIALS,15/03/2019,000006254710202,34.99,AMZN MKTP UK MW0544864
OXFORDSHIRE CC,"CHILDRENS, YOUNG PEOPLE AND FAMILIES","	LOOKED AFTER CITY 2",MATERIALS,15/03/2019,000006254710204,3.96,FUNKYPIGEON.COM
OXFORDSHIRE CC,"CHILDRENS, YOUNG PEOPLE AND FAMILIES","	MALTFIELD HOUSE",OTHER EXPENSES,15/03/2019,000006254710206,9.00,WESTGATE OXFORD CAR PA
OXFORDSHIRE CC,CORPORATE CORE,"	LEGAL SERVICES",LEGAL COSTS,15/03/2019,000006254710218,22.00,OCC REGISTRARS (M)
OXFORDSHIRE CC,CORPORATE CORE,"	CC TRAINING",TRAINING RELATED EXPENDITURE,15/03/2019,000006254710220,21.00,TRAVELODGE
OXFORDSHIRE CC,CORPORATE CORE,"	CC TRAINING",TRAINING RELATED EXPENDITURE,15/03/2019,000006254710222,73.30,WWW.GWR.COM
OXFORDSHIRE CC,CORPORATE CORE,"	CC TRAINING",EDUCATIONAL AND VOCATIONAL TRAINING ,15/03/2019,000006254710224,121.50,ILEX.ORG.UK
OXFORDSHIRE CC,"CHILDRENS, YOUNG PEOPLE AND FAMILIES","	RESIDENTIAL STRATEGY",HIRE OF ACCOMMODATION AND FACILITIES,15/03/2019,000006254710234,500.00,BUCKINGHAM HOTELS
OXFORDSHIRE CC,"CHILDRENS, YOUNG PEOPLE AND FAMILIES","	RESIDENTIAL STRATEGY",HIRE OF ACCOMMODATION AND FACILITIES,15/03/2019,000006254710236,550.00,BUCKINGHAM HOTELS
OXFORDSHIRE CC,ENVIRONMENT AND ECONOMY,"	LEP",MATERIALS,15/03/2019,000006254710250,57.87,MAILCHIMP    MONTHLY
OXFORDSHIRE CC,"CHILDRENS, YOUNG PEOPLE AND FAMILIES",C&I NON PUBLIC FUND,"BOOKS, DVDS AND CDS",15/03/2019,000006254710254,54.20,AMZN MKTP UK MW5CX58I4
OXFORDSHIRE CC,"CHILDRENS, YOUNG PEOPLE AND FAMILIES",C&I NON PUBLIC FUND,MATERIALS,15/03/2019,000006254710256,24.50,WILKO.COM
OXFORDSHIRE CC,"CHILDRENS, YOUNG PEOPLE AND FAMILIES",S&A INTERVENTION GRT,PHOTOCOPYING,15/03/2019,000006254710264,34.80,STK SHUTTERSTOCK
OXFORDSHIRE CC,"CHILDRENS, YOUNG PEOPLE AND FAMILIES",S&A INTERVENTION GRT,PHOTOCOPYING,15/03/2019,000006254710266,34.80,STK SHUTTERSTOCK
OXFORDSHIRE CC,"CHILDRENS, YOUNG PEOPLE AND FAMILIES","	PLACEMENT DUTY TEAM",PAYMENTS TO TRANSPORT OPERATORS,15/03/2019,000006254710268,6.80,BANBURY SSTP
OXFORDSHIRE CC,"CHILDRENS, YOUNG PEOPLE AND FAMILIES",CNTL EARLY HELP-BRTN,OTHER EXPENSES,15/03/2019,000006254710272,5.00,HEADINGTON HOMEWAR
OXFORDSHIRE CC,"CHILDRENS, YOUNG PEOPLE AND FAMILIES",C&F - TF CONTRIB,HIRE OF ACCOMMODATION AND FACILITIES,15/03/2019,000006254710374,64.99,TRAVELODGE
OXFORDSHIRE CC,"CHILDRENS, YOUNG PEOPLE AND FAMILIES",C&F - TF CONTRIB,PAYMENTS TO TRANSPORT OPERATORS,15/03/2019,000006254710376,88.60,WWW.GWR.COM
OXFORDSHIRE CC,SOCIAL AND COMMUNITY SERVICES,CSS BICESTER,HARDWARE AND CROCKERY,15/03/2019,000006254710036,11.00,WICKES BICESTER
OXFORDSHIRE CC,SOCIAL AND COMMUNITY SERVICES,CSS WANTAGE,MATERIALS,15/03/2019,000006254710046,60.00,C.N. UNWIN LTD
OXFORDSHIRE CC,ENVIRONMENT AND ECONOMY,ELEC NPR ST LTG,LAUNDRY AND DRY CLEANING,15/03/2019,000006254710048,24.99,TIMPSON LTD
OXFORDSHIRE CC,SOCIAL AND COMMUNITY SERVICES,LOOKED AFTER SOUTH,VEHICLE FUEL,15/03/2019,000006254710056,13.31,SAINSBURYS PFS0439
OXFORDSHIRE CC,SOCIAL AND COMMUNITY SERVICES,LOOKED AFTER SOUTH,VEHICLE FUEL,15/03/2019,000006254710058,29.91,ESSO DORCAN WAY SSTN
OXFORDSHIRE CC,"CHILDRENS, YOUNG PEOPLE AND FAMILIES","	OSCB",MATERIALS,15/03/2019,000006254710068,7.99,AMAZON PRIME MW15Y88M4
OXFORDSHIRE CC,ENVIRONMENT AND ECONOMY,"	NAT TRAILS GENERAL",HARDWARE AND CROCKERY,15/03/2019,000006254710076,19.62,SP   TRACMASTER.CO.UK
OXFORDSHIRE CC,"CHILDRENS, YOUNG PEOPLE AND FAMILIES",THAME E&A HOME,CATERING,15/03/2019,000006254710078,7.60,CRUMBS SANDWICH BAR
OXFORDSHIRE CC,ENVIRONMENT AND ECONOMY,"	FM RECHARGES",MATERIALS,15/03/2019,000006254710084,60.00,BSRIA LIMITED
OXFORDSHIRE CC,ENVIRONMENT AND ECONOMY,HARD FM,HARDWARE AND CROCKERY,15/03/2019,000006254710086,35.10,DULUX DECORATOR CENTRE
OXFORDSHIRE CC,ENVIRONMENT AND ECONOMY,HARD FM,HARDWARE AND CROCKERY,15/03/2019,000006254710088,22.08,BOUCHIER LTD
OXFORDSHIRE CC,ENVIRONMENT AND ECONOMY,HARD FM,HARDWARE AND CROCKERY,15/03/2019,000006254710090,168.34,BOUCHIER LTD
OXFORDSHIRE CC,ENVIRONMENT AND ECONOMY,HARD FM,HARDWARE AND CROCKERY,15/03/2019,000006254710092,80.66,WICKES BICESTER
OXFORDSHIRE CC,ENVIRONMENT AND ECONOMY,HARD FM,HARDWARE AND CROCKERY,15/03/2019,000006254710094,1.00,WICKES BICESTER
OXFORDSHIRE CC,ENVIRONMENT AND ECONOMY,HARD FM,EQUIPMENT,15/03/2019,000006254710096,7.22,WILTS ELECTRICAL
OXFORDSHIRE CC,ENVIRONMENT AND ECONOMY,HARD FM,GENERAL MAINTENANCE,15/03/2019,000006254710098,65.42, WOLSELEY UK
OXFORDSHIRE CC,"CHILDRENS, YOUNG PEOPLE AND FAMILIES",CSS - ABINGDON,LICENCES,15/03/2019,000006254710104,150.50,TVLICENSING.CO.UK
OXFORDSHIRE CC,"CHILDRENS, YOUNG PEOPLE AND FAMILIES","	RIVERSIDE CENTRE",VEHICLE FUEL,15/03/2019,000006254710120,91.11,BP BUCKLAND CONNECT
OXFORDSHIRE CC,"CHILDRENS, YOUNG PEOPLE AND FAMILIES","	FAM SUPP CITY 1",MATERIALS,15/03/2019,000006254710136,379.98,WWW.ARGOS.CO.UK
OXFORDSHIRE CC,"CHILDRENS, YOUNG PEOPLE AND FAMILIES","	FPT CITY",MATERIALS,15/03/2019,000006254710138,23.36,AMAZON.CO.UK MW8G928M4
OXFORDSHIRE CC,CORPORATE CORE,REGISTRAR,PREMISES REPAIRS,15/03/2019,000006254710140,30.00,TIMPSON LTD
OXFORDSHIRE CC,CORPORATE CORE,"	MAJOR PROGRAMMES","SUPPLIES, STATIONERY AND MATERIALS",14/03/2019,000006249310942,5.99,RYMAN 1172
OXFORDSHIRE CC,"CHILDRENS, YOUNG PEOPLE AND FAMILIES","	LOOKED AFTER CITY 1",MATERIALS,14/03/2019,000006249310946,398.98,CURRYS T/SALES
OXFORDSHIRE CC,"CHILDRENS, YOUNG PEOPLE AND FAMILIES",THAME E&A HOME,"BOOKS, DVDS AND CDS",14/03/2019,000006249310948,5.20,AMZN MKTP UK MW8T84H74
OXFORDSHIRE CC,"CHILDRENS, YOUNG PEOPLE AND FAMILIES",DIDCOT MOVE-ON HOME,CATERING PROVISIONS,14/03/2019,000006249310950,52.55,SAINSBURYS SACAT 2067
OXFORDSHIRE CC,"CHILDRENS, YOUNG PEOPLE AND FAMILIES","	MUSIC UNALLOCABLE",EQUIPMENT,14/03/2019,000006249310970,47.98,AMZN MKTP UK MW4YX7BD4
OXFORDSHIRE CC,"CHILDRENS, YOUNG PEOPLE AND FAMILIES","	MUSIC UNALLOCABLE",EQUIPMENT,14/03/2019,000006249310972,243.06,WWW.THOMANN.DE
OXFORDSHIRE CC,"CHILDRENS, YOUNG PEOPLE AND FAMILIES","	MUSIC UNALLOCABLE",HARDWARE AND CROCKERY,14/03/2019,000006249310974,526.36,BLANCHFORD & CO
OXFORDSHIRE CC,SOCIAL AND COMMUNITY SERVICES,CSS - OXFORD,MATERIALS,14/03/2019,000006249310976,7.99,AMAZON PRIME MW2T98HV4
OXFORDSHIRE CC,SOCIAL AND COMMUNITY SERVICES,CSS - OXFORD,CLEANING MATERIALS,14/03/2019,000006249310978,29.04,AMZN MKTP UK MW3TJ8H64
OXFORDSHIRE CC,SOCIAL AND COMMUNITY SERVICES,CSS - OXFORD,MATERIALS,14/03/2019,000006249310980,-7.99,AMAZON PRIME
OXFORDSHIRE CC,SOCIAL AND COMMUNITY SERVICES,"	MUSEUMS COLLECTIONS",PAYMENTS TO TRANSPORT OPERATORS,14/03/2019,000006249310988,83.84,TRAINLINE
OXFORDSHIRE CC,"CHILDRENS, YOUNG PEOPLE AND FAMILIES","	LEAVING CARE CITY 1",MATERIALS,14/03/2019,000006249310990,798.00,PC WORLD ONLINE
OXFORDSHIRE CC,"CHILDRENS, YOUNG PEOPLE AND FAMILIES",THAME E&A HOME,CATERING PROVISIONS,14/03/2019,000006249311000,18.15,TESCO STORES 4377
OXFORDSHIRE CC,"CHILDRENS, YOUNG PEOPLE AND FAMILIES","	RESIDENTIAL STRATEGY",HIRE OF ACCOMMODATION AND FACILITIES,14/03/2019,000006249311008,150.00,BUCKINGHAM HOTELS
OXFORDSHIRE CC,"CHILDRENS, YOUNG PEOPLE AND FAMILIES",C&I BASE CHERWELL,MATERIALS,14/03/2019,000006249311020,4.98,AMZN MKTP UK MW9D08HH4
OXFORDSHIRE CC,"CHILDRENS, YOUNG PEOPLE AND FAMILIES",C&I BASE CHERWELL,MATERIALS,14/03/2019,000006249311022,19.48,AMZN MKTP UK MW6RM8HM4
OXFORDSHIRE CC,"CHILDRENS, YOUNG PEOPLE AND FAMILIES",C&I NON PUBLIC FUND,MATERIALS,14/03/2019,000006249311024,17.49,AMAZON.CO.UK MW8R11B94
OXFORDSHIRE CC,CORPORATE CORE,"	PERSONNEL",PAYMENTS TO TRANSPORT OPERATORS,14/03/2019,000006249311026,66.50,GWR CHARLBURY TO
OXFORDSHIRE CC,ENVIRONMENT AND ECONOMY,"	ROW MAINT",MATERIALS,14/03/2019,000006249311028,30.60,JEWSON WITNEY
OXFORDSHIRE CC,"CHILDRENS, YOUNG PEOPLE AND FAMILIES","	40 THE MOORS",MATERIALS,14/03/2019,000006249311042,7.99,AMAZON PRIME MW5LZ8BB4
OXFORDSHIRE CC,ENVIRONMENT AND ECONOMY,THE RIDGEWAY,PAYMENTS TO TRANSPORT OPERATORS,14/03/2019,000006249311050,66.75,TRAINLINE
OXFORDSHIRE CC,ENVIRONMENT AND ECONOMY,"	BUSINESS SYST STAFF",VEHICLE FUEL,14/03/2019,000006249311052,6.79,BLENHEIM SERVICE STATI
OXFORDSHIRE CC,CORPORATE CORE,LIBRARY COLLECTIONS,"NEWSPAPERS, PERIODICALS AND PUBLICATIONS",14/03/2019,000006249311054,47.62,GUARDIAN NEWS & MEDIA
OXFORDSHIRE CC,CORPORATE CORE,LIBRARY COLLECTIONS,"NEWSPAPERS, PERIODICALS AND PUBLICATIONS",14/03/2019,000006249311056,47.62,GUARDIAN NEWS & MEDIA
OXFORDSHIRE CC,CORPORATE CORE,LIBRARY COLLECTIONS,"NEWSPAPERS, PERIODICALS AND PUBLICATIONS",14/03/2019,000006249311058,47.62,GUARDIAN NEWS & MEDIA
OXFORDSHIRE CC,CORPORATE CORE,LIBRARY COLLECTIONS,"NEWSPAPERS, PERIODICALS AND PUBLICATIONS",14/03/2019,000006249311060,47.62,GUARDIAN NEWS & MEDIA
OXFORDSHIRE CC,CORPORATE CORE,LIBRARY COLLECTIONS,"NEWSPAPERS, PERIODICALS AND PUBLICATIONS",14/03/2019,000006249311062,47.62,GUARDIAN NEWS & MEDIA
OXFORDSHIRE CC,CORPORATE CORE,LIBRARY COLLECTIONS,"NEWSPAPERS, PERIODICALS AND PUBLICATIONS",14/03/2019,000006249311064,47.62,GUARDIAN NEWS & MEDIA
OXFORDSHIRE CC,CORPORATE CORE,LIBRARY COLLECTIONS,"NEWSPAPERS, PERIODICALS AND PUBLICATIONS",14/03/2019,000006249311066,47.62,GUARDIAN NEWS & MEDIA
OXFORDSHIRE CC,CORPORATE CORE,LIBRARY COLLECTIONS,"NEWSPAPERS, PERIODICALS AND PUBLICATIONS",14/03/2019,000006249311068,47.62,GUARDIAN NEWS & MEDIA
OXFORDSHIRE CC,"CHILDRENS, YOUNG PEOPLE AND FAMILIES","	LEAVING CARE CITY 2",PAYMENTS TO TRANSPORT OPERATORS,14/03/2019,000006249311092,6.80,GWR OXFORD SST
OXFORDSHIRE CC,"CHILDRENS, YOUNG PEOPLE AND FAMILIES","	40 THE MOORS",OTHER TRANSPORT ARRANGEMENTS,14/03/2019,000006249311094,119.75,OXFORD BUS CO
OXFORDSHIRE CC,"CHILDRENS, YOUNG PEOPLE AND FAMILIES","	40 THE MOORS",OTHER TRANSPORT ARRANGEMENTS,14/03/2019,000006249311096,5.00,OCC ON-STREET PARKING
OXFORDSHIRE CC,"CHILDRENS, YOUNG PEOPLE AND FAMILIES","	40 THE MOORS",EDUCATIONAL AND VOCATIONAL TRAINING ,14/03/2019,000006249311098,40.00,PARENTPAY E-COM R
OXFORDSHIRE CC,"CHILDRENS, YOUNG PEOPLE AND FAMILIES","	40 THE MOORS",DRUGS AND MEDICAL SUPPLIES,14/03/2019,000006249311100,64.13,BOOTS 0330
OXFORDSHIRE CC,"CHILDRENS, YOUNG PEOPLE AND FAMILIES","	LEAVING CARE SOUTH",CATERING PROVISIONS,14/03/2019,000006249311102,60.00,TESCO STORES 2008
OXFORDSHIRE CC,CORPORATE CORE,ICT OPERATIONS & MAI,PURCHASE OF IT EQUIPMENT,14/03/2019,000006249311104,19.70,GITHUB.COM
OXFORDSHIRE CC,"CHILDRENS, YOUNG PEOPLE AND FAMILIES","	MALTFIELD HOUSE",CATERING,14/03/2019,000006249311106,2.45,PARENTPAY E-COM R
OXFORDSHIRE CC,"CHILDRENS, YOUNG PEOPLE AND FAMILIES","	LOOKED AFTER CITY 1",PAYMENTS TO TRANSPORT OPERATORS,14/03/2019,000006249311108,49.76,TRAINLINE
OXFORDSHIRE CC,"CHILDRENS, YOUNG PEOPLE AND FAMILIES","	LOOKED AFTER CITY 1",PAYMENTS TO TRANSPORT OPERATORS,14/03/2019,000006249311110,150.08,TRAINLINE
OXFORDSHIRE CC,"CHILDRENS, YOUNG PEOPLE AND FAMILIES","	LOOKED AFTER NORTH",PAYMENTS TO TRANSPORT OPERATORS,14/03/2019,000006249311116,73.70,GWR WORCESTER OT
OXFORDSHIRE CC,"CHILDRENS, YOUNG PEOPLE AND FAMILIES","	LOOKED AFTER NORTH",CATERING,14/03/2019,000006249311118,2.00,B.B CAFE
OXFORDSHIRE CC,CORPORATE CORE,,"SUPPLIES, STATIONERY AND MATERIALS",14/03/2019,000006249311124,35.88,LYRECO UK LTD
OXFORDSHIRE CC,CORPORATE CORE,,"SUPPLIES, STATIONERY AND MATERIALS",14/03/2019,000006249311126,344.47,LYRECO UK LTD
OXFORDSHIRE CC,"CHILDRENS, YOUNG PEOPLE AND FAMILIES",FAMILY SUPPORT 2,PAYMENTS TO TRANSPORT OPERATORS,14/03/2019,000006249311130,48.50,WWW.GWR.COM
OXFORDSHIRE CC,"CHILDRENS, YOUNG PEOPLE AND FAMILIES",FAMILY SUPPORT 2,PAYMENTS TO TRANSPORT OPERATORS,14/03/2019,000006249311132,17.30,WWW.GWR.COM
OXFORDSHIRE CC,"CHILDRENS, YOUNG PEOPLE AND FAMILIES",FAMILY SUPPORT 2,PAYMENTS TO TRANSPORT OPERATORS,14/03/2019,000006249311134,174.75,WWW.GWR.COM
OXFORDSHIRE CC,"CHILDRENS, YOUNG PEOPLE AND FAMILIES",FAMILY SUPPORT 2,PAYMENTS TO TRANSPORT OPERATORS,14/03/2019,000006249311136,48.40,WWW.GWR.COM
OXFORDSHIRE CC,"CHILDRENS, YOUNG PEOPLE AND FAMILIES",FAMILY SUPPORT 2,PAYMENTS TO TRANSPORT OPERATORS,14/03/2019,000006249311138,17.20,WWW.GWR.COM
OXFORDSHIRE CC,"CHILDRENS, YOUNG PEOPLE AND FAMILIES",CNTL ERLY HELP-BBLEY,CATERING PROVISIONS,14/03/2019,000006249311140,12.20,TESCO STORE 2990
OXFORDSHIRE CC,SOCIAL AND COMMUNITY SERVICES,FLEET OPERATIONS,"BOOKS, DVDS AND CDS",14/03/2019,000006249311154,12.69,AMZN MKTP UK MW4QE0HR4
OXFORDSHIRE CC,SOCIAL AND COMMUNITY SERVICES,FLEET OPERATIONS,"BOOKS, DVDS AND CDS",14/03/2019,000006249311156,38.17,AMZN MKTP UK MW9L03BQ4
OXFORDSHIRE CC,CORPORATE CORE,"	COMMUNICATIONS","PUBLICITY, PROMOTIONS AND ADVERTISEMENT",14/03/2019,000006249311160,500.00,FACEBK  RKUXDK2AZ2
OXFORDSHIRE CC,"CHILDRENS, YOUNG PEOPLE AND FAMILIES","	FAMILY SUPPORT S'TH2",CLIENT LODGINGS AND ACCOMMODATION,14/03/2019,000006249310846,80.00,THE GEORGE HOTEL
OXFORDSHIRE CC,"CHILDRENS, YOUNG PEOPLE AND FAMILIES","	FAMILY SUPPORT S'TH2",FURNITURE,14/03/2019,000006249310848,500.00,CARPETRIGHT
OXFORDSHIRE CC,"CHILDRENS, YOUNG PEOPLE AND FAMILIES","	FAMILY SUPPORT S'TH2",FURNITURE,14/03/2019,000006249310850,200.00,CARPETRIGHT
OXFORDSHIRE CC,"CHILDRENS, YOUNG PEOPLE AND FAMILIES","	LEAVING CARE SOUTH",PAYMENTS TO TRANSPORT OPERATORS,14/03/2019,000006249310866,6.70,WWW.GWR.COM
OXFORDSHIRE CC,"CHILDRENS, YOUNG PEOPLE AND FAMILIES","	LEAVING CARE SOUTH",PAYMENTS TO TRANSPORT OPERATORS,14/03/2019,000006249310868,6.70,WWW.GWR.COM
OXFORDSHIRE CC,ENVIRONMENT AND ECONOMY,"	ROW MAINT",MATERIALS,14/03/2019,000006249310874,56.16,S GRUNDON (EWELME)
OXFORDSHIRE CC,"CHILDRENS, YOUNG PEOPLE AND FAMILIES","	LOOKED AFTER NORTH",PAYMENTS TO TRANSPORT OPERATORS,14/03/2019,000006249310876,5.49,TRAINLINE
OXFORDSHIRE CC,"CHILDRENS, YOUNG PEOPLE AND FAMILIES","	LOOKED AFTER NORTH",PAYMENTS TO TRANSPORT OPERATORS,14/03/2019,000006249310878,130.00,BANBURY SSTP
OXFORDSHIRE CC,"CHILDRENS, YOUNG PEOPLE AND FAMILIES","	LOOKED AFTER NORTH",MATERIALS,14/03/2019,000006249310880,4.85,WH SMITH
OXFORDSHIRE CC,"CHILDRENS, YOUNG PEOPLE AND FAMILIES",WITNEY,OTHER TRANSPORT ARRANGEMENTS,14/03/2019,000006249310882,4.00,WORCESTER STREET CAR P
OXFORDSHIRE CC,"CHILDRENS, YOUNG PEOPLE AND FAMILIES",WITNEY,CATERING PROVISIONS,14/03/2019,000006249310884,1.10,TESCO-STORES 2499
OXFORDSHIRE CC,SOCIAL AND COMMUNITY SERVICES,CSS - OXFORD,MATERIALS,14/03/2019,000006249310888,7.99,AMAZON PRIME MW06Q0BV4
OXFORDSHIRE CC,SOCIAL AND COMMUNITY SERVICES,CSS - OXFORD,MATERIALS,14/03/2019,000006249310890,-7.99,AMAZON PRIME
OXFORDSHIRE CC,ENVIRONMENT AND ECONOMY,HARD FM,GENERAL MAINTENANCE,14/03/2019,000006249310892,144.54, WOLSELEY UK
OXFORDSHIRE CC,ENVIRONMENT AND ECONOMY,HARD FM,GENERAL MAINTENANCE,14/03/2019,000006249310894,60.62, WOLSELEY UK
OXFORDSHIRE CC,"CHILDRENS, YOUNG PEOPLE AND FAMILIES",THAME E&A HOME,CATERING PROVISIONS,14/03/2019,000006249310896,9.30,COSTA FARINGDON
OXFORDSHIRE CC,ENVIRONMENT AND ECONOMY,HARD FM,HARDWARE AND CROCKERY,14/03/2019,000006249310898,22.12,JOHN NICHOLLS KIDLINGT
OXFORDSHIRE CC,ENVIRONMENT AND ECONOMY,"	COUNTY PRINT FINSHRS",POSTAGE AND DELIVERY,14/03/2019,000006249310912,17.50,ROYAL MAIL CUSTOMER
OXFORDSHIRE CC,SOCIAL AND COMMUNITY SERVICES,UASC 16&17,TELEPHONE - EQUIPMENT,14/03/2019,000006249310916,35.00,FONE BITZ - OXFORD
OXFORDSHIRE CC,SOCIAL AND COMMUNITY SERVICES,UASC 16&17,OTHER TRANSPORT ARRANGEMENTS,14/03/2019,000006249310918,12.00,APCOA-HAL-SS T2
OXFORDSHIRE CC,"CHILDRENS, YOUNG PEOPLE AND FAMILIES",UASC POST 18,PAYMENT TO GOVERNMENT DEPARTMENTS,14/03/2019,000006249310920,175.00,MARSTON GROUP
OXFORDSHIRE CC,"CHILDRENS, YOUNG PEOPLE AND FAMILIES","	RIVERSIDE CENTRE",CATERING PROVISIONS,14/03/2019,000006249310922,11.06,TESCO STORES 4377
OXFORDSHIRE CC,"CHILDRENS, YOUNG PEOPLE AND FAMILIES",WITNEY,CATERING PROVISIONS,14/03/2019,000006249310926,14.75,SAINSBURYS SACAT 0632
OXFORDSHIRE CC,"CHILDRENS, YOUNG PEOPLE AND FAMILIES",WITNEY,CATERING PROVISIONS,14/03/2019,000006249310928,10.00,TESCO STORES 4480 SACA
OXFORDSHIRE CC,CORPORATE CORE,"	DEMOCRATIC SERVICES",PAYMENTS TO TRANSPORT OPERATORS,13/03/2019,000006244076796,-39.00,TRAINLINE
OXFORDSHIRE CC,ENTERPRISEVC,,CAR LEASING - PRIVATE RENTALS,13/03/2019,000006244076992,46.12,ENTERPRISE RENT-A-CAR
OXFORDSHIRE CC,ENTERPRISEVC,,CAR LEASING - PRIVATE RENTALS,13/03/2019,000006244076994,74.92,ENTERPRISE RENT-A-CAR
OXFORDSHIRE CC,ENTERPRISEVC,,CAR LEASING - PRIVATE RENTALS,13/03/2019,000006244076996,25.14,ENTERPRISE RENT-A-CAR
OXFORDSHIRE CC,ENTERPRISEVC,,CAR LEASING - PRIVATE RENTALS,13/03/2019,000006244076998,60.84,ENTERPRISE RENT-A-CAR
OXFORDSHIRE CC,ENTERPRISEVC,,CAR LEASING - PRIVATE RENTALS,13/03/2019,000006244077000,31.66,ENTERPRISE RENT-A-CAR
OXFORDSHIRE CC,ENTERPRISEVC,,CAR LEASING - PRIVATE RENTALS,13/03/2019,000006244077002,163.20,ENTERPRISE RENT-A-CAR
OXFORDSHIRE CC,ENTERPRISEVC,,CAR LEASING - PRIVATE RENTALS,13/03/2019,000006244077004,62.08,ENTERPRISE RENT-A-CAR
OXFORDSHIRE CC,CORPORATE CORE,OPERATIONS,POSTAGE AND DELIVERY,13/03/2019,000006244076806,500.00,WWW.NEOPOST.CO.UK
OXFORDSHIRE CC,"CHILDRENS, YOUNG PEOPLE AND FAMILIES","	MUSIC UNALLOCABLE",TRAINING RELATED EXPENDITURE,13/03/2019,000006244076808,-48.00,MUSIC MARK
OXFORDSHIRE CC,ENVIRONMENT AND ECONOMY,"	BRIDGES GENERAL",TECHNICAL AND PROFESSIONAL CONSULTANT F,13/03/2019,000006244076814,451.44,YORKSURVEY.CO.UK
OXFORDSHIRE CC,"CHILDRENS, YOUNG PEOPLE AND FAMILIES","	DISABILITIES TEAM-C",HIRE OF ACCOMMODATION AND FACILITIES,13/03/2019,000006244076818,68.00,HOTEL ON BOOKING.COM
OXFORDSHIRE CC,"CHILDRENS, YOUNG PEOPLE AND FAMILIES","	FPT NORTH",OTHER TRANSPORT ARRANGEMENTS,13/03/2019,000006244076822,2.00,SEACOURT PARK AND RIDE
OXFORDSHIRE CC,ENVIRONMENT AND ECONOMY,"	MUSEUM DEV OFFICER",PAYMENTS TO TRANSPORT OPERATORS,13/03/2019,000006244076932,70.50,OXFORD PARKWAY SSTP
OXFORDSHIRE CC,"CHILDRENS, YOUNG PEOPLE AND FAMILIES",CNTL EARLY HELP-BRTN,CATERING PROVISIONS,13/03/2019,000006244076936,7.74,CO-OPERATIVE FOOD
OXFORDSHIRE CC,ENVIRONMENT AND ECONOMY,"	TVERC",PRINTING,13/03/2019,000006244076938,39.99,WWW.INFORMA.COM
OXFORDSHIRE CC,"CHILDRENS, YOUNG PEOPLE AND FAMILIES",UASC POST 18,CATERING PROVISIONS,13/03/2019,000006244076940,116.00,ASDA STORE 4442
OXFORDSHIRE CC,"CHILDRENS, YOUNG PEOPLE AND FAMILIES",UASC POST 18,CATERING PROVISIONS,13/03/2019,000006244076942,-116.00,ASDA STORE 4442
OXFORDSHIRE CC,"CHILDRENS, YOUNG PEOPLE AND FAMILIES","	LOOKED AFTER NORTH",MATERIALS,13/03/2019,000006244076944,29.99,ARGOS BANBURY INSI
OXFORDSHIRE CC,"CHILDRENS, YOUNG PEOPLE AND FAMILIES","	LOOKED AFTER NORTH",REGISTRATION AND INSPECTION FEES,13/03/2019,000006244076946,11.00,OCC REGISTRARS (M)
OXFORDSHIRE CC,"CHILDRENS, YOUNG PEOPLE AND FAMILIES",CNTL ERLY HELP-BBLEY,MATERIALS,13/03/2019,000006244076948,156.94,WWW.ARGOS.CO.UK
OXFORDSHIRE CC,"CHILDRENS, YOUNG PEOPLE AND FAMILIES",CNTL ERLY HELP-BBLEY,CATERING PROVISIONS,13/03/2019,000006244076950,2.78,NISA DELTEYS
OXFORDSHIRE CC,SOCIAL AND COMMUNITY SERVICES,CSS WALLINGFORD,MATERIALS,13/03/2019,000006244076744,4.00,KERI THE FLORIST
OXFORDSHIRE CC,SOCIAL AND COMMUNITY SERVICES,CSS WALLINGFORD,CATERING PROVISIONS,13/03/2019,000006244076746,4.28,LIDL UK  WALLINGFORD
OXFORDSHIRE CC,"CHILDRENS, YOUNG PEOPLE AND FAMILIES","	LOOKED AFTER NORTH",POSTAGE AND DELIVERY,13/03/2019,000006244076752,146.50,THE POST OFFICE
OXFORDSHIRE CC,ENTERPRISEVC,OTFC TEAM,CATERING PROVISIONS,13/03/2019,000006244076754,17.25,SAINSBURYS 0600
OXFORDSHIRE CC,"CHILDRENS, YOUNG PEOPLE AND FAMILIES",DIDCOT MOVE-ON HOME,CATERING PROVISIONS,13/03/2019,000006244076762,13.25,SAINSBURYS SACAT 2067
OXFORDSHIRE CC,"CHILDRENS, YOUNG PEOPLE AND FAMILIES","	MALTFIELD HOUSE",CATERING,13/03/2019,000006244076766,16.59,"TAYLORS, BANBURY"
OXFORDSHIRE CC,"CHILDRENS, YOUNG PEOPLE AND FAMILIES","	MALTFIELD HOUSE",CATERING,13/03/2019,000006244076768,6.05,COSTA COFFEE
OXFORDSHIRE CC,"CHILDRENS, YOUNG PEOPLE AND FAMILIES",THAME E&A HOME,"BOOKS, DVDS AND CDS",13/03/2019,000006244076770,7.99,AMZN MKTP UK MW1AM2MC4
OXFORDSHIRE CC,"CHILDRENS, YOUNG PEOPLE AND FAMILIES",THAME E&A HOME,"BOOKS, DVDS AND CDS",13/03/2019,000006244076772,7.97,AMZN MKTP UK MW1D11MA4
OXFORDSHIRE CC,"CHILDRENS, YOUNG PEOPLE AND FAMILIES",THAME E&A HOME,"BOOKS, DVDS AND CDS",13/03/2019,000006244076774,24.50,AMZN MKTP UK MW29445K4
OXFORDSHIRE CC,"CHILDRENS, YOUNG PEOPLE AND FAMILIES",THAME E&A HOME,"BOOKS, DVDS AND CDS",13/03/2019,000006244076776,5.68,AMZN MKTP UK MW5D47M24
OXFORDSHIRE CC,"CHILDRENS, YOUNG PEOPLE AND FAMILIES",THAME E&A HOME,"BOOKS, DVDS AND CDS",13/03/2019,000006244076778,41.99,AMZN MKTP UK MW0ZA15N4
OXFORDSHIRE CC,"CHILDRENS, YOUNG PEOPLE AND FAMILIES",THAME E&A HOME,"BOOKS, DVDS AND CDS",13/03/2019,000006244076780,30.06,AMZN MKTP UK MW3HB0MO4
OXFORDSHIRE CC,"CHILDRENS, YOUNG PEOPLE AND FAMILIES",THAME E&A HOME,"BOOKS, DVDS AND CDS",13/03/2019,000006244076782,3.04,AMZN MKTP UK MW7K815M4
OXFORDSHIRE CC,SOCIAL AND COMMUNITY SERVICES,CSS BICESTER,"BOOKS, DVDS AND CDS",13/03/2019,000006244076598,12.39,AMZN MKTP UK MW2LN55P4
OXFORDSHIRE CC,"CHILDRENS, YOUNG PEOPLE AND FAMILIES","	LEAVING CARE CITY 1",HIRE OF ACCOMMODATION AND FACILITIES,13/03/2019,000006244076952,231.50,TRAVELODGE
OXFORDSHIRE CC,"CHILDRENS, YOUNG PEOPLE AND FAMILIES","	FAMILY SUPPORT S'TH2",PAYMENTS TO TRANSPORT OPERATORS,13/03/2019,000006244076960,123.00,WWW.GWR.COM
OXFORDSHIRE CC,"CHILDRENS, YOUNG PEOPLE AND FAMILIES","	40 THE MOORS",CATERING PROVISIONS,13/03/2019,000006244076964,223.25,SAINSBURYS (2243)
OXFORDSHIRE CC,"CHILDRENS, YOUNG PEOPLE AND FAMILIES","	40 THE MOORS",MATERIALS,13/03/2019,000006244076966,16.79,AMAZON.CO.UK MW2762HT4
OXFORDSHIRE CC,"CHILDRENS, YOUNG PEOPLE AND FAMILIES","	40 THE MOORS",MATERIALS,13/03/2019,000006244076968,16.47,AMAZON.CO.UK MW9OH1HP4
OXFORDSHIRE CC,"CHILDRENS, YOUNG PEOPLE AND FAMILIES","	LOOKED AFTER NORTH",PAYMENTS TO TRANSPORT OPERATORS,13/03/2019,000006244076976,161.98,FLYBE.COM ESX8X0       0
OXFORDSHIRE CC,ENTERPRISEVC,,CAR LEASING - PRIVATE RENTALS,13/03/2019,000006244076986,42.96,ENTERPRISE RENT-A-CAR
OXFORDSHIRE CC,ENTERPRISEVC,,CAR LEASING - PRIVATE RENTALS,13/03/2019,000006244076988,46.12,ENTERPRISE RENT-A-CAR
OXFORDSHIRE CC,ENTERPRISEVC,,CAR LEASING - PRIVATE RENTALS,13/03/2019,000006244076990,67.08,ENTERPRISE RENT-A-CAR
OXFORDSHIRE CC,"CHILDRENS, YOUNG PEOPLE AND FAMILIES",THAME E&A HOME,CATERING,13/03/2019,000006244076784,6.20,BOSWELLS COFFEE COMPAN
OXFORDSHIRE CC,"CHILDRENS, YOUNG PEOPLE AND FAMILIES",THAME E&A HOME,"BOOKS, DVDS AND CDS",13/03/2019,000006244076786,52.85,AMZN MKTP UK MW4U50HA4
OXFORDSHIRE CC,ENVIRONMENT AND ECONOMY,HARD FM,EQUIPMENT,13/03/2019,000006244076680,60.55,WILTS ELECTRICAL
OXFORDSHIRE CC,"CHILDRENS, YOUNG PEOPLE AND FAMILIES","	LOOKED AFTER CITY 1",CATERING PROVISIONS,13/03/2019,000006244076874,7.85,CO-OP GROUP FOOD
OXFORDSHIRE CC,"CHILDRENS, YOUNG PEOPLE AND FAMILIES","	40 THE MOORS",CATERING,13/03/2019,000006244076878,47.97,WWW.DOMINOS.CO.UK
OXFORDSHIRE CC,ENVIRONMENT AND ECONOMY,OPERATIONS,STATIONERY,13/03/2019,000006244076880,500.00,WWW.NEOPOST.CO.UK
OXFORDSHIRE CC,ENVIRONMENT AND ECONOMY,HARD FM,EQUIPMENT,13/03/2019,000006244076682,64.44,WILTS ELECTRICAL
OXFORDSHIRE CC,ENVIRONMENT AND ECONOMY,HARD FM,EQUIPMENT,13/03/2019,000006244076684,31.41,WILTS ELECTRICAL
OXFORDSHIRE CC,ENVIRONMENT AND ECONOMY,HARD FM,HARDWARE AND CROCKERY,13/03/2019,000006244076686,55.72,WICKES OXFORD
OXFORDSHIRE CC,ENVIRONMENT AND ECONOMY,HARD FM,OTHER TRANSPORT ARRANGEMENTS,13/03/2019,000006244076688,3.60,NCP BANBURY MARLBOROUG
OXFORDSHIRE CC,ENVIRONMENT AND ECONOMY,HARD FM,HARDWARE AND CROCKERY,13/03/2019,000006244076690,19.38,JOHN NICHOLLS WITNEY P
OXFORDSHIRE CC,ENVIRONMENT AND ECONOMY,HARD FM,HARDWARE AND CROCKERY,13/03/2019,000006244076692,13.98,SCREWFIX ABINGDON
OXFORDSHIRE CC,ENVIRONMENT AND ECONOMY,HARD FM,HARDWARE AND CROCKERY,13/03/2019,000006244076694,19.98,SCREWFIX ABINGDON
OXFORDSHIRE CC,ENVIRONMENT AND ECONOMY,HARD FM,EQUIPMENT,13/03/2019,000006244076696,31.77,WILTS ELECTRICAL
OXFORDSHIRE CC,ENVIRONMENT AND ECONOMY,HARD FM,GENERAL MAINTENANCE,13/03/2019,000006244076698,151.16, WOLSELEY UK
OXFORDSHIRE CC,SOCIAL AND COMMUNITY SERVICES,CSS - DIDCOT,MATERIALS,13/03/2019,000006244076894,66.99,WAYFAIR #2668571428
OXFORDSHIRE CC,SOCIAL AND COMMUNITY SERVICES,CSS - OXFORD,CATERING PROVISIONS,13/03/2019,000006244076708,24.65,ALDI STORES 775-142
OXFORDSHIRE CC,SOCIAL AND COMMUNITY SERVICES,CSS - OXFORD,MATERIALS,13/03/2019,000006244076714,19.21,ALDI STORES 775-142
OXFORDSHIRE CC,"CHILDRENS, YOUNG PEOPLE AND FAMILIES","	LEAVING CARE CITY 1",MATERIALS,13/03/2019,000006244076716,3.96,CARD FACTORY
OXFORDSHIRE CC,"CHILDRENS, YOUNG PEOPLE AND FAMILIES","	LEAVING CARE CITY 1",CATERING,13/03/2019,000006244076718,2.75,CAFFE NERO
OXFORDSHIRE CC,"CHILDRENS, YOUNG PEOPLE AND FAMILIES","	RIVERSIDE CENTRE",EDUCATIONAL AND VOCATIONAL TRAINING ,13/03/2019,000006244076720,10.00,SPORTS CENTRE
OXFORDSHIRE CC,CORPORATE CORE,"	PERSONNEL",PAYMENTS TO TRANSPORT OPERATORS,13/03/2019,000006244076896,7.55,TRAINLINE
OXFORDSHIRE CC,"CHILDRENS, YOUNG PEOPLE AND FAMILIES","	40 THE MOORS",DRUGS AND MEDICAL SUPPLIES,13/03/2019,000006244076900,41.69,SUPERDRUG STORES PLC
OXFORDSHIRE CC,ENVIRONMENT AND ECONOMY,THE RIDGEWAY,CATERING PROVISIONS,13/03/2019,000006244076902,1.27,CO-OPERATIVE FOOD
OXFORDSHIRE CC,CORPORATE CORE,OPERATIONS,STATIONERY,13/03/2019,000006244076914,500.00,WWW.NEOPOST.CO.UK
OXFORDSHIRE CC,"CHILDRENS, YOUNG PEOPLE AND FAMILIES",DIDCOT MOVE-ON HOME,CATERING PROVISIONS,13/03/2019,000006244076920,5.95,SAINSBURYS SACAT 2067
OXFORDSHIRE CC,"CHILDRENS, YOUNG PEOPLE AND FAMILIES",DIDCOT MOVE-ON HOME,CATERING PROVISIONS,13/03/2019,000006244076922,.80,SAINSBURYS SACAT 2067
OXFORDSHIRE CC,"CHILDRENS, YOUNG PEOPLE AND FAMILIES",DIDCOT MOVE-ON HOME,CATERING,13/03/2019,000006244076924,6.10,STARBUCKS COFFEE
OXFORDSHIRE CC,"CHILDRENS, YOUNG PEOPLE AND FAMILIES",VULNERABLE LEARNERS,"BOOKS, DVDS AND CDS",13/03/2019,000006244076926,8.99,AMZN MKTP UK MW9SN45R4
OXFORDSHIRE CC,"CHILDRENS, YOUNG PEOPLE AND FAMILIES",0-5 STDS & PROGRESS,"BOOKS, DVDS AND CDS",13/03/2019,000006244076928,100.00,FOCUS EDUCATION UK LTD
OXFORDSHIRE CC,"CHILDRENS, YOUNG PEOPLE AND FAMILIES",THAME E&A HOME,SUBSCRIPTIONS,13/03/2019,000006244076730,69.00,AQUA VALE SWIMMING
OXFORDSHIRE CC,"CHILDRENS, YOUNG PEOPLE AND FAMILIES",WITNEY,MATERIALS,13/03/2019,000006244076732,9.99,WH SMITH
OXFORDSHIRE CC,"CHILDRENS, YOUNG PEOPLE AND FAMILIES",CNTL EARLY HELP-RHIL,FURNITURE,13/03/2019,000006244076736,307.43,CARPETS 4 LESS
OXFORDSHIRE CC,ENVIRONMENT AND ECONOMY,"	MUSEUM DEV OFFICER",OTHER TRANSPORT ARRANGEMENTS,13/03/2019,000006244076930,4.00,3C_ OXFORDSHIRE COUNTY
OXFORDSHIRE CC,ENVIRONMENT AND ECONOMY,ELEC NPR ST LTG,HARDWARE AND CROCKERY,13/03/2019,000006244076620,49.95,SCREWFIX DIRECT
OXFORDSHIRE CC,SOCIAL AND COMMUNITY SERVICES,LOOKED AFTER SOUTH,PAYMENT TO GOVERNMENT DEPARTMENTS,13/03/2019,000006244076624,22.00,HAMPSHIRE COUNTY COUNC
OXFORDSHIRE CC,"CHILDRENS, YOUNG PEOPLE AND FAMILIES",THAME E&A HOME,OTHER TRANSPORT ARRANGEMENTS,13/03/2019,000006244076626,36.00,BRITANNIA CARS
OXFORDSHIRE CC,"CHILDRENS, YOUNG PEOPLE AND FAMILIES",THAME E&A HOME,CATERING PROVISIONS,13/03/2019,000006244076628,62.87,WAITROSE 206
OXFORDSHIRE CC,SOCIAL AND COMMUNITY SERVICES,CSS WITNEY,CATERING PROVISIONS,13/03/2019,000006244076638,13.12,LIDL UK  WITNEY
OXFORDSHIRE CC,"CHILDRENS, YOUNG PEOPLE AND FAMILIES","	LEAVING CARE SOUTH",PAYMENTS TO TRANSPORT OPERATORS,13/03/2019,000006244076640,19.70,WWW.GWR.COM
OXFORDSHIRE CC,CORPORATE CORE,"	LEGAL SERVICES",LEGAL COSTS,13/03/2019,000006244076834,11.00,OCC REGISTRARS (M)
OXFORDSHIRE CC,CORPORATE CORE,"	CORPORATE FINANCE",PAYMENTS TO TRANSPORT OPERATORS,13/03/2019,000006244076838,70.50,WWW.GWR.COM
OXFORDSHIRE CC,"CHILDRENS, YOUNG PEOPLE AND FAMILIES","	LEAVING CARE SOUTH",OTHER EXPENSES,13/03/2019,000006244076642,16.94,WWW.ARGOS.CO.UK
OXFORDSHIRE CC,"CHILDRENS, YOUNG PEOPLE AND FAMILIES",EYNSHAM,CATERING,13/03/2019,000006244076646,1.50,CO-OPERATIVE FOOD
OXFORDSHIRE CC,ENVIRONMENT AND ECONOMY,"	NAT TRAILS GENERAL",CATERING PROVISIONS,13/03/2019,000006244076654,6.15,CO-OPERATIVE FOOD
OXFORDSHIRE CC,ENVIRONMENT AND ECONOMY,"	COUNTY PRINT FINSHRS",MANAGEMENT CONSULTANT FEES,13/03/2019,000006244076656,150.50,TVLICENSING.CO.UK
OXFORDSHIRE CC,ENVIRONMENT AND ECONOMY,"	COUNTY PRINT FINSHRS",HARDWARE AND CROCKERY,13/03/2019,000006244076658,644.84,SCREWFIX DIRECT
OXFORDSHIRE CC,"CHILDRENS, YOUNG PEOPLE AND FAMILIES",THAME E&A HOME,SUBSCRIPTIONS,13/03/2019,000006244076660,6.00,AQUA VALE SWIMMING
OXFORDSHIRE CC,"CHILDRENS, YOUNG PEOPLE AND FAMILIES",WITNEY,CATERING PROVISIONS,13/03/2019,000006244076662,6.90,SAINSBURYS SACAT 0632
OXFORDSHIRE CC,ENTERPRISEVC,,CAR LEASING - PRIVATE RENTALS,13/03/2019,000006244077006,86.38,ENTERPRISE RENT-A-CAR
OXFORDSHIRE CC,ENTERPRISEVC,,CAR LEASING - PRIVATE RENTALS,13/03/2019,000006244077008,43.18,ENTERPRISE RENT-A-CAR
OXFORDSHIRE CC,ENTERPRISEVC,,CAR LEASING - PRIVATE RENTALS,13/03/2019,000006244077010,24.82,ENTERPRISE RENT-A-CAR
OXFORDSHIRE CC,"CHILDRENS, YOUNG PEOPLE AND FAMILIES","	LEAVING CARE NORTH",RESIDENTIAL ACTIVITIES,13/03/2019,000006244077012,20.00,SAINSBURYS 0632
OXFORDSHIRE CC,"CHILDRENS, YOUNG PEOPLE AND FAMILIES","	LOOKED AFTER SOUTH",PAYMENT TO GOVERNMENT DEPARTMENTS,13/03/2019,000006244077014,23.00,DSA THEORY TEST
OXFORDSHIRE CC,"CHILDRENS, YOUNG PEOPLE AND FAMILIES","	RIVERSIDE CENTRE",CATERING PROVISIONS,13/03/2019,000006244077022,8.89,TESCO STORES 4377
OXFORDSHIRE CC,"CHILDRENS, YOUNG PEOPLE AND FAMILIES",C&F - TF CONTRIB,OTHER TRANSPORT ARRANGEMENTS,13/03/2019,000006244077026,24.00,WWW.THEKEY.CO.UK
OXFORDSHIRE CC,"CHILDRENS, YOUNG PEOPLE AND FAMILIES",UASC 16&17,CLOTHING AND UNIFORMS,13/03/2019,000006244076670,22.49,SELECT
OXFORDSHIRE CC,"CHILDRENS, YOUNG PEOPLE AND FAMILIES",UASC UNDER 16,DOMESTIC AND CLEANING EQUIPMENT,13/03/2019,000006244076672,6.99,ASDA STORE 4442
OXFORDSHIRE CC,CORPORATE CORE,"	CORPORATE FINANCE",PAYMENTS TO TRANSPORT OPERATORS,13/03/2019,000006244076840,50.10,WWW.GWR.COM
OXFORDSHIRE CC,"CHILDRENS, YOUNG PEOPLE AND FAMILIES",C&F - TF CONTRIB,MATERIALS,13/03/2019,000006244077028,5.94,WWW.ARGOS.CO.UK
OXFORDSHIRE CC,"CHILDRENS, YOUNG PEOPLE AND FAMILIES",EYNSHAM,DAY ACTIVITIES,13/03/2019,000006244077030,150.00,HIGHSTREETVOUCHERS
OXFORDSHIRE CC,"CHILDRENS, YOUNG PEOPLE AND FAMILIES",EYNSHAM,CATERING,13/03/2019,000006244077032,109.98,TESCO STORES 2008
OXFORDSHIRE CC,"CHILDRENS, YOUNG PEOPLE AND FAMILIES","	MALTFIELD HOUSE",OTHER EXPENSES,13/03/2019,000006244076854,23.00,SNIPS HAIR SALON
OXFORDSHIRE CC,SOCIAL AND COMMUNITY SERVICES,CSS WITNEY,MATERIALS,13/03/2019,000006244076856,21.44,AMAZON.CO.UK MW1B67H44
OXFORDSHIRE CC,SOCIAL AND COMMUNITY SERVICES,CSS WITNEY,MATERIALS,13/03/2019,000006244076858,5.16,AMAZON.CO.UK MW8B44HI4
OXFORDSHIRE CC,"CHILDRENS, YOUNG PEOPLE AND FAMILIES",C&I NON PUBLIC FUND,MATERIALS,13/03/2019,000006244076860,26.64,FIRETOYSLTD
OXFORDSHIRE CC,ENVIRONMENT AND ECONOMY,"	FLEET OPERATIONS",VEHICLES REPAIRS AND MAINTENANCE,13/03/2019,000006244076864,124.97,LONDON HIRE LTD
OXFORDSHIRE CC,ENVIRONMENT AND ECONOMY,"	FLEET OPERATIONS",VEHICLES REPAIRS AND MAINTENANCE,13/03/2019,000006244076866,137.74,LONDON HIRE LTD
OXFORDSHIRE CC,SOCIAL AND COMMUNITY SERVICES,CSS - OXFORD,MATERIALS,13/03/2019,000006244076674,7.99,AMAZON PRIME MW30O05P4
OXFORDSHIRE CC,ENVIRONMENT AND ECONOMY,HARD FM,EQUIPMENT,13/03/2019,000006244076676,6.98,NEWEY & EYRE
OXFORDSHIRE CC,ENVIRONMENT AND ECONOMY,HARD FM,EQUIPMENT,13/03/2019,000006244076678,60.65,NEWEY & EYRE
OXFORDSHIRE CC,"CHILDRENS, YOUNG PEOPLE AND FAMILIES","	LOOKED AFTER NORTH",REGISTRATION AND INSPECTION FEES,12/03/2019,000006239787254,33.00,OCC REGISTRARS (M)
OXFORDSHIRE CC,"CHILDRENS, YOUNG PEOPLE AND FAMILIES","	LOOKED AFTER CITY 1",PAYMENT TO GOVERNMENT DEPARTMENTS,12/03/2019,000006239787256,595.62,OXFORD CITY COUNCIL DO
OXFORDSHIRE CC,CORPORATE CORE,"	LEGAL SERVICES",LEGAL COSTS,12/03/2019,000006239787120,11.00,GLOUCESTERSHIRE.GOV.UK
OXFORDSHIRE CC,"CHILDRENS, YOUNG PEOPLE AND FAMILIES","	RIVERSIDE CENTRE",CATERING PROVISIONS,12/03/2019,000006239787124,19.20,WELCOME B/WAITROSE
OXFORDSHIRE CC,CORPORATE CORE,"	CORPORATE FINANCE",PAYMENTS TO TRANSPORT OPERATORS,12/03/2019,000006239787138,100.20,WWW.GWR.COM
OXFORDSHIRE CC,"CHILDRENS, YOUNG PEOPLE AND FAMILIES","	MALTFIELD HOUSE",CATERING,12/03/2019,000006239787160,94.86,SAINSBURYS TO YOU 0600
OXFORDSHIRE CC,"CHILDRENS, YOUNG PEOPLE AND FAMILIES","	MALTFIELD HOUSE",CATERING,12/03/2019,000006239787162,10.75,COSTA COFFEE
OXFORDSHIRE CC,"CHILDRENS, YOUNG PEOPLE AND FAMILIES","	MALTFIELD HOUSE",CLOTHING AND UNIFORMS,12/03/2019,000006239787164,9.00,TIGER LILY LTD
OXFORDSHIRE CC,SOCIAL AND COMMUNITY SERVICES,CSS WITNEY,CATERING PROVISIONS,12/03/2019,000006239787176,145.57,TESCO STORES 2008
OXFORDSHIRE CC,ENVIRONMENT AND ECONOMY,SCH&SOC CARE TRANSP,PAYMENTS TO TRANSPORT OPERATORS,12/03/2019,000006239787178,108.75,WWW.GWR.COM
OXFORDSHIRE CC,"CHILDRENS, YOUNG PEOPLE AND FAMILIES","	40 THE MOORS",CATERING PROVISIONS,12/03/2019,000006239787208,9.05,TESCO STORE 2788
OXFORDSHIRE CC,"CHILDRENS, YOUNG PEOPLE AND FAMILIES","	40 THE MOORS",CATERING,12/03/2019,000006239787210,19.30,TIFFINS
OXFORDSHIRE CC,"CHILDRENS, YOUNG PEOPLE AND FAMILIES","	MALTFIELD HOUSE",CLOTHING AND UNIFORMS,12/03/2019,000006239787214,43.00,PRIMARK 440
OXFORDSHIRE CC,ENVIRONMENT AND ECONOMY,STRATEGY AND INFRASTRUCTURE PLANNING,PAYMENTS TO TRANSPORT OPERATORS,12/03/2019,000006239787216,30.10,WWW.GWR.COM
OXFORDSHIRE CC,"CHILDRENS, YOUNG PEOPLE AND FAMILIES",DIDCOT MOVE-ON HOME,CATERING PROVISIONS,12/03/2019,000006239787222,5.30,SAINSBURYS SACAT 2067
OXFORDSHIRE CC,"CHILDRENS, YOUNG PEOPLE AND FAMILIES",STEP INTO TRAINING,EQUIPMENT,12/03/2019,000006239787226,179.96,AMZN MKTP UK MW2ID1VO4
OXFORDSHIRE CC,"CHILDRENS, YOUNG PEOPLE AND FAMILIES",STEP INTO TRAINING,EQUIPMENT,12/03/2019,000006239787228,179.96,AMZN MKTP UK MW27A9M34
OXFORDSHIRE CC,"CHILDRENS, YOUNG PEOPLE AND FAMILIES",STEP INTO TRAINING,IT SERVICES,12/03/2019,000006239787230,24.90,CREATE.NET BRIGHTON
OXFORDSHIRE CC,"CHILDRENS, YOUNG PEOPLE AND FAMILIES",STEP INTO TRAINING,EQUIPMENT,12/03/2019,000006239787232,44.99,AMZN MKTP UK MW4JI1MH4
OXFORDSHIRE CC,"CHILDRENS, YOUNG PEOPLE AND FAMILIES",STEP INTO TRAINING,EQUIPMENT,12/03/2019,000006239787234,89.98,AMZN MKTP UK MW73F7MR4
OXFORDSHIRE CC,"CHILDRENS, YOUNG PEOPLE AND FAMILIES",STEP INTO TRAINING,"SUPPLIES, STATIONERY AND MATERIALS",12/03/2019,000006239787236,53.78,AMAZON.CO.UK MW8H13VQ4
OXFORDSHIRE CC,"CHILDRENS, YOUNG PEOPLE AND FAMILIES",VULNERABLE LEARNERS,CLOTHING AND UNIFORMS,12/03/2019,000006239787238,34.45,WWW.BABIPUR.CO.UK
OXFORDSHIRE CC,"CHILDRENS, YOUNG PEOPLE AND FAMILIES",CNTL EARLY HELP-BRTN,PAYMENTS TO VOLUNTARY BODIES,12/03/2019,000006239787244,400.00,ALLPAY  A2DOMINION HOU
OXFORDSHIRE CC,ENVIRONMENT AND ECONOMY,"	NAT TRAILS GENERAL",MATERIALS,12/03/2019,000006239786992,349.95,PAYPAL  HYTEXUKLTD
OXFORDSHIRE CC,"CHILDRENS, YOUNG PEOPLE AND FAMILIES","	LOOKED AFTER NORTH",VEHICLE FUEL,12/03/2019,000006239786996,27.32,SWAN GARAGE
OXFORDSHIRE CC,SOCIAL AND COMMUNITY SERVICES,CO PRODUCTION WORK,PHOTOCOPYING,12/03/2019,000006239786998,15.00,OXFORD PRINT CENTRE
OXFORDSHIRE CC,"CHILDRENS, YOUNG PEOPLE AND FAMILIES",UASC UNDER 16,OTHER EXPENSES,12/03/2019,000006239787012,44.28,ASDA STORE 4442
OXFORDSHIRE CC,"CHILDRENS, YOUNG PEOPLE AND FAMILIES",UASC UNDER 16,DOMESTIC AND CLEANING EQUIPMENT,12/03/2019,000006239787014,54.00,HALFORDS 0788
OXFORDSHIRE CC,ENVIRONMENT AND ECONOMY,HARD FM,GENERAL MAINTENANCE,12/03/2019,000006239787016,36.06, WOLSELEY UK
OXFORDSHIRE CC,ENVIRONMENT AND ECONOMY,HARD FM,EQUIPMENT,12/03/2019,000006239787018,9.30,MEDLOCK ELECTRICAL
OXFORDSHIRE CC,ENVIRONMENT AND ECONOMY,HARD FM,FURNITURE,12/03/2019,000006239787020,350.00,REYNOLDS BLINDS
OXFORDSHIRE CC,ENVIRONMENT AND ECONOMY,HARD FM,GENERAL MAINTENANCE,12/03/2019,000006239787022,295.22, WOLSELEY UK
OXFORDSHIRE CC,"CHILDRENS, YOUNG PEOPLE AND FAMILIES",THAME E&A HOME,CATERING PROVISIONS,12/03/2019,000006239787024,15.00,SAINSBURYS SACAT 2096
OXFORDSHIRE CC,ENVIRONMENT AND ECONOMY,WASTE REDUCTION GEN,"PUBLICITY, PROMOTIONS AND ADVERTISEMENT",12/03/2019,000006239787028,59.88,WWW.BABIPUR.CO.UK
OXFORDSHIRE CC,SOCIAL AND COMMUNITY SERVICES,CSS BICESTER,CATERING PROVISIONS,12/03/2019,000006239787030,86.70,SAINSBURYS (2243)
OXFORDSHIRE CC,SOCIAL AND COMMUNITY SERVICES,SAFEGUARDING-OPERATIONAL MANAGERS,PAYMENTS TO TRANSPORT OPERATORS,12/03/2019,000006239787032,86.30,WWW.GWR.COM
OXFORDSHIRE CC,SOCIAL AND COMMUNITY SERVICES,"	LOCALITY TEAM -SOUTH",CATERING,12/03/2019,000006239787036,298.32,EAST WEST PROVISIONS
OXFORDSHIRE CC,"CHILDRENS, YOUNG PEOPLE AND FAMILIES","	FAM SUPP SOUTH",REGISTRATION AND INSPECTION FEES,12/03/2019,000006239787044,11.00,OCC REGISTRARS (M)
OXFORDSHIRE CC,ENVIRONMENT AND ECONOMY,"	PROPERTY & PROC MGT","SUPPLIES, STATIONERY AND MATERIALS",12/03/2019,000006239787046,12.40,ASAP STAMPS LTD.
OXFORDSHIRE CC,ENTERPRISEVC,BUSINESS SYST STAFF,"BOOKS, DVDS AND CDS",12/03/2019,000006239787074,14.95,AMZN MKTP UK MW60J2MH4
OXFORDSHIRE CC,"CHILDRENS, YOUNG PEOPLE AND FAMILIES",DIDCOT MOVE-ON HOME,CATERING PROVISIONS,12/03/2019,000006239787076,20.85,SAINSBURYS SACAT 2067
OXFORDSHIRE CC,"CHILDRENS, YOUNG PEOPLE AND FAMILIES",CNTL ERLY HELP-BBLEY,"BOOKS, DVDS AND CDS",12/03/2019,000006239787078,221.94,AMZN MKTP UK MW3IF5MM4
OXFORDSHIRE CC,COMMUNITY SAFETY,ON ST PARK OXFD SPA,PAYMENTS TO TRANSPORT OPERATORS,12/03/2019,000006239787080,146.60,GWR OXFORD TO
OXFORDSHIRE CC,"CHILDRENS, YOUNG PEOPLE AND FAMILIES","	SENSS TRAINING",EDUCATIONAL AND VOCATIONAL TRAINING ,12/03/2019,000006239787088,165.00,COMMUNICATE-ED
OXFORDSHIRE CC,CORPORATE CORE,"	LEGAL SERVICES",LEGAL COSTS,12/03/2019,000006239787118,22.00,OCC REGISTRARS (M)
OXFORDSHIRE CC,"CHILDRENS, YOUNG PEOPLE AND FAMILIES","	MALTFIELD HOUSE",CLOTHING AND UNIFORMS,12/03/2019,000006239787266,64.50,PRIMARK 440
OXFORDSHIRE CC,"CHILDRENS, YOUNG PEOPLE AND FAMILIES","	MALTFIELD HOUSE",CATERING,12/03/2019,000006239787268,3.00,PARENTPAY E-COM R
OXFORDSHIRE CC,"CHILDRENS, YOUNG PEOPLE AND FAMILIES",WITNEY,CATERING PROVISIONS,12/03/2019,000006239787270,23.60,SAINSBURYS SACAT 0632
OXFORDSHIRE CC,"CHILDRENS, YOUNG PEOPLE AND FAMILIES","	40 THE MOORS","BOOKS, DVDS AND CDS",12/03/2019,000006239787274,22.40,AMZN MKTP UK MW4293V64
OXFORDSHIRE CC,"CHILDRENS, YOUNG PEOPLE AND FAMILIES","	40 THE MOORS","BOOKS, DVDS AND CDS",12/03/2019,000006239787276,19.40,AMZN MKTP UK MW5M74MW4
OXFORDSHIRE CC,"CHILDRENS, YOUNG PEOPLE AND FAMILIES","	40 THE MOORS",MATERIALS,12/03/2019,000006239787278,52.58,AMAZON.CO.UK MW7QV9VM4
OXFORDSHIRE CC,CORPORATE CORE,,"SUPPLIES, STATIONERY AND MATERIALS",12/03/2019,000006239787282,232.90,LYRECO UK LTD
OXFORDSHIRE CC,CORPORATE CORE,,"SUPPLIES, STATIONERY AND MATERIALS",12/03/2019,000006239787284,455.76,LYRECO UK LTD
OXFORDSHIRE CC,CORPORATE CORE,,"SUPPLIES, STATIONERY AND MATERIALS",12/03/2019,000006239787286,"1,025.96",LYRECO UK LTD
OXFORDSHIRE CC,"CHILDRENS, YOUNG PEOPLE AND FAMILIES","	LOOKED AFTER CITY 1",OTHER TRANSPORT ARRANGEMENTS,12/03/2019,000006239787288,7.68,TRAINLINE
OXFORDSHIRE CC,"CHILDRENS, YOUNG PEOPLE AND FAMILIES","	LEAVING CARE NORTH",OTHER TRANSPORT ARRANGEMENTS,12/03/2019,000006239787302,31.40,BANBURY SSTP
OXFORDSHIRE CC,"CHILDRENS, YOUNG PEOPLE AND FAMILIES","	LEAVING CARE NORTH",OTHER TRANSPORT ARRANGEMENTS,12/03/2019,000006239787304,12.40,CHILTERN - MARYLEBONE
OXFORDSHIRE CC,"CHILDRENS, YOUNG PEOPLE AND FAMILIES",DEPUTY DIRECTOR &MAN,PAYMENTS TO TRANSPORT OPERATORS,12/03/2019,000006239787308,56.57,TRAINLINE
OXFORDSHIRE CC,"CHILDRENS, YOUNG PEOPLE AND FAMILIES","	LOOKED AFTER CITY 1",HIRE OF ACCOMMODATION AND FACILITIES,12/03/2019,000006239786948,237.00,TRAVELODGE
OXFORDSHIRE CC,SOCIAL AND COMMUNITY SERVICES,CSS BICESTER,CATERING PROVISIONS,12/03/2019,000006239786950,2.40,SAINSBURYS SACAT (2243
OXFORDSHIRE CC,CORPORATE CORE,OPERATIONAL MANAGERS,PAYMENTS TO TRANSPORT OPERATORS,12/03/2019,000006239787332,74.10,WWW.GWR.COM
OXFORDSHIRE CC,SOCIAL AND COMMUNITY SERVICES,CSS WANTAGE,CATERING PROVISIONS,12/03/2019,000006239786954,33.60,SAINSBURYS 2244
OXFORDSHIRE CC,SOCIAL AND COMMUNITY SERVICES,CSS - BANBURY,CATERING PROVISIONS,12/03/2019,000006239786962,63.83,SAINSBURYS TO YOU 0642
OXFORDSHIRE CC,"CHILDRENS, YOUNG PEOPLE AND FAMILIES","	LOOKED AFTER SOUTH",MATERIALS,12/03/2019,000006239786972,12.97,WH SMITH
OXFORDSHIRE CC,CORPORATE CORE,"	COMMUNICATIONS",MATERIALS,12/03/2019,000006239787334,500.00,GOOGLE  ADS4896546035
OXFORDSHIRE CC,"CHILDRENS, YOUNG PEOPLE AND FAMILIES",ATV ADOPTION WOODLEY,"BOOKS, DVDS AND CDS",12/03/2019,000006239786982,14.50,AMZN MKTP UK MW7NC4M14
OXFORDSHIRE CC,"CHILDRENS, YOUNG PEOPLE AND FAMILIES",ATV ADOPTION OXFORD,HIRE OF ACCOMMODATION AND FACILITIES,12/03/2019,000006239786984,55.50,TRAVELODGE
OXFORDSHIRE CC,ENVIRONMENT AND ECONOMY,"	ROW MAINT",MATERIALS,12/03/2019,000006239786988,73.69,JEWSON WITNEY
OXFORDSHIRE CC,ENVIRONMENT AND ECONOMY,"	NAT TRAILS GENERAL",VEHICLES REPAIRS AND MAINTENANCE,12/03/2019,000006239786990,50.00,AUTOGLASS
OXFORDSHIRE CC,"CHILDRENS, YOUNG PEOPLE AND FAMILIES","	LEAVING CARE CITY 1",POSTAGE AND DELIVERY,11/03/2019,000006232309922,1.01,POST OFFICE COUNTER
OXFORDSHIRE CC,"CHILDRENS, YOUNG PEOPLE AND FAMILIES","	MUSIC UNALLOCABLE",OTHER TRANSPORT ARRANGEMENTS,11/03/2019,000006232309932,12.50,WESTGATE OXFORD CAR PA
OXFORDSHIRE CC,"CHILDRENS, YOUNG PEOPLE AND FAMILIES","	LOOKED AFTER NORTH",LEGAL COSTS,11/03/2019,000006232309934,192.00,TURPIN & MILLER
OXFORDSHIRE CC,"CHILDRENS, YOUNG PEOPLE AND FAMILIES","	LOOKED AFTER NORTH",HIRE OF ACCOMMODATION AND FACILITIES,11/03/2019,000006232309936,734.50,PREMIER INN
OXFORDSHIRE CC,"CHILDRENS, YOUNG PEOPLE AND FAMILIES","	MALTFIELD HOUSE",CATERING,11/03/2019,000006232309966,8.65,BENITOS HAT
OXFORDSHIRE CC,"CHILDRENS, YOUNG PEOPLE AND FAMILIES","	MALTFIELD HOUSE",CLOTHING AND UNIFORMS,11/03/2019,000006232309968,31.02,NEW LOOK
OXFORDSHIRE CC,"CHILDRENS, YOUNG PEOPLE AND FAMILIES",WITNEY,CATERING PROVISIONS,11/03/2019,000006232309982,5.48,TESCO-STORES 2499
OXFORDSHIRE CC,"CHILDRENS, YOUNG PEOPLE AND FAMILIES","	FAM SUPP CITY 1",MATERIALS,11/03/2019,000006232309984,406.94,WWW.ARGOS.CO.UK
OXFORDSHIRE CC,"CHILDRENS, YOUNG PEOPLE AND FAMILIES","	FAM SUPP CITY 1",MATERIALS,11/03/2019,000006232309986,99.00,WWW.ARGOS.CO.UK
OXFORDSHIRE CC,"CHILDRENS, YOUNG PEOPLE AND FAMILIES","	LOOKED AFTER NORTH",CATERING PROVISIONS,11/03/2019,000006232309996,8.38,OXFORD PEARTREE STARBU
OXFORDSHIRE CC,"CHILDRENS, YOUNG PEOPLE AND FAMILIES","	40 THE MOORS","BOOKS, DVDS AND CDS",11/03/2019,000006232309998,20.98,AMZN MKTP UK MW8ZS3G04
OXFORDSHIRE CC,"CHILDRENS, YOUNG PEOPLE AND FAMILIES","	40 THE MOORS",TELEPHONE - EQUIPMENT,11/03/2019,000006232310000,25.00,EE TOP UP VESTA
OXFORDSHIRE CC,"CHILDRENS, YOUNG PEOPLE AND FAMILIES","	40 THE MOORS",CATERING PROVISIONS,11/03/2019,000006232310002,106.30,SAINSBURYS (2243)
OXFORDSHIRE CC,"CHILDRENS, YOUNG PEOPLE AND FAMILIES","	40 THE MOORS",MATERIALS,11/03/2019,000006232310004,180.99,JD SPORTS INTERNET
OXFORDSHIRE CC,CORPORATE CORE,"	CC TRAINING",TRAINING RELATED EXPENDITURE,11/03/2019,000006232309746,73.30,WWW.GWR.COM
OXFORDSHIRE CC,"CHILDRENS, YOUNG PEOPLE AND FAMILIES","	RIVERSIDE CENTRE",CATERING PROVISIONS,11/03/2019,000006232309750,11.36,CO-OPERATIVE FOOD
OXFORDSHIRE CC,SOCIAL AND COMMUNITY SERVICES,LOOKED AFTER NORTH,HIRE OF ACCOMMODATION AND FACILITIES,11/03/2019,000006232310006,79.00,OXFORD ABINGDON HOTEL
OXFORDSHIRE CC,"CHILDRENS, YOUNG PEOPLE AND FAMILIES",THAME E&A HOME,CATERING,11/03/2019,000006232310008,57.80,OXY ORIENTAL
OXFORDSHIRE CC,"CHILDRENS, YOUNG PEOPLE AND FAMILIES",FAMILY SUPPORT 2,PAYMENTS TO TRANSPORT OPERATORS,11/03/2019,000006232310012,36.65,WWW.GWR.COM
OXFORDSHIRE CC,CORPORATE CORE,"	COMMUNICATIONS","BOOKS, DVDS AND CDS",11/03/2019,000006232310024,12.99,AMZN MKTP UK MW6EL7XY4
OXFORDSHIRE CC,"CHILDRENS, YOUNG PEOPLE AND FAMILIES",EYNSHAM,CATERING,11/03/2019,000006232310026,157.87,TESCO STORES 2008
OXFORDSHIRE CC,"CHILDRENS, YOUNG PEOPLE AND FAMILIES","	MALTFIELD HOUSE",OTHER EXPENSES,11/03/2019,000006232309878,8.95,COSTA COFFEE
OXFORDSHIRE CC,"CHILDRENS, YOUNG PEOPLE AND FAMILIES","	MALTFIELD HOUSE",OTHER EXPENSES,11/03/2019,000006232309880,13.90,NEDS NOODLES
OXFORDSHIRE CC,"CHILDRENS, YOUNG PEOPLE AND FAMILIES","	MALTFIELD HOUSE",STAFF SUBSISTENCE,11/03/2019,000006232309882,9.00,WESTGATE OXFORD CAR PA
OXFORDSHIRE CC,"CHILDRENS, YOUNG PEOPLE AND FAMILIES","	MALTFIELD HOUSE",OTHER EXPENSES,11/03/2019,000006232309884,17.22,VUE BSL LTD
OXFORDSHIRE CC,CORPORATE CORE,LIBRARY COLLECTIONS,"BOOKS, DVDS AND CDS",11/03/2019,000006232309886,"16,141.05",OVERDRIVE DIST
OXFORDSHIRE CC,CORPORATE CORE,LIBRARY COLLECTIONS,"NEWSPAPERS, PERIODICALS AND PUBLICATIONS",11/03/2019,000006232309888,47.62,GUARDIAN NEWS & MEDIA
OXFORDSHIRE CC,"CHILDRENS, YOUNG PEOPLE AND FAMILIES",DIDCOT MOVE-ON HOME,CATERING PROVISIONS,11/03/2019,000006232309896,5.80,SAINSBURYS SACAT 2067
OXFORDSHIRE CC,"CHILDRENS, YOUNG PEOPLE AND FAMILIES",STEP INTO TRAINING,"SUPPLIES, STATIONERY AND MATERIALS",11/03/2019,000006232309900,39.99,AMZN MKTP UK MW0BL3PX4
OXFORDSHIRE CC,SOCIAL AND COMMUNITY SERVICES,"	LEADERSHIP TEAM",PAYMENTS TO TRANSPORT OPERATORS,11/03/2019,000006232309912,73.30,WWW.GWR.COM
OXFORDSHIRE CC,"CHILDRENS, YOUNG PEOPLE AND FAMILIES","	40 THE MOORS",OTHER TRANSPORT ARRANGEMENTS,11/03/2019,000006232309944,3.00,OCC ON-STREET PARKING
OXFORDSHIRE CC,"CHILDRENS, YOUNG PEOPLE AND FAMILIES","	40 THE MOORS",CATERING PROVISIONS,11/03/2019,000006232309946,24.21,OXFORD PEARTREE KFC
OXFORDSHIRE CC,"CHILDRENS, YOUNG PEOPLE AND FAMILIES","	40 THE MOORS",ENTERTAINMENT EXPENSES,11/03/2019,000006232309948,49.20,ODEON
OXFORDSHIRE CC,"CHILDRENS, YOUNG PEOPLE AND FAMILIES","	40 THE MOORS",ENTERTAINMENT EXPENSES,11/03/2019,000006232309950,32.00,ODEON
OXFORDSHIRE CC,"CHILDRENS, YOUNG PEOPLE AND FAMILIES","	40 THE MOORS",MATERIALS,11/03/2019,000006232309952,13.93,WWW.ARGOS.CO.UK
OXFORDSHIRE CC,"CHILDRENS, YOUNG PEOPLE AND FAMILIES","	40 THE MOORS",MATERIALS,11/03/2019,000006232309954,17.93,WWW.ARGOS.CO.UK
OXFORDSHIRE CC,"CHILDRENS, YOUNG PEOPLE AND FAMILIES","	40 THE MOORS",ENTERTAINMENT EXPENSES,11/03/2019,000006232309956,-32.00,ODEON
OXFORDSHIRE CC,"CHILDRENS, YOUNG PEOPLE AND FAMILIES","	MALTFIELD HOUSE",CATERING,11/03/2019,000006232309964,8.75,SHAWA OXFORD
OXFORDSHIRE CC,"CHILDRENS, YOUNG PEOPLE AND FAMILIES","	MALTFIELD HOUSE",CLOTHING AND UNIFORMS,11/03/2019,000006232309970,39.99,SCHUH
OXFORDSHIRE CC,"CHILDRENS, YOUNG PEOPLE AND FAMILIES","	MALTFIELD HOUSE",OTHER EXPENSES,11/03/2019,000006232309972,19.90,LUSH UK
OXFORDSHIRE CC,"CHILDRENS, YOUNG PEOPLE AND FAMILIES","	MALTFIELD HOUSE",CLOTHING AND UNIFORMS,11/03/2019,000006232309974,25.00,MARKS&SPENCER PLC
OXFORDSHIRE CC,"CHILDRENS, YOUNG PEOPLE AND FAMILIES","	MALTFIELD HOUSE",OTHER EXPENSES,11/03/2019,000006232309976,4.05,BOOTS 0330
OXFORDSHIRE CC,"CHILDRENS, YOUNG PEOPLE AND FAMILIES",WITNEY,MATERIALS,11/03/2019,000006232309978,26.00,THEWORKS
OXFORDSHIRE CC,"CHILDRENS, YOUNG PEOPLE AND FAMILIES",WITNEY,CATERING PROVISIONS,11/03/2019,000006232309980,68.57,SAINSBURYS TO YOU 0632
OXFORDSHIRE CC,SOCIAL AND COMMUNITY SERVICES,CSS BICESTER,CATERING PROVISIONS,11/03/2019,000006232309572,7.49,ICELAND
OXFORDSHIRE CC,SOCIAL AND COMMUNITY SERVICES,CSS BICESTER,MATERIALS,11/03/2019,000006232309574,12.00,WILKO RETAIL LIMIT
OXFORDSHIRE CC,"CHILDRENS, YOUNG PEOPLE AND FAMILIES",THAME E&A HOME,CATERING PROVISIONS,11/03/2019,000006232309578,7.20,SAINSBURYS 2096
OXFORDSHIRE CC,ENVIRONMENT AND ECONOMY,"	ROW MAINT",MATERIALS,11/03/2019,000006232309814,51.67,S GRUNDON (EWELME)
OXFORDSHIRE CC,"CHILDRENS, YOUNG PEOPLE AND FAMILIES","	FAMILY SUPPORT CITY3",OTHER TRANSPORT ARRANGEMENTS,11/03/2019,000006232309820,57.60,NATIONAL EXPRESS LIMIT
OXFORDSHIRE CC,"CHILDRENS, YOUNG PEOPLE AND FAMILIES","	FAMILY SUPPORT CITY3",OTHER TRANSPORT ARRANGEMENTS,11/03/2019,000006232309822,64.80,NATIONAL EXPRESS LIMIT
OXFORDSHIRE CC,"CHILDRENS, YOUNG PEOPLE AND FAMILIES","	FAMILY SUPPORT CITY3",OTHER TRANSPORT ARRANGEMENTS,11/03/2019,000006232309824,52.30,NATIONAL EXPRESS LIMIT
OXFORDSHIRE CC,"CHILDRENS, YOUNG PEOPLE AND FAMILIES","	LOOKED AFTER CITY 1",MATERIALS,11/03/2019,000006232309832,314.00,CURRYS ONLINE
OXFORDSHIRE CC,"CHILDRENS, YOUNG PEOPLE AND FAMILIES",STEP INTO TRAINING,"SUPPLIES, STATIONERY AND MATERIALS",11/03/2019,000006232309902,17.08,AMZN MKTP UK MW1B00PA4
OXFORDSHIRE CC,ENVIRONMENT AND ECONOMY,HARD FM,MATERIALS,11/03/2019,000006232309540,59.94,TOOLSTATION LTD
OXFORDSHIRE CC,ENVIRONMENT AND ECONOMY,HARD FM,MATERIALS,11/03/2019,000006232309542,7.99,AMAZON PRIME MW3916XQ4
OXFORDSHIRE CC,"CHILDRENS, YOUNG PEOPLE AND FAMILIES",THAME E&A HOME,SUBSCRIPTIONS,11/03/2019,000006232309544,26.40,OXFORD ICE RINK
OXFORDSHIRE CC,"CHILDRENS, YOUNG PEOPLE AND FAMILIES","	MALTFIELD HOUSE",OTHER EXPENSES,11/03/2019,000006232309716,10.00,GIFFGAFF
OXFORDSHIRE CC,CORPORATE CORE,"	ORGANISATIONAL DEV'T","BOOKS, DVDS AND CDS",11/03/2019,000006232309728,17.57,AMAZON.CO.UK MW9WE9GL4
OXFORDSHIRE CC,CORPORATE CORE,"	ORGANISATIONAL DEV'T",CATERING,11/03/2019,000006232309730,799.30,OLD THORNS-RECEPTION
OXFORDSHIRE CC,CORPORATE CORE,"	ORGANISATIONAL DEV'T",PAYMENTS TO TRANSPORT OPERATORS,11/03/2019,000006232309732,17.30,WWW.GWR.COM
OXFORDSHIRE CC,"CHILDRENS, YOUNG PEOPLE AND FAMILIES","	MALTFIELD HOUSE",MATERIALS,11/03/2019,000006232309780,196.47,AMAZON.CO.UK MW6H37PH4
OXFORDSHIRE CC,"CHILDRENS, YOUNG PEOPLE AND FAMILIES","	MALTFIELD HOUSE",CATERING,11/03/2019,000006232309782,97.76,SAINSBURYS TO YOU 0600
OXFORDSHIRE CC,"CHILDRENS, YOUNG PEOPLE AND FAMILIES","	MALTFIELD HOUSE",CATERING,11/03/2019,000006232309784,44.10,HOUSE OF JACOB LIMITED
OXFORDSHIRE CC,"CHILDRENS, YOUNG PEOPLE AND FAMILIES","	MALTFIELD HOUSE",MATERIALS,11/03/2019,000006232309786,11.25,WILKO RETAIL LIMIT
OXFORDSHIRE CC,SOCIAL AND COMMUNITY SERVICES,CSS WITNEY,"BOOKS, DVDS AND CDS",11/03/2019,000006232309798,17.18,AMZN MKTP UK MW6UH2P74
OXFORDSHIRE CC,"CHILDRENS, YOUNG PEOPLE AND FAMILIES","	40 THE MOORS",DISABILITY AIDS AND EQUIPMENT,11/03/2019,000006232309842,52.00,MORGAN OPTOMETRY
OXFORDSHIRE CC,"CHILDRENS, YOUNG PEOPLE AND FAMILIES","	40 THE MOORS",CATERING PROVISIONS,11/03/2019,000006232309844,188.28,ASDA GROCERIES ONLINE
OXFORDSHIRE CC,"CHILDRENS, YOUNG PEOPLE AND FAMILIES","	40 THE MOORS",CATERING PROVISIONS,11/03/2019,000006232309846,-.40,ASDA GROCERIES ONLINE
OXFORDSHIRE CC,"CHILDRENS, YOUNG PEOPLE AND FAMILIES","	40 THE MOORS",ENTERTAINMENT EXPENSES,11/03/2019,000006232309848,10.40,ODEON
OXFORDSHIRE CC,"CHILDRENS, YOUNG PEOPLE AND FAMILIES","	40 THE MOORS",ENTERTAINMENT EXPENSES,11/03/2019,000006232309850,8.99,ODEON
OXFORDSHIRE CC,ENVIRONMENT AND ECONOMY,COMM LIBRARIES CO-OR,EQUIPMENT,11/03/2019,000006232309852,29.99,AMZN MKTP UK MW7KV5PW4
OXFORDSHIRE CC,ENVIRONMENT AND ECONOMY,HOLTON SITE,EQUIPMENT,11/03/2019,000006232309854,213.85,SCREWFIX DIRECT
OXFORDSHIRE CC,CORPORATE CORE,"	PERSONNEL",PAYMENTS TO TRANSPORT OPERATORS,11/03/2019,000006232309860,32.15,TRAINLINE
OXFORDSHIRE CC,CORPORATE CORE,"	PERSONNEL",PAYMENTS TO TRANSPORT OPERATORS,11/03/2019,000006232309862,32.15,TRAINLINE
OXFORDSHIRE CC,"CHILDRENS, YOUNG PEOPLE AND FAMILIES","	40 THE MOORS",MATERIALS,11/03/2019,000006232309864,7.99,AMAZON PRIME MW6U21G54
OXFORDSHIRE CC,"CHILDRENS, YOUNG PEOPLE AND FAMILIES","	40 THE MOORS",CLOTHING AND UNIFORMS,11/03/2019,000006232309866,29.99,TRUE RELIGION BRAND JE
OXFORDSHIRE CC,"CHILDRENS, YOUNG PEOPLE AND FAMILIES","	40 THE MOORS",MATERIALS,11/03/2019,000006232309868,2.75,CLINTONS 051
OXFORDSHIRE CC,SOCIAL AND COMMUNITY SERVICES,"	OPERATIONAL COSTS",OTHER TRANSPORT ARRANGEMENTS,11/03/2019,000006232309870,10.55,IZ  DUSAN PAROJCIC
OXFORDSHIRE CC,"CHILDRENS, YOUNG PEOPLE AND FAMILIES","	MALTFIELD HOUSE",OTHER EXPENSES,11/03/2019,000006232309872,75.00,CELL PHONE REPAIRS LTD
OXFORDSHIRE CC,"CHILDRENS, YOUNG PEOPLE AND FAMILIES","	MALTFIELD HOUSE",OTHER EXPENSES,11/03/2019,000006232309874,16.15,BOSWELLS CAFE COWLEY
OXFORDSHIRE CC,"CHILDRENS, YOUNG PEOPLE AND FAMILIES","	MALTFIELD HOUSE",OTHER EXPENSES,11/03/2019,000006232309876,14.67,VUE BSL LTD
OXFORDSHIRE CC,"CHILDRENS, YOUNG PEOPLE AND FAMILIES",THAME E&A HOME,SUBSCRIPTIONS,11/03/2019,000006232309546,8.60,OXFORD ICE RINK
OXFORDSHIRE CC,"CHILDRENS, YOUNG PEOPLE AND FAMILIES",THAME E&A HOME,SUBSCRIPTIONS,11/03/2019,000006232309548,1.20,OXFORD ICE RINK
OXFORDSHIRE CC,"CHILDRENS, YOUNG PEOPLE AND FAMILIES",THAME E&A HOME,OTHER TRANSPORT ARRANGEMENTS,11/03/2019,000006232309550,33.00,NAV TAXI SERVICE
OXFORDSHIRE CC,"CHILDRENS, YOUNG PEOPLE AND FAMILIES",THAME E&A HOME,CATERING PROVISIONS,11/03/2019,000006232309552,58.80,SAINSBURYS SACAT 2096
OXFORDSHIRE CC,"CHILDRENS, YOUNG PEOPLE AND FAMILIES",THAME E&A HOME,VEHICLE FUEL,11/03/2019,000006232309554,13.99,THAME BP SF CONNECT
OXFORDSHIRE CC,"CHILDRENS, YOUNG PEOPLE AND FAMILIES",THAME E&A HOME,ENTERTAINMENT EXPENSES,11/03/2019,000006232309556,19.96,VUE BSL LTD
OXFORDSHIRE CC,"CHILDRENS, YOUNG PEOPLE AND FAMILIES",THAME E&A HOME,ENTERTAINMENT EXPENSES,11/03/2019,000006232309558,3.99,VUE BSL LTD
OXFORDSHIRE CC,ENVIRONMENT AND ECONOMY,COUNTY LIBRARY,GENERAL MAINTENANCE,11/03/2019,000006232309560,16.70, WOLSELEY UK
OXFORDSHIRE CC,ENVIRONMENT AND ECONOMY,COUNTY LIBRARY,GENERAL MAINTENANCE,11/03/2019,000006232309562,190.82, WOLSELEY UK
OXFORDSHIRE CC,CORPORATE CORE,"	LEGAL SERVICES",PRINTING,11/03/2019,000006232309744,66.24,WP-WWW.OYEZFORMSLINK.C
OXFORDSHIRE CC,CORPORATE CORE,OPERATIONS,EQUIPMENT,11/03/2019,000006232309660,78.60,AUDIOMATE
OXFORDSHIRE CC,CORPORATE CORE,OPERATIONS,STATIONERY,11/03/2019,000006232309662,184.20,AMAZON.CO.UK MW8DE3P64
OXFORDSHIRE CC,"CHILDRENS, YOUNG PEOPLE AND FAMILIES","	MUSIC UNALLOCABLE",POSTAGE AND DELIVERY,11/03/2019,000006232309670,16.85,POST OFFICE COUNTER
OXFORDSHIRE CC,"CHILDRENS, YOUNG PEOPLE AND FAMILIES",EYNSHAM,CATERING,11/03/2019,000006232309482,6.10,COSTA COFFEE
OXFORDSHIRE CC,SOCIAL AND COMMUNITY SERVICES,LOOKED AFTER NORTH,OTHER TRANSPORT ARRANGEMENTS,11/03/2019,000006232309494,4.70,M6 TOLL
OXFORDSHIRE CC,"CHILDRENS, YOUNG PEOPLE AND FAMILIES","	RESIDENTIAL STRATEGY",CATERING PROVISIONS,11/03/2019,000006232309498,5.83,CO-OPERATIVE FOOD
OXFORDSHIRE CC,"CHILDRENS, YOUNG PEOPLE AND FAMILIES","	MUSIC UNALLOCABLE",EQUIPMENT,11/03/2019,000006232309672,39.92,AMZN MKTP UK MW9SN80F4
OXFORDSHIRE CC,"CHILDRENS, YOUNG PEOPLE AND FAMILIES","	MUSIC UNALLOCABLE",TRAINING RELATED EXPENDITURE,11/03/2019,000006232309676,120.00,MUSIC MARK
OXFORDSHIRE CC,"CHILDRENS, YOUNG PEOPLE AND FAMILIES","	MUSIC UNALLOCABLE",TRAINING RELATED EXPENDITURE,11/03/2019,000006232309678,120.00,MUSIC MARK
OXFORDSHIRE CC,"CHILDRENS, YOUNG PEOPLE AND FAMILIES","	MUSIC UNALLOCABLE","BOOKS, DVDS AND CDS",11/03/2019,000006232309680,6.14,MUSICNOTES.COM
OXFORDSHIRE CC,"CHILDRENS, YOUNG PEOPLE AND FAMILIES","	MUSIC UNALLOCABLE",TECHNICAL AND PROFESSIONAL CONSULTANT F,11/03/2019,000006232309682,677.90,INC SOC MUSICIANS
OXFORDSHIRE CC,SOCIAL AND COMMUNITY SERVICES,CSS - OXFORD,MATERIALS,11/03/2019,000006232309684,7.99,AMAZON PRIME MW5UI3P04
OXFORDSHIRE CC,SOCIAL AND COMMUNITY SERVICES,CSS BICESTER,CATERING PROVISIONS,11/03/2019,000006232309508,2.10,ICELAND
OXFORDSHIRE CC,"CHILDRENS, YOUNG PEOPLE AND FAMILIES",WITNEY,CATERING PROVISIONS,11/03/2019,000006232309510,17.05,SAINSBURYS SACAT 0632
OXFORDSHIRE CC,"CHILDRENS, YOUNG PEOPLE AND FAMILIES",WITNEY,FURNITURE,11/03/2019,000006232309512,13.25,IKEA LIMITED
OXFORDSHIRE CC,"CHILDRENS, YOUNG PEOPLE AND FAMILIES","	NCS","PUBLICITY, PROMOTIONS AND ADVERTISEMENT",11/03/2019,000006232309514,17.00,FACEBK  B9NG9KSGW2
OXFORDSHIRE CC,"CHILDRENS, YOUNG PEOPLE AND FAMILIES","	LEAVING CARE CITY 2",MATERIALS,11/03/2019,000006232309704,43.65,EPL MANYIGUISY
OXFORDSHIRE CC,"CHILDRENS, YOUNG PEOPLE AND FAMILIES","	LOOKED AFTER CITY 2",PAYMENTS TO TRANSPORT OPERATORS,11/03/2019,000006232309706,46.90,GWR DIDCOT PKWY TO
OXFORDSHIRE CC,"CHILDRENS, YOUNG PEOPLE AND FAMILIES","	LOOKED AFTER CITY 2",CATERING,11/03/2019,000006232309708,5.89,MCDONALDS
OXFORDSHIRE CC,"CHILDRENS, YOUNG PEOPLE AND FAMILIES","	LOOKED AFTER CITY 2",OTHER TRANSPORT ARRANGEMENTS,11/03/2019,000006232309710,6.30,APCOA CONNECT - FGW
OXFORDSHIRE CC,"CHILDRENS, YOUNG PEOPLE AND FAMILIES",UASC UNDER 16,DOMESTIC AND CLEANING EQUIPMENT,11/03/2019,000006232309524,23.96,ASDA STORE 4442
OXFORDSHIRE CC,SOCIAL AND COMMUNITY SERVICES,CSS - ABINGDON,CATERING PROVISIONS,11/03/2019,000006232309526,22.84,TESCO STORES-2008
OXFORDSHIRE CC,ENVIRONMENT AND ECONOMY,HARD FM,EQUIPMENT,11/03/2019,000006232309528,6.46,WILTS ELECTRICAL
OXFORDSHIRE CC,ENVIRONMENT AND ECONOMY,HARD FM,HARDWARE AND CROCKERY,11/03/2019,000006232309530,66.50,TRAVIS PERKINS
OXFORDSHIRE CC,ENVIRONMENT AND ECONOMY,HARD FM,MATERIALS,11/03/2019,000006232309532,23.94,TOOLSTATION LTD
OXFORDSHIRE CC,ENVIRONMENT AND ECONOMY,HARD FM,MATERIALS,11/03/2019,000006232309534,14.97,DECATHLON UK LTD
OXFORDSHIRE CC,ENVIRONMENT AND ECONOMY,HARD FM,HARDWARE AND CROCKERY,11/03/2019,000006232309536,108.31,WICKES OXFORD
OXFORDSHIRE CC,ENVIRONMENT AND ECONOMY,HARD FM,EQUIPMENT,11/03/2019,000006232309538,15.26,WILTS ELECTRICAL
OXFORDSHIRE CC,"CHILDRENS, YOUNG PEOPLE AND FAMILIES",THAME E&A HOME,CATERING PROVISIONS,11/03/2019,000006232309752,29.93,ASDA SUPERSTORE
OXFORDSHIRE CC,"CHILDRENS, YOUNG PEOPLE AND FAMILIES","	LOOKED AFTER CITY 2",MATERIALS,11/03/2019,000006232309758,40.50,HOBBYCRAFT
OXFORDSHIRE CC,"CHILDRENS, YOUNG PEOPLE AND FAMILIES","	MALTFIELD HOUSE",TELEPHONE - EQUIPMENT,11/03/2019,000006232309762,10.00,GIFFGAFF
OXFORDSHIRE CC,"CHILDRENS, YOUNG PEOPLE AND FAMILIES",THAME E&A HOME,CATERING PROVISIONS,11/03/2019,000006232309580,48.12,SAINSBURYS TO YOU 0600
OXFORDSHIRE CC,"CHILDRENS, YOUNG PEOPLE AND FAMILIES",THAME E&A HOME,CATERING PROVISIONS,11/03/2019,000006232309582,22.20,SAINSBURYS 2096
OXFORDSHIRE CC,"CHILDRENS, YOUNG PEOPLE AND FAMILIES",THAME E&A HOME,OTHER TRANSPORT ARRANGEMENTS,11/03/2019,000006232309586,1.00,3C_ PRINCESS SQUARE MS
OXFORDSHIRE CC,"CHILDRENS, YOUNG PEOPLE AND FAMILIES",THAME E&A HOME,MATERIALS,11/03/2019,000006232309588,5.99,WH SMITH
OXFORDSHIRE CC,"CHILDRENS, YOUNG PEOPLE AND FAMILIES",THAME E&A HOME,CLOTHING AND UNIFORMS,11/03/2019,000006232309590,3.50,PRIMARK 490
OXFORDSHIRE CC,"CHILDRENS, YOUNG PEOPLE AND FAMILIES","	FAMILY SUPPORT S'TH2",PAYMENTS TO TRANSPORT OPERATORS,11/03/2019,000006232309592,58.25,REDFUNNEL.CO.UK
OXFORDSHIRE CC,"CHILDRENS, YOUNG PEOPLE AND FAMILIES",NTH FAM SUPRT-BCSTR,PAYMENTS TO TRANSPORT OPERATORS,11/03/2019,000006232309598,41.75,WWW.GWR.COM
OXFORDSHIRE CC,"CHILDRENS, YOUNG PEOPLE AND FAMILIES",EYNSHAM,CATERING PROVISIONS,11/03/2019,000006232309620,2.59,CO-OPERATIVE FOOD
OXFORDSHIRE CC,"CHILDRENS, YOUNG PEOPLE AND FAMILIES","	MALTFIELD HOUSE",CATERING PROVISIONS,11/03/2019,000006232309624,27.70,CO-OP GROUP 350035
OXFORDSHIRE CC,"CHILDRENS, YOUNG PEOPLE AND FAMILIES",NORTH FSS- BANBURY,PAYMENT TO GOVERNMENT DEPARTMENTS,11/03/2019,000006232309626,14.00,GEN REGISTER OFFICE
OXFORDSHIRE CC,CORPORATE CORE,"	PERSONNEL","PUBLICITY, PROMOTIONS AND ADVERTISEMENT",11/03/2019,000006232309628,250.00,PAYPAL  KPMMEDIALTD
OXFORDSHIRE CC,CORPORATE CORE,"	PERSONNEL","PUBLICITY, PROMOTIONS AND ADVERTISEMENT",11/03/2019,000006232309630,475.20,WWW.TOTALJOBS.COM
OXFORDSHIRE CC,"CHILDRENS, YOUNG PEOPLE AND FAMILIES",NORTH FSS- WITNEY,REGISTRATION AND INSPECTION FEES,11/03/2019,000006232309452,22.00,OCC REGISTRARS (M)
OXFORDSHIRE CC,"CHILDRENS, YOUNG PEOPLE AND FAMILIES",CSS WALLINGFORD,CATERING PROVISIONS,11/03/2019,000006232309462,10.30,WAITROSE 675
OXFORDSHIRE CC,ENVIRONMENT AND ECONOMY,ELEC NPR ST LTG,HARDWARE AND CROCKERY,11/03/2019,000006232309464,17.99,SCREWFIX DIRECT
OXFORDSHIRE CC,"CHILDRENS, YOUNG PEOPLE AND FAMILIES",DIDCOT MOVE-ON HOME,CATERING PROVISIONS,11/03/2019,000006232309632,10.90,SAINSBURYS 2067
OXFORDSHIRE CC,SOCIAL AND COMMUNITY SERVICES,LOOKED AFTER SOUTH,VEHICLE FUEL,11/03/2019,000006232309466,35.06,VINEYARD SERVICE STATI
OXFORDSHIRE CC,"CHILDRENS, YOUNG PEOPLE AND FAMILIES",DIDCOT MOVE-ON HOME,CATERING PROVISIONS,11/03/2019,000006232309634,13.00,SAINSBURYS SACAT 2067
OXFORDSHIRE CC,SOCIAL AND COMMUNITY SERVICES,SCHOOLS FM,CATERING PROVISIONS,11/03/2019,000006232309636,77.02,BESTWAY WHOLESALE
OXFORDSHIRE CC,SOCIAL AND COMMUNITY SERVICES,LOOKED AFTER SOUTH,POSTAGE AND DELIVERY,11/03/2019,000006232309468,1.77,POST OFFICE COUNTER
OXFORDSHIRE CC,"CHILDRENS, YOUNG PEOPLE AND FAMILIES","	C&I BASE FITZHARRYS","SUPPLIES, STATIONERY AND MATERIALS",08/03/2019,000008393626457,38.18,AMZN MKTP UK MW4JW71H4
OXFORDSHIRE CC,"CHILDRENS, YOUNG PEOPLE AND FAMILIES","	LEAVING CARE NORTH",CATERING,08/03/2019,000008393626467,2.35,GREGGS PLC
OXFORDSHIRE CC,"CHILDRENS, YOUNG PEOPLE AND FAMILIES","	MALTFIELD HOUSE",CATERING,08/03/2019,000008393626471,6.95,COSTA COFFEE ABINGDON
OXFORDSHIRE CC,"CHILDRENS, YOUNG PEOPLE AND FAMILIES","	MALTFIELD HOUSE",MATERIALS,08/03/2019,000008393626473,10.05,POUNDLAND LTD 1586
OXFORDSHIRE CC,"CHILDRENS, YOUNG PEOPLE AND FAMILIES","	MALTFIELD HOUSE",CATERING,08/03/2019,000008393626475,11.96,MCDONALDS
OXFORDSHIRE CC,"CHILDRENS, YOUNG PEOPLE AND FAMILIES","	LOOKED AFTER CITY 2",PAYMENTS TO TRANSPORT OPERATORS,08/03/2019,000008393626409,30.30,GWR OXFORD SST
OXFORDSHIRE CC,"CHILDRENS, YOUNG PEOPLE AND FAMILIES","	LOOKED AFTER CITY 2",OTHER TRANSPORT ARRANGEMENTS,08/03/2019,000008393626411,6.60,APCOA CONNECT - FGW
OXFORDSHIRE CC,"CHILDRENS, YOUNG PEOPLE AND FAMILIES","	LOOKED AFTER CITY 2",PAYMENTS TO TRANSPORT OPERATORS,08/03/2019,000008393626413,4.20,LUL TICKET MACHINE
OXFORDSHIRE CC,"CHILDRENS, YOUNG PEOPLE AND FAMILIES",C&F - TF CONTRIB,HIRE OF ACCOMMODATION AND FACILITIES,08/03/2019,000008393626615,-39.00,TRAVELODGE
OXFORDSHIRE CC,CORPORATE CORE,"	COMMUNICATIONS","PUBLICITY, PROMOTIONS AND ADVERTISEMENT",08/03/2019,000008393626617,500.00,FACEBK  K63HBKN9Z2
OXFORDSHIRE CC,"CHILDRENS, YOUNG PEOPLE AND FAMILIES",THAME E&A HOME,CATERING,08/03/2019,000008393626267,11.26,MCDONALDS
OXFORDSHIRE CC,SOCIAL AND COMMUNITY SERVICES,CSS BICESTER,CATERING PROVISIONS,08/03/2019,000008393626269,2.10,ICELAND
OXFORDSHIRE CC,ENVIRONMENT AND ECONOMY,HARD FM,EQUIPMENT,08/03/2019,000008393626279,32.53,W F SENATE
OXFORDSHIRE CC,ENVIRONMENT AND ECONOMY,HARD FM,HARDWARE AND CROCKERY,08/03/2019,000008393626281,58.73,OXON FASTENING SYSTEMS
OXFORDSHIRE CC,ENVIRONMENT AND ECONOMY,HARD FM,HARDWARE AND CROCKERY,08/03/2019,000008393626283,33.67,WICKES BICESTER
OXFORDSHIRE CC,ENVIRONMENT AND ECONOMY,HARD FM,MATERIALS,08/03/2019,000008393626285,11.25,COLLIERS OF CROWMARSH
OXFORDSHIRE CC,ENVIRONMENT AND ECONOMY,HARD FM,HARDWARE AND CROCKERY,08/03/2019,000008393626287,137.06,CITY PLUMBING
OXFORDSHIRE CC,"CHILDRENS, YOUNG PEOPLE AND FAMILIES","	RIVERSIDE CENTRE",CATERING PROVISIONS,08/03/2019,000008393626437,6.99,TESCO STORES 4377
OXFORDSHIRE CC,"CHILDRENS, YOUNG PEOPLE AND FAMILIES","	RIVERSIDE CENTRE",DAY ACTIVITIES,08/03/2019,000008393626439,11.50,SPORTS CENTRE
OXFORDSHIRE CC,"CHILDRENS, YOUNG PEOPLE AND FAMILIES","	LEAVING CARE NORTH",CATERING,08/03/2019,000008393626441,8.84,DOMINOS
OXFORDSHIRE CC,CORPORATE CORE,HISTORY SERVICE,POSTAGE AND DELIVERY,08/03/2019,000008393626443,111.16,ROYAL MAIL ONLINE SHOP
OXFORDSHIRE CC,"CHILDRENS, YOUNG PEOPLE AND FAMILIES","	LOOKED AFTER CITY 2",SUBSCRIPTIONS,08/03/2019,000008393626445,25.00,NCS TRUST
OXFORDSHIRE CC,"CHILDRENS, YOUNG PEOPLE AND FAMILIES","	RESIDENTIAL STRATEGY","BOOKS, DVDS AND CDS",08/03/2019,000008393626451,23.99,AMZN MKTP UK MW4033P34
OXFORDSHIRE CC,ENVIRONMENT AND ECONOMY,HARD FM,MATERIALS,08/03/2019,000008393626289,10.50,TLC SOUTHERN LTD
OXFORDSHIRE CC,ENVIRONMENT AND ECONOMY,HARD FM,GENERAL MAINTENANCE,08/03/2019,000008393626291,15.73, WOLSELEY UK
OXFORDSHIRE CC,"CHILDRENS, YOUNG PEOPLE AND FAMILIES",THAME E&A HOME,DISABILITY AIDS AND EQUIPMENT,08/03/2019,000008393626293,84.00,ROBERT STANLEY (OPTICI
OXFORDSHIRE CC,ENVIRONMENT AND ECONOMY,COUNTY LIBRARY,GENERAL MAINTENANCE,08/03/2019,000008393626295,34.81, WOLSELEY UK
OXFORDSHIRE CC,SOCIAL AND COMMUNITY SERVICES,CSS - OXFORD,CATERING PROVISIONS,08/03/2019,000008393626299,.80,ALDI STORES 775-142
OXFORDSHIRE CC,"CHILDRENS, YOUNG PEOPLE AND FAMILIES",DIDCOT MOVE-ON HOME,CATERING PROVISIONS,08/03/2019,000008393626361,8.25,SAINSBURYS SACAT 2067
OXFORDSHIRE CC,SOCIAL AND COMMUNITY SERVICES,WITNEY MOVE ON HOME,CATERING PROVISIONS,08/03/2019,000008393626363,11.80,SAINSBURYS 0632
OXFORDSHIRE CC,CORPORATE CORE,"	DEMOCRATIC SERVICES",PAYMENTS TO TRANSPORT OPERATORS,08/03/2019,000008393626375,51.38,TRAINLINE
OXFORDSHIRE CC,CORPORATE CORE,HOME LIBRARY SERVICE,STATIONERY,08/03/2019,000008393626381,23.96,AMZN MKTP UK MW3SP7034
OXFORDSHIRE CC,"CHILDRENS, YOUNG PEOPLE AND FAMILIES","	LEAVING CARE NORTH",REGISTRATION AND INSPECTION FEES,08/03/2019,000008393626569,11.00,OCC REGISTRARS (M)
OXFORDSHIRE CC,"CHILDRENS, YOUNG PEOPLE AND FAMILIES",UASC POST 18,OTHER EXPENSES,08/03/2019,000008393626571,7.28,KFC
OXFORDSHIRE CC,"CHILDRENS, YOUNG PEOPLE AND FAMILIES",UASC POST 18,OTHER EXPENSES,08/03/2019,000008393626573,14.99,ARGOS LTD
OXFORDSHIRE CC,"CHILDRENS, YOUNG PEOPLE AND FAMILIES",NORTH FSS- WITNEY,PAYMENTS TO TRANSPORT OPERATORS,08/03/2019,000008393626223,79.40,WWW.GWR.COM
OXFORDSHIRE CC,"CHILDRENS, YOUNG PEOPLE AND FAMILIES",THAME E&A HOME,HARDWARE AND CROCKERY,08/03/2019,000008393626229,51.25,NOTCUTTS GARDEN CE
OXFORDSHIRE CC,"CHILDRENS, YOUNG PEOPLE AND FAMILIES","	MUSIC UNALLOCABLE",EQUIPMENT,08/03/2019,000008393626387,20.97,AMAZON.CO.UK MW2SN7074
OXFORDSHIRE CC,ENVIRONMENT AND ECONOMY,"	NATURAL ENVIRONMENT",PAYMENTS TO TRANSPORT OPERATORS,08/03/2019,000008393626389,31.65,BANBURY STATION T/O
OXFORDSHIRE CC,"CHILDRENS, YOUNG PEOPLE AND FAMILIES","	MUSIC UNALLOCABLE","BOOKS, DVDS AND CDS",08/03/2019,000008393626385,110.95,BOOSEY & HAWKES
OXFORDSHIRE CC,"CHILDRENS, YOUNG PEOPLE AND FAMILIES","	MUSIC UNALLOCABLE",PURCHASE OF IT EQUIPMENT,08/03/2019,000008393626391,20.16,AMAZON.CO.UK MW0FL8124
OXFORDSHIRE CC,ENVIRONMENT AND ECONOMY,"	R & A STAFF & OPS",IT SOFTWARE,08/03/2019,000008393626395,23.26,ADOBE  ACROBAT STD
OXFORDSHIRE CC,"CHILDRENS, YOUNG PEOPLE AND FAMILIES","	LOOKED AFTER CITY 2",PAYMENTS TO TRANSPORT OPERATORS,08/03/2019,000008393626407,15.10,GWR OXFORD SST
OXFORDSHIRE CC,ENVIRONMENT AND ECONOMY,SIP MANAGEMENT,MANAGEMENT CONSULTANT FEES,08/03/2019,000008393626581,252.00,WWW.ALDERCROSS.COM
OXFORDSHIRE CC,"CHILDRENS, YOUNG PEOPLE AND FAMILIES","	LOOKED AFTER NORTH",VEHICLE FUEL,08/03/2019,000008393626583,45.09,BP W/BREAK WARWICK SOU
OXFORDSHIRE CC,"CHILDRENS, YOUNG PEOPLE AND FAMILIES","	40 THE MOORS",CLOTHING AND UNIFORMS,08/03/2019,000008393626585,87.45,MAINLINE MENSWEAR LTD
OXFORDSHIRE CC,"CHILDRENS, YOUNG PEOPLE AND FAMILIES","	40 THE MOORS",MATERIALS,08/03/2019,000008393626587,136.49,WWW.SIZE.CO.UK
OXFORDSHIRE CC,SOCIAL AND COMMUNITY SERVICES,NTH INTEGRATD LOC TM,HIRE OF ACCOMMODATION AND FACILITIES,08/03/2019,000008393626589,119.50,PREMIER INN
OXFORDSHIRE CC,CORPORATE CORE,,"SUPPLIES, STATIONERY AND MATERIALS",08/03/2019,000008393626591,24.08,LYRECO UK LTD
OXFORDSHIRE CC,"CHILDRENS, YOUNG PEOPLE AND FAMILIES","	LEAVING CARE NORTH",OTHER EXPENSES,08/03/2019,000008393626593,2.20,CAFE LOCO TRADING
OXFORDSHIRE CC,"CHILDRENS, YOUNG PEOPLE AND FAMILIES","	LEAVING CARE NORTH",OTHER TRANSPORT ARRANGEMENTS,08/03/2019,000008393626595,6.80,BANBURY SSTP
OXFORDSHIRE CC,"CHILDRENS, YOUNG PEOPLE AND FAMILIES","	LEAVING CARE NORTH",OTHER EXPENSES,08/03/2019,000008393626597,3.75,QUEENSWAY COFFEE
OXFORDSHIRE CC,"CHILDRENS, YOUNG PEOPLE AND FAMILIES","	OSCB","BOOKS, DVDS AND CDS",08/03/2019,000008393626245,53.47,AMZN MKTP UK MW24270J4
OXFORDSHIRE CC,"CHILDRENS, YOUNG PEOPLE AND FAMILIES","	LOOKED AFTER SOUTH",FURNITURE,08/03/2019,000008393626313,266.93,WWW.ARGOS.CO.UK
OXFORDSHIRE CC,"CHILDRENS, YOUNG PEOPLE AND FAMILIES","	LOOKED AFTER SOUTH",FURNITURE,08/03/2019,000008393626315,99.00,WWW.ARGOS.CO.UK
OXFORDSHIRE CC,"CHILDRENS, YOUNG PEOPLE AND FAMILIES","	LOOKED AFTER SOUTH",FURNITURE,08/03/2019,000008393626317,455.93,WWW.ARGOS.CO.UK
OXFORDSHIRE CC,"CHILDRENS, YOUNG PEOPLE AND FAMILIES",NTH FAM SUPRT-BCSTR,MATERIALS,08/03/2019,000008393626319,.49,ARGOS RETAIL GROUP
OXFORDSHIRE CC,ENVIRONMENT AND ECONOMY,"	PROPERTY & PROC MGT",PRINTING,08/03/2019,000008393626321,22.78,VISTAPR VISTAPRINT.COM
OXFORDSHIRE CC,SOCIAL AND COMMUNITY SERVICES,CSS WALLINGFORD,MATERIALS,08/03/2019,000008393626327,10.10,KP STATIONERS
OXFORDSHIRE CC,SOCIAL AND COMMUNITY SERVICES,CSS WITNEY,"BOOKS, DVDS AND CDS",08/03/2019,000008393626487,17.99,AMZN MKTP UK MW7478194
OXFORDSHIRE CC,SOCIAL AND COMMUNITY SERVICES,CSS WANTAGE,CATERING PROVISIONS,08/03/2019,000008393626489,55.33,ASDA GROCERIES ONLINE
OXFORDSHIRE CC,SOCIAL AND COMMUNITY SERVICES,CSS WANTAGE,CATERING PROVISIONS,08/03/2019,000008393626491,-6.13,ASDA GROCERIES ONLINE
OXFORDSHIRE CC,CORPORATE CORE,DEPUTY DIRECTOR &MAN,PHOTOCOPYING,08/03/2019,000008393626501,653.99,CP GROUP
OXFORDSHIRE CC,"CHILDRENS, YOUNG PEOPLE AND FAMILIES","	LOOKED AFTER CITY 1",HIRE OF ACCOMMODATION AND FACILITIES,08/03/2019,000008393626527,75.00,TRAVELODGE
OXFORDSHIRE CC,"CHILDRENS, YOUNG PEOPLE AND FAMILIES","	LOOKED AFTER CITY 1",CATERING PROVISIONS,08/03/2019,000008393626523,6.70,SAINSBURYS (2305)
OXFORDSHIRE CC,"CHILDRENS, YOUNG PEOPLE AND FAMILIES","	LOOKED AFTER CITY 1",PAYMENTS TO TRANSPORT OPERATORS,08/03/2019,000008393626525,8.39,TRAINLINE
OXFORDSHIRE CC,"CHILDRENS, YOUNG PEOPLE AND FAMILIES",THAME E&A HOME,CATERING PROVISIONS,08/03/2019,000008393626351,30.01,ASDA STORE 4442
OXFORDSHIRE CC,"CHILDRENS, YOUNG PEOPLE AND FAMILIES",THAME E&A HOME,MATERIALS,08/03/2019,000008393626353,2.00,POUNDLAND LTD 1586
OXFORDSHIRE CC,"CHILDRENS, YOUNG PEOPLE AND FAMILIES",THAME E&A HOME,CATERING,08/03/2019,000008393626359,9.66,BURGER KING
OXFORDSHIRE CC,"CHILDRENS, YOUNG PEOPLE AND FAMILIES","	MALTFIELD HOUSE",EDUCATIONAL AND VOCATIONAL TRAINING ,08/03/2019,000008393626355,5.00,PARENTPAY E-COM R
OXFORDSHIRE CC,"CHILDRENS, YOUNG PEOPLE AND FAMILIES","	MALTFIELD HOUSE",CATERING PROVISIONS,08/03/2019,000008393626357,4.95,CO-OPERATIVE FOOD
OXFORDSHIRE CC,"CHILDRENS, YOUNG PEOPLE AND FAMILIES","	40 THE MOORS",CATERING PROVISIONS,08/03/2019,000008393626529,21.47,TESCO STORE 2788
OXFORDSHIRE CC,SOCIAL AND COMMUNITY SERVICES,CSS - BANBURY,CATERING PROVISIONS,08/03/2019,000008393626533,6.39,TESCO STORE 2064
OXFORDSHIRE CC,ENVIRONMENT AND ECONOMY,READER SERV ADULTS,PAYMENTS TO TRANSPORT OPERATORS,08/03/2019,000008393626535,76.11,TRAINLINE
OXFORDSHIRE CC,"CHILDRENS, YOUNG PEOPLE AND FAMILIES","	40 THE MOORS",CATERING PROVISIONS,08/03/2019,000008393626539,10.30,COSTA KIDLINGTON
OXFORDSHIRE CC,ENVIRONMENT AND ECONOMY,"	CONTRACT & PERF MNGT",HIRE OF ACCOMMODATION AND FACILITIES,07/03/2019,000008388099913,10.00,WWW.MALMAISON.COM
OXFORDSHIRE CC,"CHILDRENS, YOUNG PEOPLE AND FAMILIES","	LOOKED AFTER SOUTH",CATERING PROVISIONS,07/03/2019,000008388099655,4.65,TESCO STORES-2038
OXFORDSHIRE CC,"CHILDRENS, YOUNG PEOPLE AND FAMILIES",THAME E&A HOME,VEHICLE FUEL,07/03/2019,000008388099657,9.08,MFG CHERWELL
OXFORDSHIRE CC,"CHILDRENS, YOUNG PEOPLE AND FAMILIES",THAME E&A HOME,CATERING,07/03/2019,000008388099659,56.96,TGI FRIDAY'S
OXFORDSHIRE CC,ENTERPRISEVC,BUSINESS SYST STAFF,FURNITURE,07/03/2019,000008388099743,265.00,MIXTILES
OXFORDSHIRE CC,"CHILDRENS, YOUNG PEOPLE AND FAMILIES",DIDCOT MOVE-ON HOME,CATERING PROVISIONS,07/03/2019,000008388099745,24.75,SAINSBURYS SACAT 2067
OXFORDSHIRE CC,"CHILDRENS, YOUNG PEOPLE AND FAMILIES","	MUSIC UNALLOCABLE",POSTAGE AND DELIVERY,07/03/2019,000008388099761,3.60,UPS LTD
OXFORDSHIRE CC,"CHILDRENS, YOUNG PEOPLE AND FAMILIES","	MUSIC UNALLOCABLE",CAR LEASING - PRIVATE RENTALS,07/03/2019,000008388099763,47.70,EURODRIVE
OXFORDSHIRE CC,"CHILDRENS, YOUNG PEOPLE AND FAMILIES","	MUSIC UNALLOCABLE",CATERING PROVISIONS,07/03/2019,000008388099765,4.70,SAINSBURYS 0600
OXFORDSHIRE CC,"CHILDRENS, YOUNG PEOPLE AND FAMILIES","	MUSIC UNALLOCABLE","BOOKS, DVDS AND CDS",07/03/2019,000008388099767,7.49,AMZN MKTP UK MW50L40H4
OXFORDSHIRE CC,"CHILDRENS, YOUNG PEOPLE AND FAMILIES","	MUSIC UNALLOCABLE","BOOKS, DVDS AND CDS",07/03/2019,000008388099767,27.12,AMZN MKTP UK MW50L40H4
OXFORDSHIRE CC,"CHILDRENS, YOUNG PEOPLE AND FAMILIES","	40 THE MOORS",MATERIALS,07/03/2019,000008388099855,97.99,SP   TIC2TOC
OXFORDSHIRE CC,"CHILDRENS, YOUNG PEOPLE AND FAMILIES",CNTL EARLY HELP-BRTN,OTHER EXPENSES,07/03/2019,000008388099841,10.94,AMZN MKTP UK MW1UI4034
OXFORDSHIRE CC,"CHILDRENS, YOUNG PEOPLE AND FAMILIES","	FAMILY SUPPORT CITY3",OTHER EXPENSES,07/03/2019,000008388099843,22.00,OCC REGISTRARS (M)
OXFORDSHIRE CC,ENVIRONMENT AND ECONOMY,THE RIDGEWAY,CATERING PROVISIONS,07/03/2019,000008388099857,1.70,CO-OPERATIVE FOOD
OXFORDSHIRE CC,ENVIRONMENT AND ECONOMY,THE RIDGEWAY,CATERING PROVISIONS,07/03/2019,000008388099859,5.00,CO-OPERATIVE FOOD
OXFORDSHIRE CC,"CHILDRENS, YOUNG PEOPLE AND FAMILIES","	FPT NORTH",PAYMENTS TO TRANSPORT OPERATORS,07/03/2019,000008388099851,52.55,BANBURY STATION T/O
OXFORDSHIRE CC,"CHILDRENS, YOUNG PEOPLE AND FAMILIES","	40 THE MOORS",CATERING PROVISIONS,07/03/2019,000008388099853,63.88,TESCO STORE 2788
OXFORDSHIRE CC,"CHILDRENS, YOUNG PEOPLE AND FAMILIES","	MALTFIELD HOUSE",EDUCATIONAL AND VOCATIONAL TRAINING ,07/03/2019,000008388099861,2.65,PARENTPAY E-COM R
OXFORDSHIRE CC,"CHILDRENS, YOUNG PEOPLE AND FAMILIES","	RESIDENTIAL STRATEGY",HIRE OF ACCOMMODATION AND FACILITIES,07/03/2019,000008388099801,500.00,BUCKINGHAM HOTELS
OXFORDSHIRE CC,SOCIAL AND COMMUNITY SERVICES,"	MTFC",CATERING,07/03/2019,000008388099803,2.85,BLENHEIM PALACE(SEARCY
OXFORDSHIRE CC,"CHILDRENS, YOUNG PEOPLE AND FAMILIES",FPT SOUTH/VALE,CATERING PROVISIONS,07/03/2019,000008388099887,30.00,MARKS&SPENCER PLC
OXFORDSHIRE CC,"CHILDRENS, YOUNG PEOPLE AND FAMILIES","	LEAVING CARE NORTH",OTHER EXPENSES,07/03/2019,000008388099901,251.00,CEX BANBURY
OXFORDSHIRE CC,CORPORATE CORE,,"SUPPLIES, STATIONERY AND MATERIALS",07/03/2019,000008388099891,137.86,LYRECO UK LTD
OXFORDSHIRE CC,CORPORATE CORE,,"SUPPLIES, STATIONERY AND MATERIALS",07/03/2019,000008388099893,76.50,LYRECO UK LTD
OXFORDSHIRE CC,CORPORATE CORE,,"SUPPLIES, STATIONERY AND MATERIALS",07/03/2019,000008388099895,42.41,LYRECO UK LTD
OXFORDSHIRE CC,"CHILDRENS, YOUNG PEOPLE AND FAMILIES","	LOOKED AFTER NORTH",CATERING,07/03/2019,000008388099897,2.95,COSTA COFFEE
OXFORDSHIRE CC,"CHILDRENS, YOUNG PEOPLE AND FAMILIES","	LEAVING CARE NORTH",OTHER EXPENSES,07/03/2019,000008388099903,249.99,CASH CONVERTERS
OXFORDSHIRE CC,"CHILDRENS, YOUNG PEOPLE AND FAMILIES","	LEAVING CARE NORTH",OTHER EXPENSES,07/03/2019,000008388099905,1.29,TESCO STORES 6338
OXFORDSHIRE CC,CORPORATE CORE,CENTRAL BUYING TEAM,VEHICLE FUEL,07/03/2019,000008388099899,25.00,TESCO PFS 3700
OXFORDSHIRE CC,"CHILDRENS, YOUNG PEOPLE AND FAMILIES","	LEAVING CARE NORTH",OTHER EXPENSES,07/03/2019,000008388099907,32.52,WM MORRISONS STORE
OXFORDSHIRE CC,"CHILDRENS, YOUNG PEOPLE AND FAMILIES","	LOOKED AFTER CITY 1",REGISTRATION AND INSPECTION FEES,07/03/2019,000008388099605,22.00,OCC REGISTRARS (M)
OXFORDSHIRE CC,"CHILDRENS, YOUNG PEOPLE AND FAMILIES",STH EARLY HELP-ABNDN,MATERIALS,07/03/2019,000008388099609,31.11,AMAZON.CO.UK MW31K20C4
OXFORDSHIRE CC,"CHILDRENS, YOUNG PEOPLE AND FAMILIES","	FAMILY SUPPORT S'TH2",MATERIALS,07/03/2019,000008388099619,64.99,ARGOS RETAIL GROUP
OXFORDSHIRE CC,"CHILDRENS, YOUNG PEOPLE AND FAMILIES",STH EARLY HELP-ABNDN,MATERIALS,07/03/2019,000008388099611,31.12,AMAZON.CO.UK MW5RG90R4
OXFORDSHIRE CC,"CHILDRENS, YOUNG PEOPLE AND FAMILIES",STH EARLY HELP-ABNDN,MATERIALS,07/03/2019,000008388099621,93.94,WWW.ARGOS.CO.UK
OXFORDSHIRE CC,"CHILDRENS, YOUNG PEOPLE AND FAMILIES",THAME E&A HOME,MATERIALS,07/03/2019,000008388099623,7.99,AMAZON PRIME MW38F3EC4
OXFORDSHIRE CC,"CHILDRENS, YOUNG PEOPLE AND FAMILIES",STH EARLY HELP-ABNDN,MATERIALS,07/03/2019,000008388099613,31.11,AMAZON.CO.UK MW5X10004
OXFORDSHIRE CC,"CHILDRENS, YOUNG PEOPLE AND FAMILIES",STH EARLY HELP-ABNDN,MATERIALS,07/03/2019,000008388099615,31.11,AMAZON.CO.UK MW8D480Z4
OXFORDSHIRE CC,"CHILDRENS, YOUNG PEOPLE AND FAMILIES","	FAMILY SUPPORT S'TH2",CLIENT LODGINGS AND ACCOMMODATION,07/03/2019,000008388099617,70.00,THE GEORGE HOTEL
OXFORDSHIRE CC,"CHILDRENS, YOUNG PEOPLE AND FAMILIES",EYNSHAM,CATERING,07/03/2019,000008388099645,9.79,CO-OPERATIVE FOOD
OXFORDSHIRE CC,"CHILDRENS, YOUNG PEOPLE AND FAMILIES",THAME E&A HOME,TELEPHONE - EQUIPMENT,07/03/2019,000008388099625,10.00,CARPHONE WAREHOUSE
OXFORDSHIRE CC,"CHILDRENS, YOUNG PEOPLE AND FAMILIES",WITNEY,CATERING PROVISIONS,07/03/2019,000008388099647,11.17,SAINSBURYS 0632
OXFORDSHIRE CC,"CHILDRENS, YOUNG PEOPLE AND FAMILIES","	LEAVING CARE SOUTH",PAYMENTS TO TRANSPORT OPERATORS,07/03/2019,000008388099639,30.10,WWW.GWR.COM
OXFORDSHIRE CC,"CHILDRENS, YOUNG PEOPLE AND FAMILIES",NTH FAM SUPRT-BCSTR,MATERIALS,07/03/2019,000008388099719,2.95,WWW.ARGOS.CO.UK
OXFORDSHIRE CC,ENTERPRISEVC,OPERATIONAL COSTS,CATERING,07/03/2019,000008388099721,3.55,ART CAFE
OXFORDSHIRE CC,CORPORATE CORE,REGISTRAR,LAUNDRY AND DRY CLEANING,07/03/2019,000008388099723,90.00,LILLY WHITE DRY CLEANE
OXFORDSHIRE CC,"CHILDRENS, YOUNG PEOPLE AND FAMILIES",THAME E&A HOME,OTHER TRANSPORT ARRANGEMENTS,07/03/2019,000008388099741,1.50,IPSGROUP.COM
OXFORDSHIRE CC,"CHILDRENS, YOUNG PEOPLE AND FAMILIES","	LOOKED AFTER NORTH",HIRE OF ACCOMMODATION AND FACILITIES,07/03/2019,000008388099733,91.00,HOTEL ON BOOKING.COM
OXFORDSHIRE CC,"CHILDRENS, YOUNG PEOPLE AND FAMILIES","	LEAVING CARE NORTH",CLOTHING AND UNIFORMS,07/03/2019,000008388099817,68.00,PRIMARK 693
OXFORDSHIRE CC,SOCIAL AND COMMUNITY SERVICES,CSS WANTAGE,CATERING PROVISIONS,07/03/2019,000008388099825,70.09,THE OLD FARM SHOP
OXFORDSHIRE CC,,,,07/03/2019,000008388099747,"-309,003.03",
OXFORDSHIRE CC,"CHILDRENS, YOUNG PEOPLE AND FAMILIES","	LEAVING CARE NORTH",PAYMENTS TO TRANSPORT OPERATORS,07/03/2019,000008388099691,20.80,BANBURY STATION T/O
OXFORDSHIRE CC,ENVIRONMENT AND ECONOMY,"	FM RECHARGES",MATERIALS,07/03/2019,000008388099675,559.96,HALFORDS ON LINE
OXFORDSHIRE CC,ENVIRONMENT AND ECONOMY,HARD FM,EQUIPMENT,07/03/2019,000008388099677,26.04,NEWEY & EYRE
OXFORDSHIRE CC,ENVIRONMENT AND ECONOMY,HARD FM,HARDWARE AND CROCKERY,07/03/2019,000008388099679,45.00,WICKES OXFORD
OXFORDSHIRE CC,ENVIRONMENT AND ECONOMY,HARD FM,HARDWARE AND CROCKERY,07/03/2019,000008388099681,12.99,SCREWFIX DIDCOT
OXFORDSHIRE CC,ENVIRONMENT AND ECONOMY,HARD FM,MATERIALS,07/03/2019,000008388099683,10.94,TOOLSTATION LTD
OXFORDSHIRE CC,ENVIRONMENT AND ECONOMY,HARD FM,HARDWARE AND CROCKERY,07/03/2019,000008388099685,38.98,SCREWFIX OXFORD
OXFORDSHIRE CC,ENVIRONMENT AND ECONOMY,COUNTY LIBRARY,GENERAL MAINTENANCE,07/03/2019,000008388099687,672.16, WOLSELEY UK
OXFORDSHIRE CC,"CHILDRENS, YOUNG PEOPLE AND FAMILIES","	LEAVING CARE NORTH",REGISTRATION AND INSPECTION FEES,07/03/2019,000008388099689,11.00,OCC REGISTRARS (M)
OXFORDSHIRE CC,"CHILDRENS, YOUNG PEOPLE AND FAMILIES",CNTL EARLY HELP-RHIL,REGISTRATION AND INSPECTION FEES,07/03/2019,000008388099789,11.00,OCC REGISTRARS (M)
OXFORDSHIRE CC,"CHILDRENS, YOUNG PEOPLE AND FAMILIES",STEP INTO TRAINING,"SUPPLIES, STATIONERY AND MATERIALS",07/03/2019,000008388099867,42.44,AMZN MKTP UK MW8A02E94
OXFORDSHIRE CC,"CHILDRENS, YOUNG PEOPLE AND FAMILIES",STEP INTO TRAINING,"SUPPLIES, STATIONERY AND MATERIALS",07/03/2019,000008388099869,128.69,PAYPAL  PLAYDOCTORS
OXFORDSHIRE CC,"CHILDRENS, YOUNG PEOPLE AND FAMILIES","	LEAVING CARE CITY 1","BOOKS, DVDS AND CDS",07/03/2019,000008388099873,215.99,AMZN MKTP UK MW71Y6EH4
OXFORDSHIRE CC,"CHILDRENS, YOUNG PEOPLE AND FAMILIES","	40 THE MOORS",CATERING PROVISIONS,07/03/2019,000008388099877,40.10,SAINSBURYS (2243)
OXFORDSHIRE CC,"CHILDRENS, YOUNG PEOPLE AND FAMILIES","	LEAVING CARE SOUTH",OTHER TRANSPORT ARRANGEMENTS,07/03/2019,000008388099879,1.30,CAR PARKING
OXFORDSHIRE CC,SOCIAL AND COMMUNITY SERVICES,UASC 16&17,OTHER TRANSPORT ARRANGEMENTS,07/03/2019,000008388099695,71.75,OXFORD BUS CO
OXFORDSHIRE CC,SOCIAL AND COMMUNITY SERVICES,UASC 16&17,DISABILITY AIDS AND EQUIPMENT,07/03/2019,000008388099697,3.95,SPECSAVER 00440000COWL
OXFORDSHIRE CC,SOCIAL AND COMMUNITY SERVICES,DIDCOT MOVE-ON HOME,CATERING PROVISIONS,07/03/2019,000008388099699,11.80,SAINSBURYS SACAT 2067
OXFORDSHIRE CC,"CHILDRENS, YOUNG PEOPLE AND FAMILIES",CNTL EARLY HELP-RHIL,CLOTHING AND UNIFORMS,07/03/2019,000008388099715,18.00,ASDA GEORGE COM LEEDS
OXFORDSHIRE CC,"CHILDRENS, YOUNG PEOPLE AND FAMILIES",NTH FAM SUPRT-BCSTR,PAYMENTS TO TRANSPORT OPERATORS,07/03/2019,000008388099717,5.50,WWW.GWR.COM
